Workbook

Sheet ひな形
O1: 【使い方】 | P1: 「営繕工事写真撮影要領(令和３年版)」の項目を選択することで手入力を必要最低限にしてある。 | Q1: ←１．左のセルをクリックすると▼が現れる。
K2: 新営建築工事 | N2: ← | O2: 工事種別 | P2: 新営建築工事、改修建築工事、電気設備工事、機械設備工事、撤去解体工事、耐震診断調査のいずれかを選択。 | Q2: ２．▼をクリックすると使い方が現れる。
I3: フィルタ(選んでドロップダウン) | P3: 工事種別と工事種目は連動、同じシートで工事種別の混在は可能。既定の入力項目を変更する際は元の工事種別を選択。
P4: iPhone と Android はエクセル(無料)をインストールすると使用可能。一部制限あり(画像貼付欄参照)。
A5: 行の高さ：13.8～13.9、余白：全周1.5cm
B6: 1 | M6: =IF(OFFSET(M6,1,-3)="","",OFFSET(M6,1,-3)) -> 
B7: 余 白 | I7: 工 事 名 | M7: =IF(OFFSET(M6,0,0)="","",OFFSET(M6,0,0)) ->  | N7: ← | O7: 工 事 名 | P7: 工事名を入力すると、すべての工事名欄に上段と同じ工事名が入る。他の項目も同様。
P8: 写真の貼付が無い場合、当該欄の工事名を削除すると自動入力項目は非表示になり空欄になる。
I9: 工事種目 | N9: ← | O9: 工事種目 | P9: 画面上段の工事種別の枠をクリックして、いずれかを選ぶ。
P10: 選択した工事種別に応じて、下層の工事種目のドロップダウンリストが変わる。
I11: 撮影項目 | N11: ← | O11: 撮影項目 | P11: 選択した工事種目に応じて、下層の撮影項目のドロップダウンリストが変わる。
P12: 必要に応じて手入力する。（注１）
I13: 撮影部位 施工状況 | N13: ← | O13: 撮影部位 施工状況 | P13: 選択した撮影項目に応じて撮影部位・施工状況のドロップダウンリストが変わる。
P14: 必要に応じて手入力する。（注１）
I16: 寸法、規格 表示マーク | N16: ← | O16: 寸法、規格 表示マーク | P16: 必要に応じて手入力する。
P17: 材料検収の細目はその他に記載すると良い。
I18: 撮影時期 | J18: =IF(OFFSET(J18,-11,0)="","",TODAY()) ->  | N18: ← | O18: 撮影時期 | P18: 今日の日付(=today())を入れてある。撮影日が１月１日なら1/1と手入力する。異なる日付は手入力する。連続挿入で撮影日付を自動入力。
I19: 立会者名 受注者名 | N19: ← | O19: 立会者名 受注者名 | P19: ※下段の立会者受注者名(入力)の項目に各担当者名を入力するとドロップダウンに反映する。
P20: 必要に応じて手入力する。
I21: その他 | N21: ← | O21: その他 | P21: 必要に応じて手入力する。
P22: 工事黒板の文字はサービス版程度のサイズでは識別できないため、簡潔に同じ内容を記載すると良い。
O23: 画像貼付 | P23: 工事記録写真台帳は監督職員宛てに進捗報告をメール送付するため画像のリンク付け保存はしない仕様。
P24: パソコン：Ａ．【画像１枚ごと】余白と書かれたセルをダブルクリックすると画像選択の窓が開き、写真が貼り付く。
P25: Ｂ．【フォルダ内画像の連続選択（１）】連続挿入ボタンをクリック。
B26: =OFFSET(B26,-20,0)+1 -> 2 | M26: =IF(OFFSET(M26,1,-3)="","",OFFSET(M26,1,-3)) ->  | P26: Ｃ．【フォルダ内画像の連続選択（２）】[メニュー：表示]、マクロ、マクロの表示、連続画像挿入、実行。
B27: 余 白 | I27: 工 事 名 | J27: =IF(OFFSET(J27,-20,0)="","",OFFSET(J27,-20,0)) ->  | M27: =IF(OFFSET(M26,0,0)="","",OFFSET(M26,0,0)) ->  | P27: マクロで縦向き・横向きどちらの画像も余白内に入る。枠外に出る場合は画像の向きが標準でない場合。
P28: メール添付は１ファイル当たり５ＭＢ(写真約５００枚)以下を目安に別ファイルにすると良い。
I29: 工事種目 | J29: =IF(OFFSET(J29,-2,0)="","",IF(OFFSET(J29,-20,0)="","",OFFSET(J29,-20,0))) ->  | P29: 写真は圧縮する(画素密度を低くする)とファイルサイズが小さくなる。元画像は細部確認用で削除不可。
P30: 画素密度96ppiはディスプレイで確認する程度であれば問題ない。印刷は粗い程度で実用範囲。
I31: 撮影項目 | J31: =IF(OFFSET(J31,-4,0)="","",IF(OFFSET(J31,-20,0)="","",OFFSET(J31,-20,0))) ->  | P31: 圧縮手順１：Ctrl+G、Alt+S、B、Enter、Alt+JP、M、E、Enter、ESC
P32: 圧縮手順２：[メニュー：ホーム]、検索と選択、ジャンプ、セル選択、オブジェクト、ＯＫ、
I33: 撮影部位 施工状況 | J33: =IF(OFFSET(J33,-6,0)="","",IF(OFFSET(J33,-20,0)="","",OFFSET(J33,-20,0))) ->  | P33: [メニュー：図の形式]、図の圧縮、電子メール用、ＯＫ
P34: スマホ ：スマホ用エクセルはマクロが使えないため、エクセルのメニューで挿入を選び、スマホ内の写真を
P35: 貼付して大まかにサイズ調整後、保存する。ＰＣに本ファイルを転送して最終調整後に印刷する。
I36: 寸法、規格 表示マーク | J36: =IF(OFFSET(J36,-9,0)="","",IF(OFFSET(J36,-20,0)="","",OFFSET(J36,-20,0))) ->  | O36: その他 | P36: ※ドロップダウンリストから選択した項目はすべて手入力で修正可能。
P37: ※工事ごとや工種ごとにシートをコピーして使用すると管理しやすい。
I38: 撮影時期 | J38: =IF(OFFSET(J38,-11,0)="","",TODAY()) ->  | P38: 写真枚数が多い場合は２ページ以降をページ単位で行コピーして、ページ数を増やす。
I39: 立会者名 受注者名 | J39: =IF(OFFSET(J39,-12,0)="","",IF(OFFSET(J39,-20,0)="","",OFFSET(J39,-20,0))) ->  | P39: ※貼付画像はメール送付を前提にリンク付き画像にしていないため、添付ファイルの制限内に留めておくと良い。
P40: ※１００％印刷に合わせて行の高さ＝１４に固定。改ページの挿入は不要。収まらない場合は％指定で縮小すると良い。
I41: その他 | J41: =IF(OFFSET(J41,-14,0)="","",IF(OFFSET(J41,-20,0)="","",OFFSET(J41,-20,0))) ->  | P41: ※【重要】マクロ読込時に各種書式を記憶して起動する。編集中に行幅・行高等を変更してマクロ実行する
P42: とエラーが起きる。
P43: ※縦長画像は画像の向きが標準なら自動で枠内に収まる。枠からはみ出る場合は向きが標準以外のため手動で修正する。
P44: ※写真を貼付時のマクロエラーはファイルを一度保存してから再度開いて回避する。
P45: （注１）上段の項目内容に連動して下層の内容を表示するため、手入力後は次の階層は表示しない。
B46: =OFFSET(B46,-20,0)+1 -> 3 | M46: =IF(OFFSET(M46,1,-3)="","",OFFSET(M46,1,-3)) -> 
B47: 余 白 | I47: 工 事 名 | J47: =IF(OFFSET(J47,-20,0)="","",OFFSET(J47,-20,0)) ->  | M47: =IF(OFFSET(M46,0,0)="","",OFFSET(M46,0,0)) -> 
O48: ※立会者名受注者名(入力用)
I49: 工事種目 | J49: =IF(OFFSET(J49,-2,0)="","",IF(OFFSET(J49,-20,0)="","",OFFSET(J49,-20,0))) ->  | O49: 発注者名1 | P49: 発注者監督職員(建築)１ | Q49: 発注者監督職員(建築)１
O50: 発注者名2 | P50: 発注者監督職員(建築)２ | Q50: 発注者監督職員(建築)２
I51: 撮影項目 | J51: =IF(OFFSET(J51,-4,0)="","",IF(OFFSET(J51,-20,0)="","",OFFSET(J51,-20,0))) ->  | O51: 発注者名3 | P51: 発注者監督職員(電気)１ | Q51: 発注者監督職員(電気)１
O52: 発注者名4 | P52: 発注者監督職員(電気)２ | Q52: 発注者監督職員(電気)２
I53: 撮影部位 施工状況 | J53: =IF(OFFSET(J53,-6,0)="","",IF(OFFSET(J53,-20,0)="","",OFFSET(J53,-20,0))) ->  | O53: 発注者名5 | P53: 発注者監督職員(機械)１ | Q53: 発注者監督職員(機械)１
O54: 発注者名6 | P54: 発注者監督職員(機械)２ | Q54: 発注者監督職員(機械)２
O55: 監理委託1 | P55: 監理委託設計事務所(建築)１ | Q55: 監理委託設計事務所(建築)１
I56: 寸法、規格 表示マーク | J56: =IF(OFFSET(J56,-9,0)="","",IF(OFFSET(J56,-20,0)="","",OFFSET(J56,-20,0))) ->  | O56: 監理委託2 | P56: 監理委託設計事務所(建築)２ | Q56: 監理委託設計事務所(建築)２
O57: 監理委託3 | P57: 監理委託設計事務所(電気)１ | Q57: 監理委託設計事務所(電気)１
I58: 撮影時期 | J58: =IF(OFFSET(J58,-11,0)="","",TODAY()) ->  | O58: 監理委託4 | P58: 監理委託設計事務所(電気)２ | Q58: 監理委託設計事務所(電気)２
I59: 立会者名 受注者名 | J59: =IF(OFFSET(J59,-12,0)="","",IF(OFFSET(J59,-20,0)="","",OFFSET(J59,-20,0))) ->  | O59: 監理委託5 | P59: 監理委託設計事務所(機械)１ | Q59: 監理委託設計事務所(機械)１
O60: 監理委託6 | P60: 監理委託設計事務所(機械)２ | Q60: 監理委託設計事務所(機械)２
I61: その他 | J61: =IF(OFFSET(J61,-14,0)="","",IF(OFFSET(J61,-20,0)="","",OFFSET(J61,-20,0))) ->  | O61: 受注者名1 | P61: 受注者建築担当者名１ | Q61: 受注者建築担当者名１
O62: 受注者名2 | P62: 受注者建築担当者名２ | Q62: 受注者建築担当者名２
O63: 受注者名3 | P63: 受注者電気担当者名１ | Q63: 受注者電気担当者名１
O64: 受注者名4 | P64: 受注者電気担当者名２ | Q64: 受注者電気担当者名２
O65: 受注者名5 | P65: 受注者機械担当者名１ | Q65: 受注者機械担当者名１
B66: =OFFSET(B66,-20,0)+1 -> 4 | M66: =IF(OFFSET(M66,1,-3)="","",OFFSET(M66,1,-3)) ->  | O66: 受注者名6 | P66: 受注者機械担当者名２ | Q66: 受注者機械担当者名２
B67: 余 白 | I67: 工 事 名 | J67: =IF(OFFSET(J67,-20,0)="","",OFFSET(J67,-20,0)) ->  | M67: =IF(OFFSET(M66,0,0)="","",OFFSET(M66,0,0)) -> 
O68: 立会者名受注者名(ドロップダウン表示用)
I69: 工事種目 | J69: =IF(OFFSET(J69,-2,0)="","",IF(OFFSET(J69,-20,0)="","",OFFSET(J69,-20,0))) ->  | O69: 1 | P69: =$P$61 -> 受注者建築担当者名１
O70: 2 | P70: =$P$62 -> 受注者建築担当者名２
I71: 撮影項目 | J71: =IF(OFFSET(J71,-4,0)="","",IF(OFFSET(J71,-20,0)="","",OFFSET(J71,-20,0))) ->  | O71: 3 | P71: =$P$63 -> 受注者電気担当者名１
O72: 4 | P72: =$P$64 -> 受注者電気担当者名２
I73: 撮影部位 施工状況 | J73: =IF(OFFSET(J73,-6,0)="","",IF(OFFSET(J73,-20,0)="","",OFFSET(J73,-20,0))) ->  | O73: 5 | P73: =$P$65 -> 受注者機械担当者名１
O74: 6 | P74: =$P$66 -> 受注者機械担当者名２
O75: 7 | P75: =$P$49&"、"&$P$55&"、"&$P$61 -> 発注者監督職員(建築)１、監理委託設計事務所(建築)１、受注者建築担当者名１
I76: 寸法、規格 表示マーク | J76: =IF(OFFSET(J76,-9,0)="","",IF(OFFSET(J76,-20,0)="","",OFFSET(J76,-20,0))) ->  | O76: 8 | P76: =$P$49&"、"&$P$55&"、"&$P$62 -> 発注者監督職員(建築)１、監理委託設計事務所(建築)１、受注者建築担当者名２
O77: 9 | P77: =$P$49&"、"&$P$55&"、"&$P$63 -> 発注者監督職員(建築)１、監理委託設計事務所(建築)１、受注者電気担当者名１
I78: 撮影時期 | J78: =IF(OFFSET(J78,-11,0)="","",TODAY()) ->  | O78: 10 | P78: =$P$49&"、"&$P$55&"、"&$P$64 -> 発注者監督職員(建築)１、監理委託設計事務所(建築)１、受注者電気担当者名２
I79: 立会者名 受注者名 | J79: =IF(OFFSET(J79,-12,0)="","",IF(OFFSET(J79,-20,0)="","",OFFSET(J79,-20,0))) ->  | O79: 11 | P79: =$P$49&"、"&$P$55&"、"&$P$65 -> 発注者監督職員(建築)１、監理委託設計事務所(建築)１、受注者機械担当者名１
O80: 12 | P80: =$P$49&"、"&$P$55&"、"&$P$66 -> 発注者監督職員(建築)１、監理委託設計事務所(建築)１、受注者機械担当者名２
I81: その他 | J81: =IF(OFFSET(J81,-14,0)="","",IF(OFFSET(J81,-20,0)="","",OFFSET(J81,-20,0))) ->  | O81: 13 | P81: =$P$49&"、"&$P$55 -> 発注者監督職員(建築)１、監理委託設計事務所(建築)１
O82: 14 | P82: =$P$49&"、"&$P$56&"、"&$P$61 -> 発注者監督職員(建築)１、監理委託設計事務所(建築)２、受注者建築担当者名１
O83: 15 | P83: =$P$49&"、"&$P$56&"、"&$P$62 -> 発注者監督職員(建築)１、監理委託設計事務所(建築)２、受注者建築担当者名２
O84: 16 | P84: =$P$49&"、"&$P$56&"、"&$P$63 -> 発注者監督職員(建築)１、監理委託設計事務所(建築)２、受注者電気担当者名１
O85: 17 | P85: =$P$49&"、"&$P$56&"、"&$P$64 -> 発注者監督職員(建築)１、監理委託設計事務所(建築)２、受注者電気担当者名２
B86: =OFFSET(B86,-20,0)+1 -> 5 | M86: =IF(OFFSET(M86,1,-3)="","",OFFSET(M86,1,-3)) ->  | O86: 18 | P86: =$P$49&"、"&$P$56&"、"&$P$65 -> 発注者監督職員(建築)１、監理委託設計事務所(建築)２、受注者機械担当者名１
B87: 余 白 | I87: 工 事 名 | J87: =IF(OFFSET(J87,-20,0)="","",OFFSET(J87,-20,0)) ->  | M87: =IF(OFFSET(M86,0,0)="","",OFFSET(M86,0,0)) ->  | O87: 19 | P87: =$P$49&"、"&$P$56&"、"&$P$66 -> 発注者監督職員(建築)１、監理委託設計事務所(建築)２、受注者機械担当者名２
O88: 20 | P88: =$P$49&"、"&$P$56 -> 発注者監督職員(建築)１、監理委託設計事務所(建築)２
I89: 工事種目 | J89: =IF(OFFSET(J89,-2,0)="","",IF(OFFSET(J89,-20,0)="","",OFFSET(J89,-20,0))) ->  | O89: 21 | P89: =$P$49&"、"&$P$57&"、"&$P$61 -> 発注者監督職員(建築)１、監理委託設計事務所(電気)１、受注者建築担当者名１
O90: 22 | P90: =$P$49&"、"&$P$57&"、"&$P$62 -> 発注者監督職員(建築)１、監理委託設計事務所(電気)１、受注者建築担当者名２
I91: 撮影項目 | J91: =IF(OFFSET(J91,-4,0)="","",IF(OFFSET(J91,-20,0)="","",OFFSET(J91,-20,0))) ->  | O91: 23 | P91: =$P$49&"、"&$P$57&"、"&$P$63 -> 発注者監督職員(建築)１、監理委託設計事務所(電気)１、受注者電気担当者名１
O92: 24 | P92: =$P$49&"、"&$P$57&"、"&$P$64 -> 発注者監督職員(建築)１、監理委託設計事務所(電気)１、受注者電気担当者名２
I93: 撮影部位 施工状況 | J93: =IF(OFFSET(J93,-6,0)="","",IF(OFFSET(J93,-20,0)="","",OFFSET(J93,-20,0))) ->  | O93: 25 | P93: =$P$49&"、"&$P$57&"、"&$P$65 -> 発注者監督職員(建築)１、監理委託設計事務所(電気)１、受注者機械担当者名１
O94: 26 | P94: =$P$49&"、"&$P$57&"、"&$P$66 -> 発注者監督職員(建築)１、監理委託設計事務所(電気)１、受注者機械担当者名２
O95: 27 | P95: =$P$49&"、"&$P$57 -> 発注者監督職員(建築)１、監理委託設計事務所(電気)１
I96: 寸法、規格 表示マーク | J96: =IF(OFFSET(J96,-9,0)="","",IF(OFFSET(J96,-20,0)="","",OFFSET(J96,-20,0))) ->  | O96: 28 | P96: =$P$49&"、"&$P$58&"、"&$P$61 -> 発注者監督職員(建築)１、監理委託設計事務所(電気)２、受注者建築担当者名１
O97: 29 | P97: =$P$49&"、"&$P$58&"、"&$P$62 -> 発注者監督職員(建築)１、監理委託設計事務所(電気)２、受注者建築担当者名２
I98: 撮影時期 | J98: =IF(OFFSET(J98,-11,0)="","",TODAY()) ->  | O98: 30 | P98: =$P$49&"、"&$P$58&"、"&$P$63 -> 発注者監督職員(建築)１、監理委託設計事務所(電気)２、受注者電気担当者名１
I99: 立会者名 受注者名 | J99: =IF(OFFSET(J99,-12,0)="","",IF(OFFSET(J99,-20,0)="","",OFFSET(J99,-20,0))) ->  | O99: 31 | P99: =$P$49&"、"&$P$58&"、"&$P$64 -> 発注者監督職員(建築)１、監理委託設計事務所(電気)２、受注者電気担当者名２
O100: 32 | P100: =$P$49&"、"&$P$58&"、"&$P$65 -> 発注者監督職員(建築)１、監理委託設計事務所(電気)２、受注者機械担当者名１
I101: その他 | J101: =IF(OFFSET(J101,-14,0)="","",IF(OFFSET(J101,-20,0)="","",OFFSET(J101,-20,0))) ->  | O101: 33 | P101: =$P$49&"、"&$P$58&"、"&$P$66 -> 発注者監督職員(建築)１、監理委託設計事務所(電気)２、受注者機械担当者名２
O102: 34 | P102: =$P$49&"、"&$P$58 -> 発注者監督職員(建築)１、監理委託設計事務所(電気)２
O103: 35 | P103: =$P$49&"、"&$P$59&"、"&$P$61 -> 発注者監督職員(建築)１、監理委託設計事務所(機械)１、受注者建築担当者名１
O104: 36 | P104: =$P$49&"、"&$P$59&"、"&$P$62 -> 発注者監督職員(建築)１、監理委託設計事務所(機械)１、受注者建築担当者名２
O105: 37 | P105: =$P$49&"、"&$P$59&"、"&$P$63 -> 発注者監督職員(建築)１、監理委託設計事務所(機械)１、受注者電気担当者名１
B106: =OFFSET(B106,-20,0)+1 -> 6 | M106: =IF(OFFSET(M106,1,-3)="","",OFFSET(M106,1,-3)) ->  | O106: 38 | P106: =$P$49&"、"&$P$59&"、"&$P$64 -> 発注者監督職員(建築)１、監理委託設計事務所(機械)１、受注者電気担当者名２
B107: 余 白 | I107: 工 事 名 | J107: =IF(OFFSET(J107,-20,0)="","",OFFSET(J107,-20,0)) ->  | M107: =IF(OFFSET(M106,0,0)="","",OFFSET(M106,0,0)) ->  | O107: 39 | P107: =$P$49&"、"&$P$59&"、"&$P$65 -> 発注者監督職員(建築)１、監理委託設計事務所(機械)１、受注者機械担当者名１
O108: 40 | P108: =$P$49&"、"&$P$59&"、"&$P$66 -> 発注者監督職員(建築)１、監理委託設計事務所(機械)１、受注者機械担当者名２
I109: 工事種目 | J109: =IF(OFFSET(J109,-2,0)="","",IF(OFFSET(J109,-20,0)="","",OFFSET(J109,-20,0))) ->  | O109: 41 | P109: =$P$49&"、"&$P$59 -> 発注者監督職員(建築)１、監理委託設計事務所(機械)１
O110: 42 | P110: =$P$49&"、"&$P$60&"、"&$P$61 -> 発注者監督職員(建築)１、監理委託設計事務所(機械)２、受注者建築担当者名１
I111: 撮影項目 | J111: =IF(OFFSET(J111,-4,0)="","",IF(OFFSET(J111,-20,0)="","",OFFSET(J111,-20,0))) ->  | O111: 43 | P111: =$P$49&"、"&$P$60&"、"&$P$62 -> 発注者監督職員(建築)１、監理委託設計事務所(機械)２、受注者建築担当者名２
O112: 44 | P112: =$P$49&"、"&$P$60&"、"&$P$63 -> 発注者監督職員(建築)１、監理委託設計事務所(機械)２、受注者電気担当者名１
I113: 撮影部位 施工状況 | J113: =IF(OFFSET(J113,-6,0)="","",IF(OFFSET(J113,-20,0)="","",OFFSET(J113,-20,0))) ->  | O113: 45 | P113: =$P$49&"、"&$P$60&"、"&$P$64 -> 発注者監督職員(建築)１、監理委託設計事務所(機械)２、受注者電気担当者名２
O114: 46 | P114: =$P$49&"、"&$P$60&"、"&$P$65 -> 発注者監督職員(建築)１、監理委託設計事務所(機械)２、受注者機械担当者名１
O115: 47 | P115: =$P$49&"、"&$P$60&"、"&$P$66 -> 発注者監督職員(建築)１、監理委託設計事務所(機械)２、受注者機械担当者名２
I116: 寸法、規格 表示マーク | J116: =IF(OFFSET(J116,-9,0)="","",IF(OFFSET(J116,-20,0)="","",OFFSET(J116,-20,0))) ->  | O116: 48 | P116: =$P$49&"、"&$P$60 -> 発注者監督職員(建築)１、監理委託設計事務所(機械)２
O117: 49 | P117: =$P$49&"、"&$P$61 -> 発注者監督職員(建築)１、受注者建築担当者名１
I118: 撮影時期 | J118: =IF(OFFSET(J118,-11,0)="","",TODAY()) ->  | O118: 50 | P118: =$P$49&"、"&$P$62 -> 発注者監督職員(建築)１、受注者建築担当者名２
I119: 立会者名 受注者名 | J119: =IF(OFFSET(J119,-12,0)="","",IF(OFFSET(J119,-20,0)="","",OFFSET(J119,-20,0))) ->  | O119: 51 | P119: =$P$49&"、"&$P$63 -> 発注者監督職員(建築)１、受注者電気担当者名１
O120: 52 | P120: =$P$49&"、"&$P$64 -> 発注者監督職員(建築)１、受注者電気担当者名２
I121: その他 | J121: =IF(OFFSET(J121,-14,0)="","",IF(OFFSET(J121,-20,0)="","",OFFSET(J121,-20,0))) ->  | O121: 53 | P121: =$P$49&"、"&$P$65 -> 発注者監督職員(建築)１、受注者機械担当者名１
O122: 54 | P122: =$P$49&"、"&$P$66 -> 発注者監督職員(建築)１、受注者機械担当者名２
O123: 55 | P123: =$P$49 -> 発注者監督職員(建築)１
O124: 56 | P124: =$P$50&"、"&$P$55&"、"&$P$61 -> 発注者監督職員(建築)２、監理委託設計事務所(建築)１、受注者建築担当者名１
O125: 57 | P125: =$P$50&"、"&$P$55&"、"&$P$62 -> 発注者監督職員(建築)２、監理委託設計事務所(建築)１、受注者建築担当者名２
B126: =OFFSET(B126,-20,0)+1 -> 7 | M126: =IF(OFFSET(M126,1,-3)="","",OFFSET(M126,1,-3)) ->  | O126: 58 | P126: =$P$50&"、"&$P$55&"、"&$P$63 -> 発注者監督職員(建築)２、監理委託設計事務所(建築)１、受注者電気担当者名１
B127: 余 白 | I127: 工 事 名 | J127: =IF(OFFSET(J127,-20,0)="","",OFFSET(J127,-20,0)) ->  | M127: =IF(OFFSET(M126,0,0)="","",OFFSET(M126,0,0)) ->  | O127: 59 | P127: =$P$50&"、"&$P$55&"、"&$P$64 -> 発注者監督職員(建築)２、監理委託設計事務所(建築)１、受注者電気担当者名２
O128: 60 | P128: =$P$50&"、"&$P$55&"、"&$P$65 -> 発注者監督職員(建築)２、監理委託設計事務所(建築)１、受注者機械担当者名１
I129: 工事種目 | J129: =IF(OFFSET(J129,-2,0)="","",IF(OFFSET(J129,-20,0)="","",OFFSET(J129,-20,0))) ->  | O129: 61 | P129: =$P$50&"、"&$P$55&"、"&$P$66 -> 発注者監督職員(建築)２、監理委託設計事務所(建築)１、受注者機械担当者名２
O130: 62 | P130: =$P$50&"、"&$P$55 -> 発注者監督職員(建築)２、監理委託設計事務所(建築)１
I131: 撮影項目 | J131: =IF(OFFSET(J131,-4,0)="","",IF(OFFSET(J131,-20,0)="","",OFFSET(J131,-20,0))) ->  | O131: 63 | P131: =$P$50&"、"&$P$56&"、"&$P$61 -> 発注者監督職員(建築)２、監理委託設計事務所(建築)２、受注者建築担当者名１
O132: 64 | P132: =$P$50&"、"&$P$56&"、"&$P$62 -> 発注者監督職員(建築)２、監理委託設計事務所(建築)２、受注者建築担当者名２
I133: 撮影部位 施工状況 | J133: =IF(OFFSET(J133,-6,0)="","",IF(OFFSET(J133,-20,0)="","",OFFSET(J133,-20,0))) ->  | O133: 65 | P133: =$P$50&"、"&$P$56&"、"&$P$63 -> 発注者監督職員(建築)２、監理委託設計事務所(建築)２、受注者電気担当者名１
O134: 66 | P134: =$P$50&"、"&$P$56&"、"&$P$64 -> 発注者監督職員(建築)２、監理委託設計事務所(建築)２、受注者電気担当者名２
O135: 67 | P135: =$P$50&"、"&$P$56&"、"&$P$65 -> 発注者監督職員(建築)２、監理委託設計事務所(建築)２、受注者機械担当者名１
I136: 寸法、規格 表示マーク | J136: =IF(OFFSET(J136,-9,0)="","",IF(OFFSET(J136,-20,0)="","",OFFSET(J136,-20,0))) ->  | O136: 68 | P136: =$P$50&"、"&$P$56&"、"&$P$66 -> 発注者監督職員(建築)２、監理委託設計事務所(建築)２、受注者機械担当者名２
O137: 69 | P137: =$P$50&"、"&$P$56 -> 発注者監督職員(建築)２、監理委託設計事務所(建築)２
I138: 撮影時期 | J138: =IF(OFFSET(J138,-11,0)="","",TODAY()) ->  | O138: 70 | P138: =$P$50&"、"&$P$57&"、"&$P$61 -> 発注者監督職員(建築)２、監理委託設計事務所(電気)１、受注者建築担当者名１
I139: 立会者名 受注者名 | J139: =IF(OFFSET(J139,-12,0)="","",IF(OFFSET(J139,-20,0)="","",OFFSET(J139,-20,0))) ->  | O139: 71 | P139: =$P$50&"、"&$P$57&"、"&$P$62 -> 発注者監督職員(建築)２、監理委託設計事務所(電気)１、受注者建築担当者名２
O140: 72 | P140: =$P$50&"、"&$P$57&"、"&$P$63 -> 発注者監督職員(建築)２、監理委託設計事務所(電気)１、受注者電気担当者名１
I141: その他 | J141: =IF(OFFSET(J141,-14,0)="","",IF(OFFSET(J141,-20,0)="","",OFFSET(J141,-20,0))) ->  | O141: 73 | P141: =$P$50&"、"&$P$57&"、"&$P$64 -> 発注者監督職員(建築)２、監理委託設計事務所(電気)１、受注者電気担当者名２
O142: 74 | P142: =$P$50&"、"&$P$57&"、"&$P$65 -> 発注者監督職員(建築)２、監理委託設計事務所(電気)１、受注者機械担当者名１
O143: 75 | P143: =$P$50&"、"&$P$57&"、"&$P$66 -> 発注者監督職員(建築)２、監理委託設計事務所(電気)１、受注者機械担当者名２
O144: 76 | P144: =$P$50&"、"&$P$57 -> 発注者監督職員(建築)２、監理委託設計事務所(電気)１
O145: 77 | P145: =$P$50&"、"&$P$58&"、"&$P$61 -> 発注者監督職員(建築)２、監理委託設計事務所(電気)２、受注者建築担当者名１
B146: =OFFSET(B146,-20,0)+1 -> 8 | M146: =IF(OFFSET(M146,1,-3)="","",OFFSET(M146,1,-3)) ->  | O146: 78 | P146: =$P$50&"、"&$P$58&"、"&$P$62 -> 発注者監督職員(建築)２、監理委託設計事務所(電気)２、受注者建築担当者名２
B147: 余 白 | I147: 工 事 名 | J147: =IF(OFFSET(J147,-20,0)="","",OFFSET(J147,-20,0)) ->  | M147: =IF(OFFSET(M146,0,0)="","",OFFSET(M146,0,0)) ->  | O147: 79 | P147: =$P$50&"、"&$P$58&"、"&$P$63 -> 発注者監督職員(建築)２、監理委託設計事務所(電気)２、受注者電気担当者名１
O148: 80 | P148: =$P$50&"、"&$P$58&"、"&$P$64 -> 発注者監督職員(建築)２、監理委託設計事務所(電気)２、受注者電気担当者名２
I149: 工事種目 | J149: =IF(OFFSET(J149,-2,0)="","",IF(OFFSET(J149,-20,0)="","",OFFSET(J149,-20,0))) ->  | O149: 81 | P149: =$P$50&"、"&$P$58&"、"&$P$65 -> 発注者監督職員(建築)２、監理委託設計事務所(電気)２、受注者機械担当者名１
O150: 82 | P150: =$P$50&"、"&$P$58&"、"&$P$66 -> 発注者監督職員(建築)２、監理委託設計事務所(電気)２、受注者機械担当者名２
I151: 撮影項目 | J151: =IF(OFFSET(J151,-4,0)="","",IF(OFFSET(J151,-20,0)="","",OFFSET(J151,-20,0))) ->  | O151: 83 | P151: =$P$50&"、"&$P$58 -> 発注者監督職員(建築)２、監理委託設計事務所(電気)２
O152: 84 | P152: =$P$50&"、"&$P$59&"、"&$P$61 -> 発注者監督職員(建築)２、監理委託設計事務所(機械)１、受注者建築担当者名１
I153: 撮影部位 施工状況 | J153: =IF(OFFSET(J153,-6,0)="","",IF(OFFSET(J153,-20,0)="","",OFFSET(J153,-20,0))) ->  | O153: 85 | P153: =$P$50&"、"&$P$59&"、"&$P$62 -> 発注者監督職員(建築)２、監理委託設計事務所(機械)１、受注者建築担当者名２
O154: 86 | P154: =$P$50&"、"&$P$59&"、"&$P$63 -> 発注者監督職員(建築)２、監理委託設計事務所(機械)１、受注者電気担当者名１
O155: 87 | P155: =$P$50&"、"&$P$59&"、"&$P$64 -> 発注者監督職員(建築)２、監理委託設計事務所(機械)１、受注者電気担当者名２
I156: 寸法、規格 表示マーク | J156: =IF(OFFSET(J156,-9,0)="","",IF(OFFSET(J156,-20,0)="","",OFFSET(J156,-20,0))) ->  | O156: 88 | P156: =$P$50&"、"&$P$59&"、"&$P$65 -> 発注者監督職員(建築)２、監理委託設計事務所(機械)１、受注者機械担当者名１
O157: 89 | P157: =$P$50&"、"&$P$59&"、"&$P$66 -> 発注者監督職員(建築)２、監理委託設計事務所(機械)１、受注者機械担当者名２
I158: 撮影時期 | J158: =TODAY() -> 2023-07-29 | O158: 90 | P158: =$P$50&"、"&$P$59 -> 発注者監督職員(建築)２、監理委託設計事務所(機械)１
I159: 立会者名 受注者名 | J159: =IF(OFFSET(J159,-12,0)="","",IF(OFFSET(J159,-20,0)="","",OFFSET(J159,-20,0))) ->  | O159: 91 | P159: =$P$50&"、"&$P$60&"、"&$P$61 -> 発注者監督職員(建築)２、監理委託設計事務所(機械)２、受注者建築担当者名１
O160: 92 | P160: =$P$50&"、"&$P$60&"、"&$P$62 -> 発注者監督職員(建築)２、監理委託設計事務所(機械)２、受注者建築担当者名２
I161: その他 | J161: =IF(OFFSET(J161,-14,0)="","",IF(OFFSET(J161,-20,0)="","",OFFSET(J161,-20,0))) ->  | O161: 93 | P161: =$P$50&"、"&$P$60&"、"&$P$63 -> 発注者監督職員(建築)２、監理委託設計事務所(機械)２、受注者電気担当者名１
O162: 94 | P162: =$P$50&"、"&$P$60&"、"&$P$64 -> 発注者監督職員(建築)２、監理委託設計事務所(機械)２、受注者電気担当者名２
O163: 95 | P163: =$P$50&"、"&$P$60&"、"&$P$65 -> 発注者監督職員(建築)２、監理委託設計事務所(機械)２、受注者機械担当者名１
O164: 96 | P164: =$P$50&"、"&$P$60&"、"&$P$66 -> 発注者監督職員(建築)２、監理委託設計事務所(機械)２、受注者機械担当者名２
O165: 97 | P165: =$P$50&"、"&$P$60 -> 発注者監督職員(建築)２、監理委託設計事務所(機械)２
B166: =OFFSET(B166,-20,0)+1 -> 9 | M166: =IF(OFFSET(M166,1,-3)="","",OFFSET(M166,1,-3)) ->  | O166: 98 | P166: =$P$50&"、"&$P$61 -> 発注者監督職員(建築)２、受注者建築担当者名１
B167: 余 白 | I167: 工 事 名 | J167: =IF(OFFSET(J167,-20,0)="","",OFFSET(J167,-20,0)) ->  | M167: =IF(OFFSET(M166,0,0)="","",OFFSET(M166,0,0)) ->  | O167: 99 | P167: =$P$50&"、"&$P$62 -> 発注者監督職員(建築)２、受注者建築担当者名２
O168: 100 | P168: =$P$50&"、"&$P$63 -> 発注者監督職員(建築)２、受注者電気担当者名１
I169: 工事種目 | J169: =IF(OFFSET(J169,-2,0)="","",IF(OFFSET(J169,-20,0)="","",OFFSET(J169,-20,0))) ->  | O169: 101 | P169: =$P$50&"、"&$P$64 -> 発注者監督職員(建築)２、受注者電気担当者名２
O170: 102 | P170: =$P$50&"、"&$P$65 -> 発注者監督職員(建築)２、受注者機械担当者名１
I171: 撮影項目 | J171: =IF(OFFSET(J171,-4,0)="","",IF(OFFSET(J171,-20,0)="","",OFFSET(J171,-20,0))) ->  | O171: 103 | P171: =$P$50&"、"&$P$66 -> 発注者監督職員(建築)２、受注者機械担当者名２
O172: 104 | P172: =$P$50 -> 発注者監督職員(建築)２
I173: 撮影部位 施工状況 | J173: =IF(OFFSET(J173,-6,0)="","",IF(OFFSET(J173,-20,0)="","",OFFSET(J173,-20,0))) ->  | O173: 105 | P173: =$P$51&"、"&$P$55&"、"&$P$61 -> 発注者監督職員(電気)１、監理委託設計事務所(建築)１、受注者建築担当者名１
O174: 106 | P174: =$P$51&"、"&$P$55&"、"&$P$62 -> 発注者監督職員(電気)１、監理委託設計事務所(建築)１、受注者建築担当者名２
O175: 107 | P175: =$P$51&"、"&$P$55&"、"&$P$63 -> 発注者監督職員(電気)１、監理委託設計事務所(建築)１、受注者電気担当者名１
I176: 寸法、規格 表示マーク | J176: =IF(OFFSET(J176,-9,0)="","",IF(OFFSET(J176,-20,0)="","",OFFSET(J176,-20,0))) ->  | O176: 108 | P176: =$P$51&"、"&$P$55&"、"&$P$64 -> 発注者監督職員(電気)１、監理委託設計事務所(建築)１、受注者電気担当者名２
O177: 109 | P177: =$P$51&"、"&$P$55&"、"&$P$65 -> 発注者監督職員(電気)１、監理委託設計事務所(建築)１、受注者機械担当者名１
I178: 撮影時期 | J178: =IF(OFFSET(J178,-11,0)="","",TODAY()) ->  | O178: 110 | P178: =$P$51&"、"&$P$55&"、"&$P$66 -> 発注者監督職員(電気)１、監理委託設計事務所(建築)１、受注者機械担当者名２
I179: 立会者名 受注者名 | J179: =IF(OFFSET(J179,-12,0)="","",IF(OFFSET(J179,-20,0)="","",OFFSET(J179,-20,0))) ->  | O179: 111 | P179: =$P$51&"、"&$P$55 -> 発注者監督職員(電気)１、監理委託設計事務所(建築)１
O180: 112 | P180: =$P$51&"、"&$P$56&"、"&$P$61 -> 発注者監督職員(電気)１、監理委託設計事務所(建築)２、受注者建築担当者名１
I181: その他 | J181: =IF(OFFSET(J181,-14,0)="","",IF(OFFSET(J181,-20,0)="","",OFFSET(J181,-20,0))) ->  | O181: 113 | P181: =$P$51&"、"&$P$56&"、"&$P$62 -> 発注者監督職員(電気)１、監理委託設計事務所(建築)２、受注者建築担当者名２
O182: 114 | P182: =$P$51&"、"&$P$56&"、"&$P$63 -> 発注者監督職員(電気)１、監理委託設計事務所(建築)２、受注者電気担当者名１
O183: 115 | P183: =$P$51&"、"&$P$56&"、"&$P$64 -> 発注者監督職員(電気)１、監理委託設計事務所(建築)２、受注者電気担当者名２
O184: 116 | P184: =$P$51&"、"&$P$56&"、"&$P$65 -> 発注者監督職員(電気)１、監理委託設計事務所(建築)２、受注者機械担当者名１
O185: 117 | P185: =$P$51&"、"&$P$56&"、"&$P$66 -> 発注者監督職員(電気)１、監理委託設計事務所(建築)２、受注者機械担当者名２
B186: =OFFSET(B186,-20,0)+1 -> 10 | M186: =IF(OFFSET(M186,1,-3)="","",OFFSET(M186,1,-3)) ->  | O186: 118 | P186: =$P$51&"、"&$P$56 -> 発注者監督職員(電気)１、監理委託設計事務所(建築)２
B187: 余 白 | I187: 工 事 名 | J187: =IF(OFFSET(J187,-20,0)="","",OFFSET(J187,-20,0)) ->  | M187: =IF(OFFSET(M186,0,0)="","",OFFSET(M186,0,0)) ->  | O187: 119 | P187: =$P$51&"、"&$P$57&"、"&$P$61 -> 発注者監督職員(電気)１、監理委託設計事務所(電気)１、受注者建築担当者名１
O188: 120 | P188: =$P$51&"、"&$P$57&"、"&$P$62 -> 発注者監督職員(電気)１、監理委託設計事務所(電気)１、受注者建築担当者名２
I189: 工事種目 | J189: =IF(OFFSET(J189,-2,0)="","",IF(OFFSET(J189,-20,0)="","",OFFSET(J189,-20,0))) ->  | O189: 121 | P189: =$P$51&"、"&$P$57&"、"&$P$63 -> 発注者監督職員(電気)１、監理委託設計事務所(電気)１、受注者電気担当者名１
O190: 122 | P190: =$P$51&"、"&$P$57&"、"&$P$64 -> 発注者監督職員(電気)１、監理委託設計事務所(電気)１、受注者電気担当者名２
I191: 撮影項目 | J191: =IF(OFFSET(J191,-4,0)="","",IF(OFFSET(J191,-20,0)="","",OFFSET(J191,-20,0))) ->  | O191: 123 | P191: =$P$51&"、"&$P$57&"、"&$P$65 -> 発注者監督職員(電気)１、監理委託設計事務所(電気)１、受注者機械担当者名１
O192: 124 | P192: =$P$51&"、"&$P$57&"、"&$P$66 -> 発注者監督職員(電気)１、監理委託設計事務所(電気)１、受注者機械担当者名２
I193: 撮影部位 施工状況 | J193: =IF(OFFSET(J193,-6,0)="","",IF(OFFSET(J193,-20,0)="","",OFFSET(J193,-20,0))) ->  | O193: 125 | P193: =$P$51&"、"&$P$57 -> 発注者監督職員(電気)１、監理委託設計事務所(電気)１
O194: 126 | P194: =$P$51&"、"&$P$58&"、"&$P$61 -> 発注者監督職員(電気)１、監理委託設計事務所(電気)２、受注者建築担当者名１
O195: 127 | P195: =$P$51&"、"&$P$58&"、"&$P$62 -> 発注者監督職員(電気)１、監理委託設計事務所(電気)２、受注者建築担当者名２
I196: 寸法、規格 表示マーク | J196: =IF(OFFSET(J196,-9,0)="","",IF(OFFSET(J196,-20,0)="","",OFFSET(J196,-20,0))) ->  | O196: 128 | P196: =$P$51&"、"&$P$58&"、"&$P$63 -> 発注者監督職員(電気)１、監理委託設計事務所(電気)２、受注者電気担当者名１
O197: 129 | P197: =$P$51&"、"&$P$58&"、"&$P$64 -> 発注者監督職員(電気)１、監理委託設計事務所(電気)２、受注者電気担当者名２
I198: 撮影時期 | J198: =IF(OFFSET(J198,-11,0)="","",TODAY()) ->  | O198: 130 | P198: =$P$51&"、"&$P$58&"、"&$P$65 -> 発注者監督職員(電気)１、監理委託設計事務所(電気)２、受注者機械担当者名１
I199: 立会者名 受注者名 | J199: =IF(OFFSET(J199,-12,0)="","",IF(OFFSET(J199,-20,0)="","",OFFSET(J199,-20,0))) ->  | O199: 131 | P199: =$P$51&"、"&$P$58&"、"&$P$66 -> 発注者監督職員(電気)１、監理委託設計事務所(電気)２、受注者機械担当者名２
O200: 132 | P200: =$P$51&"、"&$P$58 -> 発注者監督職員(電気)１、監理委託設計事務所(電気)２
I201: その他 | J201: =IF(OFFSET(J201,-14,0)="","",IF(OFFSET(J201,-20,0)="","",OFFSET(J201,-20,0))) ->  | O201: 133 | P201: =$P$51&"、"&$P$59&"、"&$P$61 -> 発注者監督職員(電気)１、監理委託設計事務所(機械)１、受注者建築担当者名１
... 2052 more rows

Sheet サンプル
O1: 【使い方】 | P1: 「営繕工事写真撮影要領(令和３年版)」の項目を選択することで手入力を必要最低限にしてある。 | Q1: ←１．左のセルをクリックすると▼が現れる。
K2: 新営建築工事 | N2: ← | O2: 工事種別 | P2: 新営建築工事、改修建築工事、電気設備工事、機械設備工事、撤去解体工事、耐震診断調査のいずれかを選択。 | Q2: ２．▼をクリックすると使い方が現れる。
I3: フィルタ(選んでドロップダウン) | P3: 工事種別と工事種目は連動、同じシートで工事種別の混在は可能。既定の入力項目を変更する際は元の工事種別を選択。
P4: iPhone と Android はエクセル(無料)をインストールすると使用可能。一部制限あり(画像貼付欄参照)。
A5: 行の高さ：13.8～13.9、余白：全周1.5cm
B6: 1 | M6: =IF(OFFSET(M6,3,-3)="","",OFFSET(M6,3,-3)) -> 一般共通事項
B7: 余 白 | I7: 工 事 名 | J7: ＡＢＣビル新築工事 | M7: =IF(OFFSET(M6,0,0)="","",OFFSET(M6,0,0)) -> 一般共通事項 | O7: 工 事 名 | P7: 工事名を入力すると、すべての工事名欄に上段と同じ工事名が入る。他の項目も同様。
M8: 一般共通事項 | P8: 写真の貼付が無い場合、当該欄の工事名を削除すると自動入力項目は非表示になり空欄になる。
I9: 工事種目 | J9: 一般共通事項 | M9: 一般共通事項 | O9: 工事種目 | P9: 画面上段の工事種別の枠をクリックして、いずれかを選ぶ。
M10: 一般共通事項 | P10: 選択した工事種別に応じて、下層の工事種目のドロップダウンリストが変わる。
I11: 撮影項目 | J11: 工事現場管理 | M11: 一般共通事項 | O11: 撮影項目 | P11: 選択した工事種目に応じて、下層の撮影項目のドロップダウンリストが変わる。
M12: 一般共通事項 | P12: 必要に応じて手入力する。（注１）
I13: 撮影部位 施工状況 | J13: 工事関係表示標識等の掲示状況(着工前) | M13: 一般共通事項 | O13: 撮影部位 施工状況 | P13: 選択した撮影項目に応じて撮影部位・施工状況のドロップダウンリストが変わる。
M14: 一般共通事項 | P14: 必要に応じて手入力する。（注１）
M15: 一般共通事項
I16: 寸法、規格 表示マーク | M16: 一般共通事項 | O16: 寸法、規格 表示マーク | P16: 必要に応じて手入力する。
M17: 一般共通事項 | P17: 材料検収の細目はその他に記載すると良い。
I18: 撮影時期 | J18: =TODAY()-20 -> 2023-07-09 | M18: 一般共通事項 | O18: 撮影時期 | P18: 今日の日付(=today())を入れてある。撮影日が１月１日なら1/1と手入力する。異なる日付は新たに手入力する。
I19: 立会者名 受注者名 | M19: 一般共通事項 | O19: 立会者名 受注者名 | P19: ※下段の立会者受注者名(入力)の項目に各担当者名を入力するとドロップダウンに反映する。
M20: 一般共通事項 | P20: 必要に応じて手入力する。
I21: その他 | J21: この欄は誰が見ても分かるように写真の説明を簡潔に記載。撮影は必ず遠景・近景・接写を一組とする。 | M21: 一般共通事項 | O21: その他 | P21: 必要に応じて手入力する。
M22: 一般共通事項 | P22: 工事黒板の文字はサービス版程度のサイズでは識別できないため、簡潔に同じ内容を記載すると良い。
M23: 一般共通事項 | O23: 画像貼付 | P23: 工事記録写真台帳は監督職員宛てに進捗報告をメール送付するため画像のリンク付け保存はしない仕様。
M24: 一般共通事項 | P24: パソコン：Ａ．【画像１枚ごと】余白と書かれたセルをダブルクリックすると画像選択の窓が開き、写真が貼り付く。
M25: 一般共通事項 | P25: Ｂ．【フォルダ内画像の連続選択（１）】連続挿入ボタンをクリック。
B26: =OFFSET(B26,-20,0)+1 -> 2 | M26: =IF(OFFSET(M26,3,-3)="","",OFFSET(M26,3,-3)) -> 一般共通事項 | P26: Ｃ．【フォルダ内画像の連続選択（２）】[メニュー：表示]、マクロ、マクロの表示、連続画像挿入、実行。
B27: 余 白 | I27: 工 事 名 | J27: =IF(OFFSET(J27,-20,0)="","",OFFSET(J27,-20,0)) -> ＡＢＣビル新築工事 | M27: =IF(OFFSET(M26,0,0)="","",OFFSET(M26,0,0)) -> 一般共通事項 | P27: マクロで縦向き・横向きどちらの画像も余白内に入る。枠外に出る場合は画像の向きが標準でない場合。
M28: 一般共通事項 | P28: メール添付は１ファイル当たり５ＭＢ(写真約５００枚)以下を目安に別ファイルにすると良い。
I29: 工事種目 | J29: =IF(OFFSET(J29,-2,0)="","",IF(OFFSET(J29,-20,0)="","",OFFSET(J29,-20,0))) -> 一般共通事項 | M29: 一般共通事項 | P29: 写真は圧縮する(画素密度を低くする)とファイルサイズが小さくなる。元画像は細部確認用で削除不可。
M30: 一般共通事項 | P30: 画素密度96ppiはディスプレイで確認する程度であれば問題ない。印刷は粗い程度で実用範囲。
I31: 撮影項目 | J31: =IF(OFFSET(J31,-4,0)="","",IF(OFFSET(J31,-20,0)="","",OFFSET(J31,-20,0))) -> 工事現場管理 | M31: 一般共通事項 | P31: 圧縮手順１：Ctrl+G、Alt+S、B、Enter、Alt+JP、M、E、Enter、ESC
M32: 一般共通事項 | P32: 圧縮手順２：[メニュー：ホーム]、検索と選択、ジャンプ、セル選択、オブジェクト、ＯＫ、
I33: 撮影部位 施工状況 | J33: =IF(OFFSET(J33,-6,0)="","",IF(OFFSET(J33,-20,0)="","",OFFSET(J33,-20,0))) -> 工事関係表示標識等の掲示状況(着工前) | M33: 一般共通事項 | P33: [メニュー：図の形式]、図の圧縮、電子メール用、ＯＫ
M34: 一般共通事項 | P34: スマホ ：スマホ用エクセルはマクロが使えないため、エクセルのメニューで挿入を選び、スマホ内の写真を
M35: 一般共通事項 | P35: 貼付して大まかにサイズ調整後、保存する。ＰＣに本ファイルを転送して最終調整後に印刷する。
I36: 寸法、規格 表示マーク | J36: =IF(OFFSET(J36,-9,0)="","",IF(OFFSET(J36,-20,0)="","",OFFSET(J36,-20,0))) ->  | M36: 一般共通事項 | O36: その他 | P36: ※ドロップダウンリストから選択した項目はすべて手入力で修正可能。
M37: 一般共通事項 | P37: ※工事ごとや工種ごとにシートをコピーして使用すると管理しやすい。
I38: 撮影時期 | J38: =IF(OFFSET(J38,-11,0)="","",IF(OFFSET(J38,-20,0)="","",OFFSET(J38,-20,0))) -> 2023-07-09 | M38: 一般共通事項 | P38: 写真枚数が多い場合は２ページ以降をページ単位で行コピーして、ページ数を増やす。
I39: 立会者名 受注者名 | J39: =IF(OFFSET(J39,-12,0)="","",IF(OFFSET(J39,-20,0)="","",OFFSET(J39,-20,0))) ->  | M39: 一般共通事項 | P39: ※貼付画像はメール送付を前提にリンク付き画像にしていないため、添付ファイルの制限内に留めておくと良い。
M40: 一般共通事項 | P40: ※１００％印刷に合わせて行の高さ＝１４に固定。改ページの挿入は不要。収まらない場合は％指定で縮小すると良い。
I41: その他 | J41: =IF(OFFSET(J41,-14,0)="","",IF(OFFSET(J41,-20,0)="","",OFFSET(J41,-20,0))) -> この欄は誰が見ても分かるように写真の説明を簡潔に記載。撮影は必ず遠景・近景・接写を一組とする。 | M41: 一般共通事項 | P41: ※【重要】マクロ読込時に各種書式を記憶して起動する。編集中に行幅・行高等を変更してマクロ実行する
M42: 一般共通事項 | P42: とエラーが起きる。
M43: 一般共通事項 | P43: ※縦長画像は画像の向きが標準なら自動で枠内に収まる。枠からはみ出る場合は向きが標準以外のため手動で修正する。
M44: 一般共通事項 | P44: ※写真を貼付時のマクロエラーはファイルを一度保存してから再度開いて回避する。
M45: 一般共通事項 | P45: （注１）上段の項目内容に連動して下層の内容を表示するため、手入力後は次の階層は表示しない。
B46: =OFFSET(B46,-20,0)+1 -> 3 | M46: =IF(OFFSET(M46,3,-3)="","",OFFSET(M46,3,-3)) -> 仮設工事
B47: 余 白 | I47: 工 事 名 | J47: =IF(OFFSET(J47,-20,0)="","",OFFSET(J47,-20,0)) -> ＡＢＣビル新築工事 | M47: =IF(OFFSET(M46,0,0)="","",OFFSET(M46,0,0)) -> 仮設工事
M48: 仮設工事 | O48: ※立会者名受注者名(入力用)
I49: 工事種目 | J49: 仮設工事 | M49: 仮設工事 | O49: 発注者名1 | P49: 発注者監督職員(建築)１ | Q49: 発注者監督職員(建築)１
M50: 仮設工事 | O50: 発注者名2 | P50: 発注者監督職員(建築)２ | Q50: 発注者監督職員(建築)２
I51: 撮影項目 | J51: 敷地境界 | M51: 仮設工事 | O51: 発注者名3 | P51: 発注者監督職員(電気)１ | Q51: 発注者監督職員(電気)１
M52: 仮設工事 | O52: 発注者名4 | P52: 発注者監督職員(電気)２ | Q52: 発注者監督職員(電気)２
I53: 撮影部位 施工状況 | J53: 敷地境界標識、境界線の状況、立会状況(着工前) | M53: 仮設工事 | O53: 発注者名5 | P53: 発注者監督職員(機械)１ | Q53: 発注者監督職員(機械)１
M54: 仮設工事 | O54: 発注者名6 | P54: 発注者監督職員(機械)２ | Q54: 発注者監督職員(機械)２
M55: 仮設工事 | O55: 監理委託1 | P55: 監理委託設計事務所(建築)１ | Q55: 監理委託設計事務所(建築)１
I56: 寸法、規格 表示マーク | J56: =IF(OFFSET(J56,-9,0)="","",IF(OFFSET(J56,-20,0)="","",OFFSET(J56,-20,0))) ->  | M56: 仮設工事 | O56: 監理委託2 | P56: 監理委託設計事務所(建築)２ | Q56: 監理委託設計事務所(建築)２
M57: 仮設工事 | O57: 監理委託3 | P57: 監理委託設計事務所(電気)１ | Q57: 監理委託設計事務所(電気)１
I58: 撮影時期 | J58: =IF(OFFSET(J58,-11,0)="","",IF(OFFSET(J58,-20,0)="","",OFFSET(J58,-20,0))) -> 2023-07-09 | M58: 仮設工事 | O58: 監理委託4 | P58: 監理委託設計事務所(電気)２ | Q58: 監理委託設計事務所(電気)２
I59: 立会者名 受注者名 | J59: =IF(OFFSET(J59,-12,0)="","",IF(OFFSET(J59,-20,0)="","",OFFSET(J59,-20,0))) ->  | M59: 仮設工事 | O59: 監理委託5 | P59: 監理委託設計事務所(機械)１ | Q59: 監理委託設計事務所(機械)１
M60: 仮設工事 | O60: 監理委託6 | P60: 監理委託設計事務所(機械)２ | Q60: 監理委託設計事務所(機械)２
I61: その他 | J61: =IF(OFFSET(J61,-14,0)="","",IF(OFFSET(J61,-20,0)="","",OFFSET(J61,-20,0))) -> この欄は誰が見ても分かるように写真の説明を簡潔に記載。撮影は必ず遠景・近景・接写を一組とする。 | M61: 仮設工事 | O61: 受注者名1 | P61: 受注者建築担当者名１ | Q61: 受注者建築担当者名１
M62: 仮設工事 | O62: 受注者名2 | P62: 受注者建築担当者名２ | Q62: 受注者建築担当者名２
M63: 仮設工事 | O63: 受注者名3 | P63: 受注者電気担当者名１ | Q63: 受注者電気担当者名１
M64: 仮設工事 | O64: 受注者名4 | P64: 受注者電気担当者名２ | Q64: 受注者電気担当者名２
M65: 仮設工事 | O65: 受注者名5 | P65: 受注者機械担当者名１ | Q65: 受注者機械担当者名１
B66: =OFFSET(B66,-20,0)+1 -> 4 | M66: =IF(OFFSET(M66,3,-3)="","",OFFSET(M66,3,-3)) -> 土工事 | O66: 受注者名6 | P66: 受注者機械担当者名２ | Q66: 受注者機械担当者名２
B67: 余 白 | I67: 工 事 名 | J67: =IF(OFFSET(J67,-20,0)="","",OFFSET(J67,-20,0)) -> ＡＢＣビル新築工事 | M67: =IF(OFFSET(M66,0,0)="","",OFFSET(M66,0,0)) -> 土工事
M68: 土工事 | O68: 立会者名受注者名(ドロップダウン表示用)
I69: 工事種目 | J69: 土工事 | M69: 土工事 | O69: 1 | P69: =$P$61 -> 受注者建築担当者名１
M70: 土工事 | O70: 2 | P70: =$P$62 -> 受注者建築担当者名２
I71: 撮影項目 | J71: 根切り | M71: 土工事 | O71: 3 | P71: =$P$63 -> 受注者電気担当者名１
M72: 土工事 | O72: 4 | P72: =$P$64 -> 受注者電気担当者名２
I73: 撮影部位 施工状況 | J73: 根切りの寸法、形状等の計測状況(計測時) | M73: 土工事 | O73: 5 | P73: =$P$65 -> 受注者機械担当者名１
M74: 土工事 | O74: 6 | P74: =$P$66 -> 受注者機械担当者名２
M75: 土工事 | O75: 7 | P75: =$P$49&"、"&$P$55&"、"&$P$61 -> 発注者監督職員(建築)１、監理委託設計事務所(建築)１、受注者建築担当者名１
I76: 寸法、規格 表示マーク | J76: =IF(OFFSET(J76,-9,0)="","",IF(OFFSET(J76,-20,0)="","",OFFSET(J76,-20,0))) ->  | M76: 土工事 | O76: 8 | P76: =$P$49&"、"&$P$55&"、"&$P$62 -> 発注者監督職員(建築)１、監理委託設計事務所(建築)１、受注者建築担当者名２
M77: 土工事 | O77: 9 | P77: =$P$49&"、"&$P$55&"、"&$P$63 -> 発注者監督職員(建築)１、監理委託設計事務所(建築)１、受注者電気担当者名１
I78: 撮影時期 | J78: =IF(OFFSET(J78,-11,0)="","",IF(OFFSET(J78,-20,0)="","",OFFSET(J78,-20,0))) -> 2023-07-09 | M78: 土工事 | O78: 10 | P78: =$P$49&"、"&$P$55&"、"&$P$64 -> 発注者監督職員(建築)１、監理委託設計事務所(建築)１、受注者電気担当者名２
I79: 立会者名 受注者名 | J79: =IF(OFFSET(J79,-12,0)="","",IF(OFFSET(J79,-20,0)="","",OFFSET(J79,-20,0))) ->  | M79: 土工事 | O79: 11 | P79: =$P$49&"、"&$P$55&"、"&$P$65 -> 発注者監督職員(建築)１、監理委託設計事務所(建築)１、受注者機械担当者名１
M80: 土工事 | O80: 12 | P80: =$P$49&"、"&$P$55&"、"&$P$66 -> 発注者監督職員(建築)１、監理委託設計事務所(建築)１、受注者機械担当者名２
I81: その他 | J81: =IF(OFFSET(J81,-14,0)="","",IF(OFFSET(J81,-20,0)="","",OFFSET(J81,-20,0))) -> この欄は誰が見ても分かるように写真の説明を簡潔に記載。撮影は必ず遠景・近景・接写を一組とする。 | M81: 土工事 | O81: 13 | P81: =$P$49&"、"&$P$55 -> 発注者監督職員(建築)１、監理委託設計事務所(建築)１
M82: 土工事 | O82: 14 | P82: =$P$49&"、"&$P$56&"、"&$P$61 -> 発注者監督職員(建築)１、監理委託設計事務所(建築)２、受注者建築担当者名１
M83: 土工事 | O83: 15 | P83: =$P$49&"、"&$P$56&"、"&$P$62 -> 発注者監督職員(建築)１、監理委託設計事務所(建築)２、受注者建築担当者名２
M84: 土工事 | O84: 16 | P84: =$P$49&"、"&$P$56&"、"&$P$63 -> 発注者監督職員(建築)１、監理委託設計事務所(建築)２、受注者電気担当者名１
M85: 土工事 | O85: 17 | P85: =$P$49&"、"&$P$56&"、"&$P$64 -> 発注者監督職員(建築)１、監理委託設計事務所(建築)２、受注者電気担当者名２
B86: =OFFSET(B86,-20,0)+1 -> 5 | M86: =IF(OFFSET(M86,3,-3)="","",OFFSET(M86,3,-3)) -> 地業工事 | O86: 18 | P86: =$P$49&"、"&$P$56&"、"&$P$65 -> 発注者監督職員(建築)１、監理委託設計事務所(建築)２、受注者機械担当者名１
B87: 余 白 | I87: 工 事 名 | J87: =IF(OFFSET(J87,-20,0)="","",OFFSET(J87,-20,0)) -> ＡＢＣビル新築工事 | M87: =IF(OFFSET(M86,0,0)="","",OFFSET(M86,0,0)) -> 地業工事 | O87: 19 | P87: =$P$49&"、"&$P$56&"、"&$P$66 -> 発注者監督職員(建築)１、監理委託設計事務所(建築)２、受注者機械担当者名２
M88: 地業工事 | O88: 20 | P88: =$P$49&"、"&$P$56 -> 発注者監督職員(建築)１、監理委託設計事務所(建築)２
I89: 工事種目 | J89: 地業工事 | M89: 地業工事 | O89: 21 | P89: =$P$49&"、"&$P$57&"、"&$P$61 -> 発注者監督職員(建築)１、監理委託設計事務所(電気)１、受注者建築担当者名１
M90: 地業工事 | O90: 22 | P90: =$P$49&"、"&$P$57&"、"&$P$62 -> 発注者監督職員(建築)１、監理委託設計事務所(電気)１、受注者建築担当者名２
I91: 撮影項目 | J91: 既製コンクリート杭地業 | M91: 地業工事 | O91: 23 | P91: =$P$49&"、"&$P$57&"、"&$P$63 -> 発注者監督職員(建築)１、監理委託設計事務所(電気)１、受注者電気担当者名１
M92: 地業工事 | O92: 24 | P92: =$P$49&"、"&$P$57&"、"&$P$64 -> 発注者監督職員(建築)１、監理委託設計事務所(電気)１、受注者電気担当者名２
I93: 撮影部位 施工状況 | J93: 材料（杭の表示マーク、セメント）(搬入時) | M93: 地業工事 | O93: 25 | P93: =$P$49&"、"&$P$57&"、"&$P$65 -> 発注者監督職員(建築)１、監理委託設計事務所(電気)１、受注者機械担当者名１
M94: 地業工事 | O94: 26 | P94: =$P$49&"、"&$P$57&"、"&$P$66 -> 発注者監督職員(建築)１、監理委託設計事務所(電気)１、受注者機械担当者名２
M95: 地業工事 | O95: 27 | P95: =$P$49&"、"&$P$57 -> 発注者監督職員(建築)１、監理委託設計事務所(電気)１
I96: 寸法、規格 表示マーク | J96: =IF(OFFSET(J96,-9,0)="","",IF(OFFSET(J96,-20,0)="","",OFFSET(J96,-20,0))) ->  | M96: 地業工事 | O96: 28 | P96: =$P$49&"、"&$P$58&"、"&$P$61 -> 発注者監督職員(建築)１、監理委託設計事務所(電気)２、受注者建築担当者名１
M97: 地業工事 | O97: 29 | P97: =$P$49&"、"&$P$58&"、"&$P$62 -> 発注者監督職員(建築)１、監理委託設計事務所(電気)２、受注者建築担当者名２
I98: 撮影時期 | J98: =IF(OFFSET(J98,-11,0)="","",IF(OFFSET(J98,-20,0)="","",OFFSET(J98,-20,0))) -> 2023-07-09 | M98: 地業工事 | O98: 30 | P98: =$P$49&"、"&$P$58&"、"&$P$63 -> 発注者監督職員(建築)１、監理委託設計事務所(電気)２、受注者電気担当者名１
I99: 立会者名 受注者名 | J99: =IF(OFFSET(J99,-12,0)="","",IF(OFFSET(J99,-20,0)="","",OFFSET(J99,-20,0))) ->  | M99: 地業工事 | O99: 31 | P99: =$P$49&"、"&$P$58&"、"&$P$64 -> 発注者監督職員(建築)１、監理委託設計事務所(電気)２、受注者電気担当者名２
M100: 地業工事 | O100: 32 | P100: =$P$49&"、"&$P$58&"、"&$P$65 -> 発注者監督職員(建築)１、監理委託設計事務所(電気)２、受注者機械担当者名１
I101: その他 | J101: =IF(OFFSET(J101,-14,0)="","",IF(OFFSET(J101,-20,0)="","",OFFSET(J101,-20,0))) -> この欄は誰が見ても分かるように写真の説明を簡潔に記載。撮影は必ず遠景・近景・接写を一組とする。 | M101: 地業工事 | O101: 33 | P101: =$P$49&"、"&$P$58&"、"&$P$66 -> 発注者監督職員(建築)１、監理委託設計事務所(電気)２、受注者機械担当者名２
M102: 地業工事 | O102: 34 | P102: =$P$49&"、"&$P$58 -> 発注者監督職員(建築)１、監理委託設計事務所(電気)２
M103: 地業工事 | O103: 35 | P103: =$P$49&"、"&$P$59&"、"&$P$61 -> 発注者監督職員(建築)１、監理委託設計事務所(機械)１、受注者建築担当者名１
M104: 地業工事 | O104: 36 | P104: =$P$49&"、"&$P$59&"、"&$P$62 -> 発注者監督職員(建築)１、監理委託設計事務所(機械)１、受注者建築担当者名２
M105: 地業工事 | O105: 37 | P105: =$P$49&"、"&$P$59&"、"&$P$63 -> 発注者監督職員(建築)１、監理委託設計事務所(機械)１、受注者電気担当者名１
B106: =OFFSET(B106,-20,0)+1 -> 6 | M106: =IF(OFFSET(M106,3,-3)="","",OFFSET(M106,3,-3)) -> 鉄筋工事 | O106: 38 | P106: =$P$49&"、"&$P$59&"、"&$P$64 -> 発注者監督職員(建築)１、監理委託設計事務所(機械)１、受注者電気担当者名２
B107: 余 白 | I107: 工 事 名 | J107: =IF(OFFSET(J107,-20,0)="","",OFFSET(J107,-20,0)) -> ＡＢＣビル新築工事 | M107: =IF(OFFSET(M106,0,0)="","",OFFSET(M106,0,0)) -> 鉄筋工事 | O107: 39 | P107: =$P$49&"、"&$P$59&"、"&$P$65 -> 発注者監督職員(建築)１、監理委託設計事務所(機械)１、受注者機械担当者名１
M108: 鉄筋工事 | O108: 40 | P108: =$P$49&"、"&$P$59&"、"&$P$66 -> 発注者監督職員(建築)１、監理委託設計事務所(機械)１、受注者機械担当者名２
I109: 工事種目 | J109: 鉄筋工事 | M109: 鉄筋工事 | O109: 41 | P109: =$P$49&"、"&$P$59 -> 発注者監督職員(建築)１、監理委託設計事務所(機械)１
M110: 鉄筋工事 | O110: 42 | P110: =$P$49&"、"&$P$60&"、"&$P$61 -> 発注者監督職員(建築)１、監理委託設計事務所(機械)２、受注者建築担当者名１
I111: 撮影項目 | J111: 材料 | M111: 鉄筋工事 | O111: 43 | P111: =$P$49&"、"&$P$60&"、"&$P$62 -> 発注者監督職員(建築)１、監理委託設計事務所(機械)２、受注者建築担当者名２
M112: 鉄筋工事 | O112: 44 | P112: =$P$49&"、"&$P$60&"、"&$P$63 -> 発注者監督職員(建築)１、監理委託設計事務所(機械)２、受注者電気担当者名１
I113: 撮影部位 施工状況 | J113: 鉄筋のラベル、ロールマーク(搬入時) | M113: 鉄筋工事 | O113: 45 | P113: =$P$49&"、"&$P$60&"、"&$P$64 -> 発注者監督職員(建築)１、監理委託設計事務所(機械)２、受注者電気担当者名２
M114: 鉄筋工事 | O114: 46 | P114: =$P$49&"、"&$P$60&"、"&$P$65 -> 発注者監督職員(建築)１、監理委託設計事務所(機械)２、受注者機械担当者名１
M115: 鉄筋工事 | O115: 47 | P115: =$P$49&"、"&$P$60&"、"&$P$66 -> 発注者監督職員(建築)１、監理委託設計事務所(機械)２、受注者機械担当者名２
I116: 寸法、規格 表示マーク | J116: =IF(OFFSET(J116,-9,0)="","",IF(OFFSET(J116,-20,0)="","",OFFSET(J116,-20,0))) ->  | M116: 鉄筋工事 | O116: 48 | P116: =$P$49&"、"&$P$60 -> 発注者監督職員(建築)１、監理委託設計事務所(機械)２
M117: 鉄筋工事 | O117: 49 | P117: =$P$49&"、"&$P$61 -> 発注者監督職員(建築)１、受注者建築担当者名１
I118: 撮影時期 | J118: =IF(OFFSET(J118,-11,0)="","",IF(OFFSET(J118,-20,0)="","",OFFSET(J118,-20,0))) -> 2023-07-09 | M118: 鉄筋工事 | O118: 50 | P118: =$P$49&"、"&$P$62 -> 発注者監督職員(建築)１、受注者建築担当者名２
I119: 立会者名 受注者名 | J119: =IF(OFFSET(J119,-12,0)="","",IF(OFFSET(J119,-20,0)="","",OFFSET(J119,-20,0))) ->  | M119: 鉄筋工事 | O119: 51 | P119: =$P$49&"、"&$P$63 -> 発注者監督職員(建築)１、受注者電気担当者名１
M120: 鉄筋工事 | O120: 52 | P120: =$P$49&"、"&$P$64 -> 発注者監督職員(建築)１、受注者電気担当者名２
I121: その他 | J121: =IF(OFFSET(J121,-14,0)="","",IF(OFFSET(J121,-20,0)="","",OFFSET(J121,-20,0))) -> この欄は誰が見ても分かるように写真の説明を簡潔に記載。撮影は必ず遠景・近景・接写を一組とする。 | M121: 鉄筋工事 | O121: 53 | P121: =$P$49&"、"&$P$65 -> 発注者監督職員(建築)１、受注者機械担当者名１
M122: 鉄筋工事 | O122: 54 | P122: =$P$49&"、"&$P$66 -> 発注者監督職員(建築)１、受注者機械担当者名２
M123: 鉄筋工事 | O123: 55 | P123: =$P$49 -> 発注者監督職員(建築)１
M124: 鉄筋工事 | O124: 56 | P124: =$P$50&"、"&$P$55&"、"&$P$61 -> 発注者監督職員(建築)２、監理委託設計事務所(建築)１、受注者建築担当者名１
M125: 鉄筋工事 | O125: 57 | P125: =$P$50&"、"&$P$55&"、"&$P$62 -> 発注者監督職員(建築)２、監理委託設計事務所(建築)１、受注者建築担当者名２
B126: =OFFSET(B126,-20,0)+1 -> 7 | M126: =IF(OFFSET(M126,3,-3)="","",OFFSET(M126,3,-3)) -> コンクリート工事 | O126: 58 | P126: =$P$50&"、"&$P$55&"、"&$P$63 -> 発注者監督職員(建築)２、監理委託設計事務所(建築)１、受注者電気担当者名１
B127: 余 白 | I127: 工 事 名 | J127: =IF(OFFSET(J127,-20,0)="","",OFFSET(J127,-20,0)) -> ＡＢＣビル新築工事 | M127: =IF(OFFSET(M126,0,0)="","",OFFSET(M126,0,0)) -> コンクリート工事 | O127: 59 | P127: =$P$50&"、"&$P$55&"、"&$P$64 -> 発注者監督職員(建築)２、監理委託設計事務所(建築)１、受注者電気担当者名２
M128: コンクリート工事 | O128: 60 | P128: =$P$50&"、"&$P$55&"、"&$P$65 -> 発注者監督職員(建築)２、監理委託設計事務所(建築)１、受注者機械担当者名１
I129: 工事種目 | J129: コンクリート工事 | M129: コンクリート工事 | O129: 61 | P129: =$P$50&"、"&$P$55&"、"&$P$66 -> 発注者監督職員(建築)２、監理委託設計事務所(建築)１、受注者機械担当者名２
M130: コンクリート工事 | O130: 62 | P130: =$P$50&"、"&$P$55 -> 発注者監督職員(建築)２、監理委託設計事務所(建築)１
I131: 撮影項目 | J131: 試し練り | M131: コンクリート工事 | O131: 63 | P131: =$P$50&"、"&$P$56&"、"&$P$61 -> 発注者監督職員(建築)２、監理委託設計事務所(建築)２、受注者建築担当者名１
M132: コンクリート工事 | O132: 64 | P132: =$P$50&"、"&$P$56&"、"&$P$62 -> 発注者監督職員(建築)２、監理委託設計事務所(建築)２、受注者建築担当者名２
I133: 撮影部位 施工状況 | J133: 試験立会い状況(試験中) | M133: コンクリート工事 | O133: 65 | P133: =$P$50&"、"&$P$56&"、"&$P$63 -> 発注者監督職員(建築)２、監理委託設計事務所(建築)２、受注者電気担当者名１
M134: コンクリート工事 | O134: 66 | P134: =$P$50&"、"&$P$56&"、"&$P$64 -> 発注者監督職員(建築)２、監理委託設計事務所(建築)２、受注者電気担当者名２
M135: コンクリート工事 | O135: 67 | P135: =$P$50&"、"&$P$56&"、"&$P$65 -> 発注者監督職員(建築)２、監理委託設計事務所(建築)２、受注者機械担当者名１
I136: 寸法、規格 表示マーク | J136: =IF(OFFSET(J136,-9,0)="","",IF(OFFSET(J136,-20,0)="","",OFFSET(J136,-20,0))) ->  | M136: コンクリート工事 | O136: 68 | P136: =$P$50&"、"&$P$56&"、"&$P$66 -> 発注者監督職員(建築)２、監理委託設計事務所(建築)２、受注者機械担当者名２
M137: コンクリート工事 | O137: 69 | P137: =$P$50&"、"&$P$56 -> 発注者監督職員(建築)２、監理委託設計事務所(建築)２
I138: 撮影時期 | J138: =IF(OFFSET(J138,-11,0)="","",IF(OFFSET(J138,-20,0)="","",OFFSET(J138,-20,0))) -> 2023-07-09 | M138: コンクリート工事 | O138: 70 | P138: =$P$50&"、"&$P$57&"、"&$P$61 -> 発注者監督職員(建築)２、監理委託設計事務所(電気)１、受注者建築担当者名１
I139: 立会者名 受注者名 | J139: =IF(OFFSET(J139,-12,0)="","",IF(OFFSET(J139,-20,0)="","",OFFSET(J139,-20,0))) ->  | M139: コンクリート工事 | O139: 71 | P139: =$P$50&"、"&$P$57&"、"&$P$62 -> 発注者監督職員(建築)２、監理委託設計事務所(電気)１、受注者建築担当者名２
M140: コンクリート工事 | O140: 72 | P140: =$P$50&"、"&$P$57&"、"&$P$63 -> 発注者監督職員(建築)２、監理委託設計事務所(電気)１、受注者電気担当者名１
I141: その他 | J141: =IF(OFFSET(J141,-14,0)="","",IF(OFFSET(J141,-20,0)="","",OFFSET(J141,-20,0))) -> この欄は誰が見ても分かるように写真の説明を簡潔に記載。撮影は必ず遠景・近景・接写を一組とする。 | M141: コンクリート工事 | O141: 73 | P141: =$P$50&"、"&$P$57&"、"&$P$64 -> 発注者監督職員(建築)２、監理委託設計事務所(電気)１、受注者電気担当者名２
M142: コンクリート工事 | O142: 74 | P142: =$P$50&"、"&$P$57&"、"&$P$65 -> 発注者監督職員(建築)２、監理委託設計事務所(電気)１、受注者機械担当者名１
M143: コンクリート工事 | O143: 75 | P143: =$P$50&"、"&$P$57&"、"&$P$66 -> 発注者監督職員(建築)２、監理委託設計事務所(電気)１、受注者機械担当者名２
M144: コンクリート工事 | O144: 76 | P144: =$P$50&"、"&$P$57 -> 発注者監督職員(建築)２、監理委託設計事務所(電気)１
M145: コンクリート工事 | O145: 77 | P145: =$P$50&"、"&$P$58&"、"&$P$61 -> 発注者監督職員(建築)２、監理委託設計事務所(電気)２、受注者建築担当者名１
B146: =OFFSET(B146,-20,0)+1 -> 8 | M146: =IF(OFFSET(M146,3,-3)="","",OFFSET(M146,3,-3)) -> 鉄骨工事 | O146: 78 | P146: =$P$50&"、"&$P$58&"、"&$P$62 -> 発注者監督職員(建築)２、監理委託設計事務所(電気)２、受注者建築担当者名２
B147: 余 白 | I147: 工 事 名 | J147: =IF(OFFSET(J147,-20,0)="","",OFFSET(J147,-20,0)) -> ＡＢＣビル新築工事 | M147: =IF(OFFSET(M146,0,0)="","",OFFSET(M146,0,0)) -> 鉄骨工事 | O147: 79 | P147: =$P$50&"、"&$P$58&"、"&$P$63 -> 発注者監督職員(建築)２、監理委託設計事務所(電気)２、受注者電気担当者名１
M148: 鉄骨工事 | O148: 80 | P148: =$P$50&"、"&$P$58&"、"&$P$64 -> 発注者監督職員(建築)２、監理委託設計事務所(電気)２、受注者電気担当者名２
I149: 工事種目 | J149: 鉄骨工事 | M149: 鉄骨工事 | O149: 81 | P149: =$P$50&"、"&$P$58&"、"&$P$65 -> 発注者監督職員(建築)２、監理委託設計事務所(電気)２、受注者機械担当者名１
M150: 鉄骨工事 | O150: 82 | P150: =$P$50&"、"&$P$58&"、"&$P$66 -> 発注者監督職員(建築)２、監理委託設計事務所(電気)２、受注者機械担当者名２
I151: 撮影項目 | J151: 高力ボルト接合 | M151: 鉄骨工事 | O151: 83 | P151: =$P$50&"、"&$P$58 -> 発注者監督職員(建築)２、監理委託設計事務所(電気)２
M152: 鉄骨工事 | O152: 84 | P152: =$P$50&"、"&$P$59&"、"&$P$61 -> 発注者監督職員(建築)２、監理委託設計事務所(機械)１、受注者建築担当者名１
I153: 撮影部位 施工状況 | J153: 摩擦面の処理、錆の状況(搬入時) | M153: 鉄骨工事 | O153: 85 | P153: =$P$50&"、"&$P$59&"、"&$P$62 -> 発注者監督職員(建築)２、監理委託設計事務所(機械)１、受注者建築担当者名２
M154: 鉄骨工事 | O154: 86 | P154: =$P$50&"、"&$P$59&"、"&$P$63 -> 発注者監督職員(建築)２、監理委託設計事務所(機械)１、受注者電気担当者名１
M155: 鉄骨工事 | O155: 87 | P155: =$P$50&"、"&$P$59&"、"&$P$64 -> 発注者監督職員(建築)２、監理委託設計事務所(機械)１、受注者電気担当者名２
I156: 寸法、規格 表示マーク | J156: =IF(OFFSET(J156,-9,0)="","",IF(OFFSET(J156,-20,0)="","",OFFSET(J156,-20,0))) ->  | M156: 鉄骨工事 | O156: 88 | P156: =$P$50&"、"&$P$59&"、"&$P$65 -> 発注者監督職員(建築)２、監理委託設計事務所(機械)１、受注者機械担当者名１
M157: 鉄骨工事 | O157: 89 | P157: =$P$50&"、"&$P$59&"、"&$P$66 -> 発注者監督職員(建築)２、監理委託設計事務所(機械)１、受注者機械担当者名２
I158: 撮影時期 | J158: =IF(OFFSET(J158,-11,0)="","",IF(OFFSET(J158,-20,0)="","",OFFSET(J158,-20,0))) -> 2023-07-09 | M158: 鉄骨工事 | O158: 90 | P158: =$P$50&"、"&$P$59 -> 発注者監督職員(建築)２、監理委託設計事務所(機械)１
I159: 立会者名 受注者名 | J159: =IF(OFFSET(J159,-12,0)="","",IF(OFFSET(J159,-20,0)="","",OFFSET(J159,-20,0))) ->  | M159: 鉄骨工事 | O159: 91 | P159: =$P$50&"、"&$P$60&"、"&$P$61 -> 発注者監督職員(建築)２、監理委託設計事務所(機械)２、受注者建築担当者名１
M160: 鉄骨工事 | O160: 92 | P160: =$P$50&"、"&$P$60&"、"&$P$62 -> 発注者監督職員(建築)２、監理委託設計事務所(機械)２、受注者建築担当者名２
I161: その他 | J161: =IF(OFFSET(J161,-14,0)="","",IF(OFFSET(J161,-20,0)="","",OFFSET(J161,-20,0))) -> この欄は誰が見ても分かるように写真の説明を簡潔に記載。撮影は必ず遠景・近景・接写を一組とする。 | M161: 鉄骨工事 | O161: 93 | P161: =$P$50&"、"&$P$60&"、"&$P$63 -> 発注者監督職員(建築)２、監理委託設計事務所(機械)２、受注者電気担当者名１
M162: 鉄骨工事 | O162: 94 | P162: =$P$50&"、"&$P$60&"、"&$P$64 -> 発注者監督職員(建築)２、監理委託設計事務所(機械)２、受注者電気担当者名２
M163: 鉄骨工事 | O163: 95 | P163: =$P$50&"、"&$P$60&"、"&$P$65 -> 発注者監督職員(建築)２、監理委託設計事務所(機械)２、受注者機械担当者名１
M164: 鉄骨工事 | O164: 96 | P164: =$P$50&"、"&$P$60&"、"&$P$66 -> 発注者監督職員(建築)２、監理委託設計事務所(機械)２、受注者機械担当者名２
M165: 鉄骨工事 | O165: 97 | P165: =$P$50&"、"&$P$60 -> 発注者監督職員(建築)２、監理委託設計事務所(機械)２
B166: =OFFSET(B166,-20,0)+1 -> 9 | M166: =IF(OFFSET(M166,3,-3)="","",OFFSET(M166,3,-3)) -> コンクリートブロック・ＡＬＣパネル・押出成形セメント板工事 | O166: 98 | P166: =$P$50&"、"&$P$61 -> 発注者監督職員(建築)２、受注者建築担当者名１
B167: 余 白 | I167: 工 事 名 | J167: =IF(OFFSET(J167,-20,0)="","",OFFSET(J167,-20,0)) -> ＡＢＣビル新築工事 | M167: =IF(OFFSET(M166,0,0)="","",OFFSET(M166,0,0)) -> コンクリートブロック・ＡＬＣパネル・押出成形セメント板工事 | O167: 99 | P167: =$P$50&"、"&$P$62 -> 発注者監督職員(建築)２、受注者建築担当者名２
M168: コンクリートブロック・ＡＬＣパネル・押出成形セメント板工事 | O168: 100 | P168: =$P$50&"、"&$P$63 -> 発注者監督職員(建築)２、受注者電気担当者名１
I169: 工事種目 | J169: コンクリートブロック・ＡＬＣパネル・押出成形セメント板工事 | M169: コンクリートブロック・ＡＬＣパネル・押出成形セメント板工事 | O169: 101 | P169: =$P$50&"、"&$P$64 -> 発注者監督職員(建築)２、受注者電気担当者名２
M170: コンクリートブロック・ＡＬＣパネル・押出成形セメント板工事 | O170: 102 | P170: =$P$50&"、"&$P$65 -> 発注者監督職員(建築)２、受注者機械担当者名１
I171: 撮影項目 | J171: 材料_コンクリートブロック | M171: コンクリートブロック・ＡＬＣパネル・押出成形セメント板工事 | O171: 103 | P171: =$P$50&"、"&$P$66 -> 発注者監督職員(建築)２、受注者機械担当者名２
M172: コンクリートブロック・ＡＬＣパネル・押出成形セメント板工事 | O172: 104 | P172: =$P$50 -> 発注者監督職員(建築)２
I173: 撮影部位 施工状況 | J173: コンクリートブロックの表示マーク(搬入時) | M173: コンクリートブロック・ＡＬＣパネル・押出成形セメント板工事 | O173: 105 | P173: =$P$51&"、"&$P$55&"、"&$P$61 -> 発注者監督職員(電気)１、監理委託設計事務所(建築)１、受注者建築担当者名１
M174: コンクリートブロック・ＡＬＣパネル・押出成形セメント板工事 | O174: 106 | P174: =$P$51&"、"&$P$55&"、"&$P$62 -> 発注者監督職員(電気)１、監理委託設計事務所(建築)１、受注者建築担当者名２
M175: コンクリートブロック・ＡＬＣパネル・押出成形セメント板工事 | O175: 107 | P175: =$P$51&"、"&$P$55&"、"&$P$63 -> 発注者監督職員(電気)１、監理委託設計事務所(建築)１、受注者電気担当者名１
I176: 寸法、規格 表示マーク | J176: =IF(OFFSET(J176,-9,0)="","",IF(OFFSET(J176,-20,0)="","",OFFSET(J176,-20,0))) ->  | M176: コンクリートブロック・ＡＬＣパネル・押出成形セメント板工事 | O176: 108 | P176: =$P$51&"、"&$P$55&"、"&$P$64 -> 発注者監督職員(電気)１、監理委託設計事務所(建築)１、受注者電気担当者名２
M177: コンクリートブロック・ＡＬＣパネル・押出成形セメント板工事 | O177: 109 | P177: =$P$51&"、"&$P$55&"、"&$P$65 -> 発注者監督職員(電気)１、監理委託設計事務所(建築)１、受注者機械担当者名１
I178: 撮影時期 | J178: =IF(OFFSET(J178,-11,0)="","",IF(OFFSET(J178,-20,0)="","",OFFSET(J178,-20,0))) -> 2023-07-09 | M178: コンクリートブロック・ＡＬＣパネル・押出成形セメント板工事 | O178: 110 | P178: =$P$51&"、"&$P$55&"、"&$P$66 -> 発注者監督職員(電気)１、監理委託設計事務所(建築)１、受注者機械担当者名２
I179: 立会者名 受注者名 | J179: =IF(OFFSET(J179,-12,0)="","",IF(OFFSET(J179,-20,0)="","",OFFSET(J179,-20,0))) ->  | M179: コンクリートブロック・ＡＬＣパネル・押出成形セメント板工事 | O179: 111 | P179: =$P$51&"、"&$P$55 -> 発注者監督職員(電気)１、監理委託設計事務所(建築)１
M180: コンクリートブロック・ＡＬＣパネル・押出成形セメント板工事 | O180: 112 | P180: =$P$51&"、"&$P$56&"、"&$P$61 -> 発注者監督職員(電気)１、監理委託設計事務所(建築)２、受注者建築担当者名１
I181: その他 | J181: =IF(OFFSET(J181,-14,0)="","",IF(OFFSET(J181,-20,0)="","",OFFSET(J181,-20,0))) -> この欄は誰が見ても分かるように写真の説明を簡潔に記載。撮影は必ず遠景・近景・接写を一組とする。 | M181: コンクリートブロック・ＡＬＣパネル・押出成形セメント板工事 | O181: 113 | P181: =$P$51&"、"&$P$56&"、"&$P$62 -> 発注者監督職員(電気)１、監理委託設計事務所(建築)２、受注者建築担当者名２
M182: コンクリートブロック・ＡＬＣパネル・押出成形セメント板工事 | O182: 114 | P182: =$P$51&"、"&$P$56&"、"&$P$63 -> 発注者監督職員(電気)１、監理委託設計事務所(建築)２、受注者電気担当者名１
M183: コンクリートブロック・ＡＬＣパネル・押出成形セメント板工事 | O183: 115 | P183: =$P$51&"、"&$P$56&"、"&$P$64 -> 発注者監督職員(電気)１、監理委託設計事務所(建築)２、受注者電気担当者名２
M184: コンクリートブロック・ＡＬＣパネル・押出成形セメント板工事 | O184: 116 | P184: =$P$51&"、"&$P$56&"、"&$P$65 -> 発注者監督職員(電気)１、監理委託設計事務所(建築)２、受注者機械担当者名１
M185: コンクリートブロック・ＡＬＣパネル・押出成形セメント板工事 | O185: 117 | P185: =$P$51&"、"&$P$56&"、"&$P$66 -> 発注者監督職員(電気)１、監理委託設計事務所(建築)２、受注者機械担当者名２
B186: =OFFSET(B186,-20,0)+1 -> 10 | M186: =IF(OFFSET(M186,3,-3)="","",OFFSET(M186,3,-3)) -> 防水工事 | O186: 118 | P186: =$P$51&"、"&$P$56 -> 発注者監督職員(電気)１、監理委託設計事務所(建築)２
B187: 余 白 | I187: 工 事 名 | J187: =IF(OFFSET(J187,-20,0)="","",OFFSET(J187,-20,0)) -> ＡＢＣビル新築工事 | M187: =IF(OFFSET(M186,0,0)="","",OFFSET(M186,0,0)) -> 防水工事 | O187: 119 | P187: =$P$51&"、"&$P$57&"、"&$P$61 -> 発注者監督職員(電気)１、監理委託設計事務所(電気)１、受注者建築担当者名１
M188: 防水工事 | O188: 120 | P188: =$P$51&"、"&$P$57&"、"&$P$62 -> 発注者監督職員(電気)１、監理委託設計事務所(電気)１、受注者建築担当者名２
I189: 工事種目 | J189: 防水工事 | M189: 防水工事 | O189: 121 | P189: =$P$51&"、"&$P$57&"、"&$P$63 -> 発注者監督職員(電気)１、監理委託設計事務所(電気)１、受注者電気担当者名１
M190: 防水工事 | O190: 122 | P190: =$P$51&"、"&$P$57&"、"&$P$64 -> 発注者監督職員(電気)１、監理委託設計事務所(電気)１、受注者電気担当者名２
I191: 撮影項目 | J191: 防水材料 | M191: 防水工事 | O191: 123 | P191: =$P$51&"、"&$P$57&"、"&$P$65 -> 発注者監督職員(電気)１、監理委託設計事務所(電気)１、受注者機械担当者名１
M192: 防水工事 | O192: 124 | P192: =$P$51&"、"&$P$57&"、"&$P$66 -> 発注者監督職員(電気)１、監理委託設計事務所(電気)１、受注者機械担当者名２
I193: 撮影部位 施工状況 | J193: 材料の表示のマーク（可使期間の分かる表示）(搬入時) | M193: 防水工事 | O193: 125 | P193: =$P$51&"、"&$P$57 -> 発注者監督職員(電気)１、監理委託設計事務所(電気)１
M194: 防水工事 | O194: 126 | P194: =$P$51&"、"&$P$58&"、"&$P$61 -> 発注者監督職員(電気)１、監理委託設計事務所(電気)２、受注者建築担当者名１
M195: 防水工事 | O195: 127 | P195: =$P$51&"、"&$P$58&"、"&$P$62 -> 発注者監督職員(電気)１、監理委託設計事務所(電気)２、受注者建築担当者名２
I196: 寸法、規格 表示マーク | J196: =IF(OFFSET(J196,-9,0)="","",IF(OFFSET(J196,-20,0)="","",OFFSET(J196,-20,0))) ->  | M196: 防水工事 | O196: 128 | P196: =$P$51&"、"&$P$58&"、"&$P$63 -> 発注者監督職員(電気)１、監理委託設計事務所(電気)２、受注者電気担当者名１
M197: 防水工事 | O197: 129 | P197: =$P$51&"、"&$P$58&"、"&$P$64 -> 発注者監督職員(電気)１、監理委託設計事務所(電気)２、受注者電気担当者名２
I198: 撮影時期 | J198: =IF(OFFSET(J198,-11,0)="","",IF(OFFSET(J198,-20,0)="","",OFFSET(J198,-20,0))) -> 2023-07-09 | M198: 防水工事 | O198: 130 | P198: =$P$51&"、"&$P$58&"、"&$P$65 -> 発注者監督職員(電気)１、監理委託設計事務所(電気)２、受注者機械担当者名１
I199: 立会者名 受注者名 | J199: =IF(OFFSET(J199,-12,0)="","",IF(OFFSET(J199,-20,0)="","",OFFSET(J199,-20,0))) ->  | M199: 防水工事 | O199: 131 | P199: =$P$51&"、"&$P$58&"、"&$P$66 -> 発注者監督職員(電気)１、監理委託設計事務所(電気)２、受注者機械担当者名２
M200: 防水工事 | O200: 132 | P200: =$P$51&"、"&$P$58 -> 発注者監督職員(電気)１、監理委託設計事務所(電気)２
... 685 more rows

Sheet 使い方
A1: エクセル工事記録写真台帳の使い方
B3: 国土交通省の「営繕工事写真撮影要領(最新版＝令和３年改定版)」の項目入力をエクセルを用いて簡易操作で作成できる無料の工事記録写真台帳(工事写真台帳)です。
B4: 新築(外構・植栽・舗装含む)・改修・撤去解体、建築・電気設備・機械設備・耐震診断に対応しています。外構・植栽・舗装工事は新営工事を選択してください。
B5: 写真は１枚ごとは勿論、フォルダ内の写真をマウスでドラッグして複数指定する貼り付けにも対応しています。
B6: 撮影項目は撮影要領に準拠していますので、日々の作業の省力化と品質向上が期待できます。
B8: 使い方手順）
B10: 1. 日々、撮影した写真をＰＣに保存する。
B12: 2. ダウンロードした工事記録写真台帳を開く。
B14: 3. マクロファイルのため、「セキュリティの警告」が表示されるので、心配なら一度閉じてウィルスチェック後に「コンテンツの有効化」をクリックする。
B16: 4. No.001の「余白」と記載された欄をマウスでクリックしてアクティブにする。
B18: 5. 「連続挿入」ボタンをクリックすると、写真の開始セルが正しい位置か「処理実行確認」の
B19: メッセージを表示する。
B31: 正しく選んでいる場合は「ＯＫ」、選んでいない場合は「キャンセル」を選択する。
B33: 6. 「ファイルを開く」画面が現れるので貼り付けたい写真が保存してあるフォルダに移動する。
B34: フォルダ内の表示は撮影日時や操作速度の速さからサムネイル表示より詳細表示を推奨。
B80: 7. 貼り付ける写真を選択する。
B81: 要領が掴めないうちは一度に１０ファイル程度で練習すると良い。
B82: 工事記録写真は日々整理するものであるから１日で撮影したフォルダ内の写真全てを選ぶ場合はCTRL＋A。(推奨)
B83: マウスをドラッグして写真を選ぶ。
B106: 選び終わったら「開く」をクリックする。
B108: 8. マクロ機能で選択した写真が余白と記載された欄に自動で貼付される。
B109: 初期値は最大1,200枚
B110: 貼付された写真は元のファイルサイズなので枚数が増えるほどファイルサイズが肥大してエクセル操作が遅くなるため、画像圧縮のマクロボタンをクリックすると画像の解像度を落として(※)ファイルサイズが圧縮前の十分の一程度まで小さくなる。(推奨)
B111: ※元画像の解像度やファイルサイズは影響が無い。
B112: 電子メールの添付ファイルは５ＭＢ程度が一つの目安なので、ファイルサイズが５ＭＢを超えたら別ファイルにすると良い。(推奨)
B113: なお、圧縮後の画像の見え方は実用範囲であるが、文字を撮影した場合は判別しにくくなるため、注意が必要である。
B115: 9. 工事種別から新営建築工事、改修建築工事、電気設備工事、機械設備工事、撤去・解体工事、耐震診断調査のいずれかを選択する。
B116: なお、新営とは新築を意味する。
B117: 外構・植栽・舗装は新営建築工事に項目がある。
B128: 10. 工事件名を手入力する。
B130: 11. 工事種目をドロップダウンリストから選択する。
B132: 12. 撮影項目をドロップダウンリストから選択。
B134: 13. 撮影部位施工状況をドロップダウンリストから選択する。
B135: ドロップダウンリストは一つ前の項目と紐づけされている。
B136: 異なる撮影項目を選択すると「営繕工事写真撮影要領」に沿った紐づけされた内容が表示される。
B137: 工事記録写真は遠景・近景・接写等の一連の施工状況を撮影するため、以降の写真説明は自動で記入される。
B138: すべての項目が一つ前の写真に紐づけされているため、写真の無い項目で自動で記入されている項目は「工事件名」を削除すると非表示になる。
B140: 14. 寸法、規格表示マークは手入力する。
B142: 15. 撮影時期を手入力。
B144: 16. 「※立会者名受注者名(入力用)」の欄に撮影時の立会者(通常は施主、設計事務所(監理者)、施主)、受注者(通常は現場監督)を手入力しておくと、立会者名受注者名がドロップダウンリストに反映されるので選択。
B145: 説明が理解できない場合は手入力すれば良い。
B147: 17. その他の欄には、写真を見た誰もが分かるように棟名、階数、部位等を簡潔に記載する。
B148: 他現場の写真を流用していないことが伝えられるように周囲が映り込んだ遠景、
B149: 個数などが数えられる程度の範囲を写した近景、
B150: 寸法・規格表示マークが読める接写
B151: を１組とした説明を簡潔に記入する。
B153: 18. 写真の貼付、各項目欄の記入が終わったら、印刷範囲を確認して印刷する。
B154: 印刷範囲の初期値は３ページ、写真は１２枚。
B156: 19. Tips
B157: 記入欄はドロップダウンリストの欄すべてが手入力可能だが、撮影箇所や撮影時期の取りこぼしが起きないように注意のこと。(非推奨)
B158: 工事記録写真は仕上材などで隠蔽される箇所を撮影して、受注者が適正に施工していることを証明するもの(証拠)であるから、可能な限り、数多くの写真を撮影しておくこと。
B159: 工事記録写真が適正に撮影されていない場合は見られては困る施工をしたと解釈されることに留意すること。
B160: 工事記録写真１枚１枚を貼付していた作業が数十分の一に低減されるので、浮いた時間をその他欄の記入に割くこと。
B161: その日に撮影した写真は必ずその日に整理しておくこと。

Sheet MASTER
A1: 撮影対象項目リスト | E1: 養生（既存施設部分、工事目的物の施工済部分）(施工中) | F1: 廃棄状況（廃棄場）(廃棄時)
A2: 営繕工事写真撮影要領（令和3年改定）001401960 | OK2: （一財）日本耐震診断協会
A3: 新営建築工事 | B3: 新営建築工事 | C3: 新営建築工事 | D3: 新営建築工事 | E3: 新営建築工事 | F3: 新営建築工事 | G3: 新営建築工事 | H3: 新営建築工事 | I3: 新営建築工事 | J3: 新営建築工事 | K3: 新営建築工事 | L3: 新営建築工事 | M3: 新営建築工事 | N3: 新営建築工事 | O3: 新営建築工事 | P3: 新営建築工事 | Q3: 新営建築工事 | R3: 新営建築工事 | S3: 新営建築工事 | T3: 新営建築工事 | U3: 新営建築工事 | V3: 新営建築工事 | W3: 新営建築工事 | X3: 新営建築工事 | Y3: 新営建築工事 | Z3: 新営建築工事 | AA3: 新営建築工事 | AB3: 新営建築工事 | AC3: 新営建築工事 | AD3: 新営建築工事 | AE3: 新営建築工事 | AF3: 新営建築工事 | AG3: 新営建築工事 | AH3: 新営建築工事 | AI3: 新営建築工事 | AJ3: 新営建築工事 | AK3: 新営建築工事 | AL3: 新営建築工事 | AM3: 新営建築工事 | AN3: 新営建築工事 | AO3: 新営建築工事 | AP3: 新営建築工事 | AQ3: 新営建築工事 | AR3: 新営建築工事 | AS3: 新営建築工事 | AT3: 新営建築工事 | AU3: 新営建築工事 | AV3: 新営建築工事 | AW3: 新営建築工事 | AX3: 新営建築工事 | AY3: 新営建築工事 | AZ3: 新営建築工事 | BA3: 新営建築工事 | BB3: 新営建築工事 | BC3: 新営建築工事 | BD3: 新営建築工事 | BE3: 新営建築工事 | BF3: 新営建築工事 | BG3: 新営建築工事 | BH3: 新営建築工事 | BI3: 新営建築工事 | BJ3: 新営建築工事 | BK3: 新営建築工事 | BL3: 新営建築工事 | BM3: 新営建築工事 | BN3: 新営建築工事 | BO3: 新営建築工事 | BP3: 新営建築工事 | BQ3: 新営建築工事 | BR3: 新営建築工事 | BS3: 新営建築工事 | BT3: 新営建築工事 | BU3: 新営建築工事 | BV3: 新営建築工事 | BW3: 新営建築工事 | BX3: 新営建築工事 | BY3: 新営建築工事 | BZ3: 新営建築工事 | CA3: 新営建築工事 | CB3: 新営建築工事 | CC3: 新営建築工事 | CD3: 新営建築工事 | CE3: 新営建築工事 | CF3: 新営建築工事 | CG3: 新営建築工事 | CH3: 新営建築工事 | CI3: 新営建築工事 | CJ3: 新営建築工事 | CK3: 新営建築工事 | CL3: 新営建築工事 | CM3: 新営建築工事 | CN3: 新営建築工事 | CO3: 新営建築工事 | CP3: 新営建築工事 | CQ3: 新営建築工事 | CR3: 新営建築工事 | CS3: 新営建築工事 | CT3: 新営建築工事 | CU3: 新営建築工事 | CV3: 新営建築工事 | CW3: 新営建築工事 | CX3: 新営建築工事 | CY3: 新営建築工事 | CZ3: 新営建築工事 | DA3: 新営建築工事 | DB3: 新営建築工事 | DC3: 新営建築工事 | DD3: 新営建築工事 | DE3: 新営建築工事 | DF3: 新営建築工事 | DG3: 新営建築工事 | DH3: 新営建築工事 | DI3: 新営建築工事 | DJ3: 新営建築工事 | DK3: 新営建築工事 | DL3: 改修建築工事 | DM3: 改修建築工事 | DN3: 改修建築工事 | DO3: 改修建築工事 | DP3: 改修建築工事 | DQ3: 改修建築工事 | DR3: 改修建築工事 | DS3: 改修建築工事 | DT3: 改修建築工事 | DU3: 改修建築工事 | DV3: 改修建築工事 | DW3: 改修建築工事 | DX3: 改修建築工事 | DY3: 改修建築工事 | DZ3: 改修建築工事 | EA3: 改修建築工事 | EB3: 改修建築工事 | EC3: 改修建築工事 | ED3: 改修建築工事 | EE3: 改修建築工事 | EF3: 改修建築工事 | EG3: 改修建築工事 | EH3: 改修建築工事 | EI3: 改修建築工事 | EJ3: 改修建築工事 | EK3: 改修建築工事 | EL3: 改修建築工事 | EM3: 改修建築工事 | EN3: 改修建築工事 | EO3: 改修建築工事 | EP3: 改修建築工事 | EQ3: 改修建築工事 | ER3: 改修建築工事 | ES3: 改修建築工事 | ET3: 改修建築工事 | EU3: 改修建築工事 | EV3: 改修建築工事 | EW3: 改修建築工事 | EX3: 改修建築工事 | EY3: 改修建築工事 | EZ3: 改修建築工事 | FA3: 改修建築工事 | FB3: 改修建築工事 | FC3: 改修建築工事 | FD3: 改修建築工事 | FE3: 改修建築工事 | FF3: 改修建築工事 | FG3: 改修建築工事 | FH3: 改修建築工事 | FI3: 改修建築工事 | FJ3: 改修建築工事 | FK3: 改修建築工事 | FL3: 改修建築工事 | FM3: 改修建築工事 | FN3: 改修建築工事 | FO3: 改修建築工事 | FP3: 改修建築工事 | FQ3: 改修建築工事 | FR3: 改修建築工事 | FS3: 改修建築工事 | FT3: 改修建築工事 | FU3: 改修建築工事 | FV3: 改修建築工事 | FW3: 改修建築工事 | FX3: 改修建築工事 | FY3: 改修建築工事 | FZ3: 改修建築工事 | GA3: 改修建築工事 | GB3: 改修建築工事 | GC3: 改修建築工事 | GD3: 改修建築工事 | GE3: 改修建築工事 | GF3: 改修建築工事 | GG3: 改修建築工事 | GH3: 改修建築工事 | GI3: 改修建築工事 | GJ3: 改修建築工事 | GK3: 改修建築工事 | GL3: 改修建築工事 | GM3: 改修建築工事 | GN3: 改修建築工事 | GO3: 改修建築工事 | GP3: 改修建築工事 | GQ3: 改修建築工事 | GR3: 改修建築工事 | GS3: 改修建築工事 | GT3: 改修建築工事 | GU3: 改修建築工事 | GV3: 改修建築工事 | GW3: 改修建築工事 | GX3: 改修建築工事 | GY3: 改修建築工事 | GZ3: 改修建築工事 | HA3: 改修建築工事 | HB3: 改修建築工事 | HC3: 改修建築工事 | HD3: 改修建築工事 | HE3: 改修建築工事 | HF3: 改修建築工事 | HG3: 改修建築工事 | HH3: 改修建築工事 | HI3: 改修建築工事 | HJ3: 改修建築工事 | HK3: 改修建築工事 | HL3: 改修建築工事 | HM3: 改修建築工事 | HN3: 改修建築工事 | HO3: 改修建築工事 | HP3: 改修建築工事 | HQ3: 改修建築工事 | HR3: 改修建築工事 | HS3: 改修建築工事 | HT3: 改修建築工事 | HU3: 改修建築工事 | HV3: 改修建築工事 | HW3: 改修建築工事 | HX3: 改修建築工事 | HY3: 改修建築工事 | HZ3: 改修建築工事 | IA3: 改修建築工事 | IB3: 改修建築工事 | IC3: 改修建築工事 | ID3: 改修建築工事 | IE3: 改修建築工事 | IF3: 改修建築工事 | IG3: 改修建築工事 | IH3: 改修建築工事 | II3: 改修建築工事 | IJ3: 改修建築工事 | IK3: 改修建築工事 | IL3: 改修建築工事 | IM3: 改修建築工事 | IN3: 改修建築工事 | IO3: 改修建築工事 | IP3: 改修建築工事 | IQ3: 改修建築工事 | IR3: 改修建築工事 | IS3: 改修建築工事 | IT3: 改修建築工事 | IU3: 改修建築工事 | IV3: 改修建築工事 | IW3: 改修建築工事 | IX3: 改修建築工事 | IY3: 改修建築工事 | IZ3: 改修建築工事 | JA3: 改修建築工事 | JB3: 改修建築工事 | JC3: 電気設備工事 | JD3: 電気設備工事 | JE3: 電気設備工事 | JF3: 電気設備工事 | JG3: 電気設備工事 | JH3: 電気設備工事 | JI3: 電気設備工事 | JJ3: 電気設備工事 | JK3: 電気設備工事 | JL3: 電気設備工事 | JM3: 電気設備工事 | JN3: 電気設備工事 | JO3: 電気設備工事 | JP3: 電気設備工事 | JQ3: 電気設備工事 | JR3: 電気設備工事 | JS3: 電気設備工事 | JT3: 電気設備工事 | JU3: 電気設備工事 | JV3: 電気設備工事 | JW3: 電気設備工事 | JX3: 電気設備工事 | JY3: 電気設備工事 | JZ3: 電気設備工事 | KA3: 電気設備工事 | KB3: 電気設備工事 | KC3: 電気設備工事 | KD3: 電気設備工事 | KE3: 電気設備工事 | KF3: 電気設備工事 | KG3: 電気設備工事 | KH3: 電気設備工事 | KI3: 電気設備工事 | KJ3: 電気設備工事 | KK3: 電気設備工事 | KL3: 電気設備工事 | KM3: 電気設備工事 | KN3: 電気設備工事 | KO3: 電気設備工事 | KP3: 機械設備工事 | KQ3: 機械設備工事 | KR3: 機械設備工事 | KS3: 機械設備工事 | KT3: 機械設備工事 | KU3: 機械設備工事 | KV3: 機械設備工事 | KW3: 機械設備工事 | KX3: 機械設備工事 | KY3: 機械設備工事 | KZ3: 機械設備工事 | LA3: 機械設備工事 | LB3: 機械設備工事 | LC3: 機械設備工事 | LD3: 機械設備工事 | LE3: 機械設備工事 | LF3: 機械設備工事 | LG3: 機械設備工事 | LH3: 機械設備工事 | LI3: 機械設備工事 | LJ3: 機械設備工事 | LK3: 機械設備工事 | LL3: 機械設備工事 | LM3: 機械設備工事 | LN3: 機械設備工事 | LO3: 機械設備工事 | LP3: 機械設備工事 | LQ3: 機械設備工事 | LR3: 機械設備工事 | LS3: 機械設備工事 | LT3: 機械設備工事 | LU3: 機械設備工事 | LV3: 機械設備工事 | LW3: 機械設備工事 | LX3: 機械設備工事 | LY3: 機械設備工事 | LZ3: 機械設備工事 | MA3: 機械設備工事 | MB3: 機械設備工事 | MC3: 機械設備工事 | MD3: 機械設備工事 | ME3: 機械設備工事 | MF3: 機械設備工事 | MG3: 機械設備工事 | MH3: 機械設備工事 | MI3: 機械設備工事 | MJ3: 機械設備工事 | MK3: 機械設備工事 | ML3: 機械設備工事 | MM3: 機械設備工事 | MN3: 機械設備工事 | MO3: 機械設備工事 | MP3: 機械設備工事 | MQ3: 機械設備工事 | MR3: 機械設備工事 | MS3: 機械設備工事 | MT3: 機械設備工事 | MU3: 機械設備工事 | MV3: 機械設備工事 | MW3: 機械設備工事 | MX3: 機械設備工事 | MY3: 機械設備工事 | MZ3: 機械設備工事 | NA3: 撤去・解体工事 | NB3: 撤去・解体工事 | NC3: 撤去・解体工事 | ND3: 撤去・解体工事 | NE3: 撤去・解体工事 | NF3: 撤去・解体工事 | NG3: 撤去・解体工事 | NH3: 撤去・解体工事 | NI3: 撤去・解体工事 | NJ3: 撤去・解体工事 | NK3: 撤去・解体工事 | NL3: 撤去・解体工事 | NM3: 撤去・解体工事 | NN3: 撤去・解体工事 | NO3: 撤去・解体工事 | NP3: 撤去・解体工事 | NQ3: 撤去・解体工事 | NR3: 撤去・解体工事 | NS3: 撤去・解体工事 | NT3: 撤去・解体工事 | NU3: 撤去・解体工事 | NV3: 撤去・解体工事 | NW3: 撤去・解体工事 | NX3: 撤去・解体工事 | NY3: 撤去・解体工事 | NZ3: 撤去・解体工事 | OA3: 撤去・解体工事 | OB3: 撤去・解体工事 | OC3: 撤去・解体工事 | OD3: 撤去・解体工事 | OE3: 撤去・解体工事 | OF3: 撤去・解体工事 | OG3: 撤去・解体工事 | OH3: 撤去・解体工事 | OI3: 撤去・解体工事 | OJ3: 撤去・解体工事 | OK3: 耐震診断調査 | OL3: 耐震診断調査 | OM3: 耐震診断調査 | ON3: 耐震診断調査 | OO3: 耐震診断調査 | OP3: 大項目 | OQ3: 大項目 | OR3: 大項目 | OS3: 大項目 | OT3: 大項目 | OU3: 大項目
A4: 一般共通事項 | B4: 一般共通事項 | C4: 一般共通事項 | D4: 一般共通事項 | E4: 一般共通事項 | F4: 一般共通事項 | G4: 仮設工事 | H4: 仮設工事 | I4: 仮設工事 | J4: 仮設工事 | K4: 仮設工事 | L4: 土工事 | M4: 土工事 | N4: 土工事 | O4: 土工事 | P4: 土工事 | Q4: 土工事 | R4: 地業工事 | S4: 地業工事 | T4: 地業工事 | U4: 地業工事 | V4: 地業工事 | W4: 地業工事 | X4: 地業工事 | Y4: 地業工事 | Z4: 鉄筋工事 | AA4: 鉄筋工事 | AB4: 鉄筋工事 | AC4: 鉄筋工事 | AD4: 鉄筋工事 | AE4: 鉄筋工事 | AF4: コンクリート工事 | AG4: コンクリート工事 | AH4: コンクリート工事 | AI4: コンクリート工事 | AJ4: コンクリート工事 | AK4: コンクリート工事 | AL4: コンクリート工事 | AM4: コンクリート工事 | AN4: コンクリート工事 | AO4: コンクリート工事 | AP4: コンクリート工事 | AQ4: コンクリート工事 | AR4: 鉄骨工事 | AS4: 鉄骨工事 | AT4: 鉄骨工事 | AU4: 鉄骨工事 | AV4: 鉄骨工事 | AW4: 鉄骨工事 | AX4: 鉄骨工事 | AY4: 鉄骨工事 | AZ4: コンクリートブロック・ＡＬＣパネル・押出成形セメント板工事 | BA4: コンクリートブロック・ＡＬＣパネル・押出成形セメント板工事 | BB4: コンクリートブロック・ＡＬＣパネル・押出成形セメント板工事 | BC4: コンクリートブロック・ＡＬＣパネル・押出成形セメント板工事 | BD4: コンクリートブロック・ＡＬＣパネル・押出成形セメント板工事 | BE4: コンクリートブロック・ＡＬＣパネル・押出成形セメント板工事 | BF4: 防水工事 | BG4: 防水工事 | BH4: 防水工事 | BI4: 防水工事 | BJ4: 防水工事 | BK4: 防水工事 | BL4: 防水工事 | BM4: 防水工事 | BN4: 防水工事 | BO4: 防水工事 | BP4: 石工事 | BQ4: 石工事 | BR4: 石工事 | BS4: タイル工事 | BT4: タイル工事 | BU4: タイル工事 | BV4: 木工事 | BW4: 木工事 | BX4: 屋根及びとい工事 | BY4: 屋根及びとい工事 | BZ4: 金属工事 | CA4: 金属工事 | CB4: 金属工事 | CC4: 左官工事 | CD4: 左官工事 | CE4: 建具工事 | CF4: 建具工事 | CG4: カーテンウォール工事 | CH4: 塗装工事 | CI4: 塗装工事 | CJ4: 内装工事 | CK4: 内装工事 | CL4: ユニット及びその他工事 | CM4: ユニット及びその他工事 | CN4: ユニット及びその他工事 | CO4: ユニット及びその他工事 | CP4: ユニット及びその他工事 | CQ4: ユニット及びその他工事 | CR4: ユニット及びその他工事 | CS4: ユニット及びその他工事 | CT4: ユニット及びその他工事 | CU4: ユニット及びその他工事 | CV4: ユニット及びその他工事 | CW4: 排水工事 | CX4: 排水工事 | CY4: 排水工事 | CZ4: 排水工事 | DA4: 舗装工事 | DB4: 舗装工事 | DC4: 舗装工事 | DD4: 舗装工事 | DE4: 舗装工事 | DF4: 舗装工事 | DG4: 舗装工事 | DH4: 舗装工事 | DI4: 植栽及び屋上緑化工事 | DJ4: 植栽及び屋上緑化工事 | DK4: 植栽及び屋上緑化工事 | DL4: 一般共通事項_改修工事 | DM4: 一般共通事項_改修工事 | DN4: 一般共通事項_改修工事 | DO4: 一般共通事項_改修工事 | DP4: 一般共通事項_改修工事 | DQ4: 一般共通事項_改修工事 | DR4: 一般共通事項_改修工事 | DS4: 一般共通事項_改修工事 | DT4: 仮設工事 | DU4: 仮設工事 | DV4: 仮設工事 | DW4: 仮設工事 | DX4: 仮設工事 | DY4: 仮設工事 | DZ4: 防水改修工事 | EA4: 防水改修工事 | EB4: 防水改修工事 | EC4: 防水改修工事 | ED4: 防水改修工事 | EE4: 防水改修工事 | EF4: 防水改修工事 | EG4: 防水改修工事 | EH4: 防水改修工事 | EI4: 防水改修工事 | EJ4: 防水改修工事 | EK4: 防水改修工事 | EL4: 防水改修工事 | EM4: 防水改修工事 | EN4: 防水改修工事 | EO4: 防水改修工事 | EP4: 防水改修工事 | EQ4: 防水改修工事 | ER4: 防水改修工事 | ES4: 防水改修工事 | ET4: 外壁改修工事 | EU4: 外壁改修工事 | EV4: 外壁改修工事 | EW4: 外壁改修工事 | EX4: 外壁改修工事 | EY4: 外壁改修工事 | EZ4: 外壁改修工事 | FA4: 外壁改修工事 | FB4: 外壁改修工事 | FC4: 外壁改修工事 | FD4: 外壁改修工事 | FE4: 外壁改修工事 | FF4: 外壁改修工事 | FG4: 外壁改修工事 | FH4: 外壁改修工事 | FI4: 外壁改修工事 | FJ4: 外壁改修工事 | FK4: 外壁改修工事 | FL4: 外壁改修工事 | FM4: 外壁改修工事 | FN4: 外壁改修工事 | FO4: 外壁改修工事 | FP4: 外壁改修工事 | FQ4: 外壁改修工事 | FR4: 外壁改修工事 | FS4: 建具改修工事 | FT4: 建具改修工事 | FU4: 建具改修工事 | FV4: 建具改修工事 | FW4: 内装改修工事 | FX4: 内装改修工事 | FY4: 内装改修工事 | FZ4: 内装改修工事 | GA4: 内装改修工事 | GB4: 内装改修工事 | GC4: 内装改修工事 | GD4: 内装改修工事 | GE4: 内装改修工事 | GF4: 内装改修工事 | GG4: 内装改修工事 | GH4: 内装改修工事 | GI4: 内装改修工事 | GJ4: 内装改修工事 | GK4: 塗装改修工事 | GL4: 塗装改修工事 | GM4: 塗装改修工事 | GN4: 耐震改修工事 | GO4: 耐震改修工事 | GP4: 耐震改修工事 | GQ4: 耐震改修工事 | GR4: 耐震改修工事 | GS4: 耐震改修工事 | GT4: 耐震改修工事 | GU4: 耐震改修工事 | GV4: 耐震改修工事 | GW4: 耐震改修工事 | GX4: 耐震改修工事 | GY4: 耐震改修工事 | GZ4: 耐震改修工事 | HA4: 耐震改修工事 | HB4: 耐震改修工事 | HC4: 耐震改修工事 | HD4: 耐震改修工事 | HE4: 耐震改修工事 | HF4: 耐震改修工事 | HG4: 耐震改修工事 | HH4: 耐震改修工事 | HI4: 耐震改修工事 | HJ4: 耐震改修工事 | HK4: 耐震改修工事 | HL4: 耐震改修工事 | HM4: 耐震改修工事 | HN4: 耐震改修工事 | HO4: 耐震改修工事 | HP4: 耐震改修工事 | HQ4: 耐震改修工事 | HR4: 耐震改修工事 | HS4: 耐震改修工事 | HT4: 環境配慮改修工事 | HU4: 環境配慮改修工事 | HV4: 環境配慮改修工事 | HW4: 環境配慮改修工事 | HX4: 環境配慮改修工事 | HY4: 環境配慮改修工事 | HZ4: 環境配慮改修工事 | IA4: 環境配慮改修工事 | IB4: 環境配慮改修工事 | IC4: 環境配慮改修工事 | ID4: 環境配慮改修工事 | IE4: 環境配慮改修工事 | IF4: 環境配慮改修工事 | IG4: 環境配慮改修工事 | IH4: 環境配慮改修工事 | II4: 環境配慮改修工事 | IJ4: 環境配慮改修工事 | IK4: 環境配慮改修工事 | IL4: 環境配慮改修工事 | IM4: 環境配慮改修工事 | IN4: 環境配慮改修工事 | IO4: 環境配慮改修工事 | IP4: 環境配慮改修工事 | IQ4: 環境配慮改修工事 | IR4: 環境配慮改修工事 | IS4: 環境配慮改修工事 | IT4: 環境配慮改修工事 | IU4: 環境配慮改修工事 | IV4: 環境配慮改修工事 | IW4: 環境配慮改修工事 | IX4: 環境配慮改修工事 | IY4: 環境配慮改修工事 | IZ4: 環境配慮改修工事 | JA4: 環境配慮改修工事 | JB4: 環境配慮改修工事 | JC4: 一般事項 | JD4: 一般事項 | JE4: 一般事項 | JF4: 一般事項 | JG4: 一般事項 | JH4: 一般事項 | JI4: 一般事項 | JJ4: 一般事項 | JK4: 一般事項 | JL4: 撤去工事 | JM4: 機器等の改造 | JN4: 機器等の取外し | JO4: スリーブ、インサート工事 | JP4: スリーブ、インサート工事 | JQ4: 接地工事 | JR4: 接地工事 | JS4: 塗装工事 | JT4: 塗装工事 | JU4: 配管工事 | JV4: 配管工事 | JW4: 配線工事 | JX4: 配線工事 | JY4: 配線工事 | JZ4: 配線工事 | KA4: 搬入・据付け工事 | KB4: 搬入・据付け工事 | KC4: 搬入・据付け工事 | KD4: 搬入・据付け工事 | KE4: 搬入・据付け工事 | KF4: 搬入・据付け工事 | KG4: 搬入・据付け工事 | KH4: 搬入・据付け工事 | KI4: 搬入・据付け工事 | KJ4: 基礎工事 | KK4: 外構工事 | KL4: 外構工事 | KM4: 総合調整 | KN4: 総合調整 | KO4: その他 | KP4: 一般事項 | KQ4: 一般事項 | KR4: 一般事項 | KS4: 一般事項 | KT4: 一般事項 | KU4: 一般事項 | KV4: 一般事項 | KW4: 一般事項 | KX4: 一般事項 | KY4: 撤去工事等 | KZ4: スリーブ・インサート工事 | LA4: スリーブ・インサート工事 | LB4: 配管工事 | LC4: 配管工事 | LD4: 配管工事 | LE4: 配管工事 | LF4: ダクト工事 | LG4: ダクト工事 | LH4: 保温・塗装工事 | LI4: 保温・塗装工事 | LJ4: 保温・塗装工事 | LK4: 機器基礎工事 | LL4: 機器基礎工事 | LM4: 機器基礎工事 | LN4: 機器基礎工事 | LO4: 搬入・据付工事 | LP4: 搬入・据付工事 | LQ4: 搬入・据付工事 | LR4: 搬入・据付工事 | LS4: 搬入・据付工事 | LT4: 屋外・土工事 | LU4: 屋外・土工事 | LV4: 屋外・土工事 | LW4: 屋外・土工事 | LX4: 屋外・土工事 | LY4: 自動制御設備工事 | LZ4: 自動制御設備工事 | MA4: 自動制御設備工事 | MB4: ガス設備工事 | MC4: ガス設備工事 | MD4: ガス設備工事 | ME4: ガス設備工事 | MF4: さく井設備工事 | MG4: さく井設備工事 | MH4: さく井設備工事 | MI4: 浄化槽設備工事 | MJ4: 浄化槽設備工事 | MK4: 浄化槽設備工事 | ML4: 昇降機設備工事 | MM4: 昇降機設備工事 | MN4: 昇降機設備工事 | MO4: 昇降機設備工事 | MP4: 機械式駐車設備工事 | MQ4: 機械式駐車設備工事 | MR4: 機械式駐車設備工事 | MS4: 医療ガス設備工事 | MT4: 医療ガス設備工事 | MU4: 医療ガス設備工事 | MV4: 医療ガス設備工事 | MW4: 医療ガス設備工事 | MX4: 総合調整 | MY4: 総合調整 | MZ4: その他 | NA4: 一般共通事項_解体工事 | NB4: 一般共通事項_解体工事 | NC4: 一般共通事項_解体工事 | ND4: 一般共通事項_解体工事 | NE4: 一般共通事項_解体工事 | NF4: 一般共通事項_解体工事 | NG4: 一般共通事項_解体工事 | NH4: 一般共通事項_解体工事 | NI4: 一般共通事項_解体工事 | NJ4: 仮設工事 | NK4: 仮設工事 | NL4: 仮設工事 | NM4: 仮設工事 | NN4: 仮設工事 | NO4: 仮設工事 | NP4: 仮設工事 | NQ4: 解体施工 | NR4: 解体施工 | NS4: 解体施工 | NT4: 解体施工 | NU4: 解体施工 | NV4: 解体施工 | NW4: 解体施工 | NX4: 解体施工 | NY4: 解体施工 | NZ4: 解体施工 | OA4: 解体施工 | OB4: 解体施工 | OC4: 建設廃棄物 | OD4: 特別管理産業廃棄物 | OE4: 特別管理産業廃棄物 | OF4: アスベスト含有建材 | OG4: アスベスト含有建材 | OH4: アスベスト含有建材 | OI4: 特殊な建設副産物 | OJ4: 特殊な建設副産物 | OK4: 木造 | OL4: 木造 | OM4: 非木造 | ON4: 非木造 | OO4: 非木造 | OP4: 中項目A | OQ4: 中項目A | OR4: 中項目A | OS4: 中項目B | OT4: 中項目B | OU4: 中項目
A5: 工事現場管理 | B5: 発生材 | C5: 材料 | D5: 施工 | E5: 着工前の敷地 | F5: 障害物 | G5: 敷地境界 | H5: 縄張り | I5: ベンチマーク | J5: 遣り方 | K5: 指定仮設等 | L5: 根切り | M5: 根切り底 | N5: 排水 | O5: 埋戻し及び盛土 | P5: 建設発生土 | Q5: 山留め | R5: 既製コンクリート杭地業 | S5: 鋼杭地業 | T5: 場所打ちコンクリート杭地業 | U5: 砂利地業 | V5: 捨てコンクリート地業 | W5: 床下防湿層 | X5: 杭の載荷試験 | Y5: 地盤の載荷試験 | Z5: 材料 | AA5: 加工・組立て | AB5: 養生 | AC5: ガス圧接 | AD5: 機械式継手 | AE5: 溶接継手 | AF5: 材料 | AG5: 試し練り | AH5: 型枠 | AI5: ルーフドレン・スリーブ等の取付け | AJ5: 打込みの準備 | AK5: 輸送管の保持 | AL5: 打込み締固め | AM5: 打継ぎ | AN5: 養生 | AO5: 品質管理 | AP5: 打込み後の確認等 | AQ5: コンクリートの補修 | AR5: 材料 | AS5: 工作一般 | AT5: 高力ボルト接合 | AU5: 溶接接合 | AV5: スタッド溶接 | AW5: アンカーボルト | AX5: 搬入及び建方 | AY5: 耐火被覆 | AZ5: 材料_コンクリートブロック | BA5: 工法_コンクリートブロック | BB5: 材料_ＡＬＣパネル | BC5: 工法_ＡＬＣパネル | BD5: 材料_押出成形セメント板 | BE5: 工法_押出成形セメント板 | BF5: 防水材料 | BG5: 防水層下地 | BH5: プライマー塗り | BI5: ルーフィング張り | BJ5: 断熱工法 | BK5: 防水層の保護 | BL5: 伸縮調整目地 | BM5: 材料_シーリング | BN5: 工法_シーリング | BO5: シーリング材の試験 | BP5: 材料 | BQ5: 下地ごしらえ | BR5: 取付け | BS5: 材料 | BT5: 工法 | BU5: 検査 | BV5: 材料 | BW5: 工法 | BX5: 材料 | BY5: 工法 | BZ5: 材料 | CA5: 軽量鉄骨天井下地及び軽量鉄骨壁下地 | CB5: その他の部分の工法 | CC5: 材料 | CD5: 工法 | CE5: 材料 | CF5: 工法 | CG5: 工法 | CH5: 材料 | CI5: 工法 | CJ5: 材料 | CK5: 工法 | CL5: フリーアクセスフロア | CM5: 可動間仕切り | CN5: 移動間仕切り | CO5: トイレブース | CP5: 階段滑止め | CQ5: ブラインド | CR5: カーテン | CS5: プレキャストコンクリート | CT5: 間知石積み | CU5: 敷地境界石標 | CV5: その他 | CW5: 材料 | CX5: 工法 | CY5: 通水試験 | CZ5: 街きょ_縁石及び側溝等 | DA5: 路床 | DB5: 路盤 | DC5: アスファルト舗装 | DD5: コンクリート舗装 | DE5: カラー舗装 | DF5: 透水性アスファルト舗装 | DG5: ブロック系舗装 | DH5: 砂利敷き | DI5: 材料 | DJ5: 工法 | DK5: 材料_屋上緑化工事 | DL5: 改修前の状況 | DM5: 施工数量調査 | DN5: 工事現場管理 | DO5: 発生材 | DP5: 材料 | DQ5: 施工 | DR5: 着工前の敷地 | DS5: 障害物 | DT5: 既存部分 | DU5: 敷地境界 | DV5: 縄張り | DW5: ベンチマーク | DX5: 遣り方 | DY5: 指定仮設等 | DZ5: 既存防水層 | EA5: 工法_防水 | EB5: シーリング材の試験 | EC5: 工法_シーリング改修 | ED5: 工法_とい改修 | EE5: 工法_アルミニウム笠木改修 | EF5: 防水材料_防水工事 | EG5: 防水層下地_防水工事 | EH5: プライマー塗り_防水工事 | EI5: ルーフィング張り_防水工事 | EJ5: 断熱工法_防水工事 | EK5: 防水層の保護_防水工事 | EL5: 伸縮調整目地_防水工事 | EM5: 材料_シーリング_防水工事 | EN5: 工法_シーリング_防水工事 | EO5: シーリング材の試験_防水工事 | EP5: 材料_屋根及びとい工事 | EQ5: 工法_屋根及びとい工事 | ER5: 材料_金属工事 | ES5: 軽量鉄骨天井下地及び軽量鉄骨壁下地_金属工事 | ET5: 材料 | EU5: 工法_樹脂注入工法 | EV5: 工法_充填工法 | EW5: 工法_その他の注入工法 | EX5: 工法_タイル張替工法 | EY5: 工法_塗仕上げ外壁改修 | EZ5: 材料_コンクリート工事 | FA5: 試し練り_コンクリート工事 | FB5: 型枠_コンクリート工事 | FC5: ルーフドレン・スリーブ等の取付け_コンクリート工事 | FD5: 打込みの準備_コンクリート工事 | FE5: 輸送管の保持_コンクリート工事 | FF5: 打込み締固め_コンクリート工事 | FG5: 打継ぎ_コンクリート工事 | FH5: 養生_コンクリート工事 | FI5: 品質管理_コンクリート工事 | FJ5: 打込み後の確認等_コンクリート工事 | FK5: コンクリートの補修_コンクリート工事 | FL5: 材料_左官工事 | FM5: 工法_左官工事 | FN5: 材料_タイル工事 | FO5: 工法_タイル工事 | FP5: 検査_タイル工事 | FQ5: 材料_塗装工事 | FR5: 工法_塗装工事 | FS5: 工法_かぶせ工法 | FT5: 工法_撤去工法 | FU5: 材料_建具工事 | FV5: 工法_建具工事 | FW5: 軽量鉄骨天井_下地軽量鉄骨壁下地 | FX5: 既存の壁_床_天井 | FY5: 有害物質を含む材料処理 | FZ5: 材料_タイル工事 | GA5: 工法_タイル工事 | GB5: 検査_タイル工事 | GC5: 材料_木工事 | GD5: 工法_木工事 | GE5: 材料_左官工事 | GF5: 工法_左官工事 | GG5: 材料_内装工事 | GH5: 工法_内装工事 | GI5: 材料_塗装工事 | GJ5: 工法_塗装工事 | GK5: 既存塗膜の処理 | GL5: 材料_塗装工事 | GM5: 工法_塗装工事 | GN5: 材料 | GO5: あと施工アンカー | GP5: 工法_グラウト工事 | GQ5: 工法_柱補強工事 | GR5: 工法_免震改修工事 | GS5: 工法_制震改修工事 | GT5: 材料_鉄筋工事 | GU5: 加工・組立て_鉄筋工事 | GV5: 養生_鉄筋工事 | GW5: ガス圧接_鉄筋工事 | GX5: 機械式継手_鉄筋工事 | GY5: 溶接継手_鉄筋工事 | GZ5: 材料_コンクリート工事 | HA5: 試し練り_コンクリート工事 | HB5: 型枠_コンクリート工事 | HC5: ルーフドレン・スリーブ等の取付け_コンクリート工事 | HD5: 打込みの準備_コンクリート工事 | HE5: 輸送管の保持_コンクリート工事 | HF5: 打込み締固め_コンクリート工事 | HG5: 打継ぎ_コンクリート工事 | HH5: 養生_コンクリート工事 | HI5: 品質管理_コンクリート工事 | HJ5: 打込み後の確認等_コンクリート工事 | HK5: コンクリートの補修_コンクリート工事 | HL5: 材料_鉄骨工事 | HM5: 工作一般_鉄骨工事 | HN5: 高力ボルト接合_鉄骨工事 | HO5: 溶接接合_鉄骨工事 | HP5: スタッド溶接_鉄骨工事 | HQ5: アンカーボルト_鉄骨工事 | HR5: 搬入及び建方_鉄骨工事 | HS5: 耐火被覆_鉄骨工事 | HT5: 材料 | HU5: アスベスト含有建材の除去及び処理 | HV5: 特殊な建設副産物の処理 | HW5: 建設廃棄物の処理 | HX5: 断熱アスファルト防水改修工事 | HY5: 外断熱改修工事 | HZ5: ガラス改修工事 | IA5: 断熱・防露改修工事 | IB5: 屋上緑化改修工事 | IC5: 透水性アスファルト舗装改修工事 | ID5: 防水材料_防水工事 | IE5: 防水層下地_防水工事 | IF5: プライマー塗り_防水工事 | IG5: ルーフィング張り_防水工事 | IH5: 断熱工法_防水工事 | II5: 防水層の保護_防水工事 | IJ5: 伸縮調整目地_防水工事 | IK5: 材料_シーリング_防水工事 | IL5: 工法_シーリング_防水工事 | IM5: シーリング材の試験_防水工事 | IN5: 材料_建具工事 | IO5: 工法_建具工事 | IP5: 材料_内装工事 | IQ5: 工法_内装工事 | IR5: 路床_舗装工事 | IS5: 路盤_舗装工事 | IT5: アスファルト舗装_舗装工事 | IU5: コンクリート舗装_舗装工事 | IV5: カラー舗装_舗装工事 | IW5: 透水性アスファルト舗装_舗装工事 | IX5: ブロック系舗装_舗装工事 | IY5: 砂利敷き_舗装工事 | IZ5: 材料_植栽及び屋上緑化工事 | JA5: 工法_植栽及び屋上緑化工事 | JB5: 材料_屋上緑化工事_植栽及び屋上緑化工事 | JC5: 着工前の状況 | JD5: 改修前の状況 | JE5: 工事現場管理 | JF5: 安全対策 | JG5: 環境対策 | JH5: 障害物 | JI5: 発生材 | JJ5: 仮設 | JK5: 躯体穴開け等 | JL5: 機器_盤類_配線等 | JM5: 機器及び盤類 | JN5: 機器及び盤類 | JO5: 機材 | JP5: 施工 | JQ5: 機材 | JR5: 施工 | JS5: 機材 | JT5: 施工 | JU5: 機材 | JV5: 施工 | JW5: 機材 | JX5: 施工_共通 | JY5: 施工_電熱設備 | JZ5: 施工_駐車場管制設備 | KA5: 機材 | KB5: 施工_共通 | KC5: 施工_電力設備 | KD5: 施工_受変電設備 | KE5: 施工_電力貯蔵設備 | KF5: 施工_発電設備 | KG5: 施工_通信・情報設備 | KH5: 施工_中央監視制御設備 | KI5: 施工_医療関係設備 | KJ5: 施工 | KK5: 機材 | KL5: 施工 | KM5: 機材 | KN5: 試験 | KO5: 完成時写真 | KP5: 着工前の状況 | KQ5: 改修前の状況 | KR5: 工事現場管理 | KS5: 安全対策 | KT5: 環境対策 | KU5: 障害物 | KV5: 発生材 | KW5: 仮設 | KX5: 躯体穴開け等 | KY5: 機器類_配管_ダクト等 | KZ5: 機材 | LA5: 施工 | LB5: 機材_配管・管継手付属品・計器その他 | LC5: 施工 | LD5: 試験 | LE5: 管内の洗浄 | LF5: 機材_ダクト_ダンパー_制気口類 | LG5: 施工 | LH5: 機材 | LI5: 施工_保温 | LJ5: 施工_塗装 | LK5: 機材_コンクリート工事 | LL5: 施工_コンクリート工事 | LM5: 機材_鋼材工事 | LN5: 施工_鋼材工事 | LO5: 機材_空調 | LP5: 施工_空調 | LQ5: 機材_衛生 | LR5: 施工_衛生 | LS5: 試験_空調・衛生 | LT5: 施工_土工事 | LU5: 機材_地業工事 | LV5: 施工_地業工事 | LW5: 機材_コンクリート工事 | LX5: 施工_コンクリート工事 | LY5: 機材 | LZ5: 施工 | MA5: 試験 | MB5: 機材_配管・管継手付属品・計器その他 | MC5: 施工_配管 | MD5: 施工_機器等 | ME5: 試験 | MF5: 機材 | MG5: 施工 | MH5: 試験 | MI5: 機材_ユニット形 | MJ5: 施工_ユニット形 | MK5: 試験 | ML5: 機材_エレベーター_駆動装置等_かご_乗場_昇降路内機器_安全装置 | MM5: 施工_エレベーター | MN5: 機材_エスカレーター_構造体_駆動装置_踏段_欄干_乗降口 | MO5: 試験 | MP5: 機材_駆動装置_構造体_搬器_運転 | MQ5: 施工 | MR5: 試験 | MS5: 機材_配管・管継手付属品・計器その他 | MT5: 施工_搬入・据付工事 | MU5: 施工_配管 | MV5: 施工_機器等 | MW5: 試験 | MX5: 機材 | MY5: 試験 | MZ5: 完成時写真 | NA5: 解体前の状況 | NB5: 施工数量調査 | NC5: 法令等に基づく測定等_必要な場合 | ND5: 工事現場管理 | NE5: 発生材 | NF5: 材料 | NG5: 施工 | NH5: 着工前の敷地 | NI5: 障害物 | NJ5: 騒音等の養生その他 | NK5: 山留め_地盤改良等 | NL5: 敷地境界 | NM5: 縄張り | NN5: ベンチマーク | NO5: 遣り方 | NP5: 指定仮設等 | NQ5: 事前措置 | NR5: 建築設備_※ | NS5: ※機器_盤類_配線等（電気設備工事） | NT5: ※機器類_配管_ダクト等（機械設備工事） | NU5: 内装材 | NV5: 外装材 | NW5: 屋根葺材等 | NX5: 躯体 | NY5: 基礎及び杭 | NZ5: 構内舗装等 | OA5: 地下埋設物及び埋設配管 | OB5: 解体後の整地 | OC5: 建設廃棄物の処理 | OD5: 特別管理産業廃棄物の処理 | OE5: 建設廃棄物の処理 | OF5: アスベスト含有建材の除去及び処理 | OG5: 特別管理産業廃棄物の処理 | OH5: 建設廃棄物の処理 | OI5: 特殊な建設副産物の処理 | OJ5: 建設廃棄物の処理 | OK5: 目視調査 | OL5: 材質調査 | OM5: 目視調査 | ON5: 材質調査 | OO5: その他 | OP5: 小項目A | OQ5: 小項目B | OR5: 小項目C | OS5: 小項目A | OT5: 小項目B | OU5: 小項目
A6: 工事関係表示標識等の掲示状況(着工前) | B6: 分別状況（集積状況）(搬出前) | C6: 搬入材料の保管状況(施工中) | D6: 施工の検査(検査中) | E6: 敷地の状況(着工前) | F6: 障害物の形状寸法等(発見後) | G6: 敷地境界標識、境界線の状況、立会状況(着工前) | H6: 縄張り状況（検査、全景）(検査中) | I6: ベンチマーク検査の状況(検査中) | J6: 遣方検査の状況(検査中) | K6: 指定仮設の状況、足場等の状況(完了時) | L6: 根切りの寸法、形状等の計測状況(計測時) | M6: 支持地盤の土質状況、レベル、床付け状況(確認時) | N6: 排水設備の状況(施工中) | O6: 締固めの状況（段階的な埋戻しが分かるもの）(施工中) | P6: 集積・積込・搬出状況・処理状況（処分先）(施工中) | Q6: 材料(搬入時) | R6: 材料（杭の表示マーク、セメント）(搬入時) | S6: 材料（杭の表示マーク、セメント）(搬入時) | T6: 材料（鉄筋、セメント）(搬入時) | U6: 締固め前後の施工状況（締固め用具、高さ等）(施工中) | V6: 形状・寸法（大きさ、深さの確認のできるもの）(確認時) | W6: 梁際ののみ込み、重ね合せ寸法(施工中) | X6: 荷重確認状況（試験杭、試験）(試験中) | Y6: 荷重確認状況（試験地盤、試験）(試験中) | Z6: 鉄筋のラベル、ロールマーク(搬入時) | AA6: 配筋（補強筋を含む、寸法・本数）の計測状況(計測時) | AB6: 配筋の養生状況(施工中) | AC6: 圧接端面の状況(施工前) | AD6: 施工状況(施工中) | AE6: 施工状況(施工中) | AF6: 塩化物量・スランプ・空気量の試験状況(試験中) | AG6: 試験立会い状況(試験中) | AH6: 型枠の組立状況(施工中) | AI6: 取付け（固定）状況(施工中) | AJ6: 打込み前の清掃状況(打設前) | AK6: 配管ルート全体の保持状況(施工前) | AL6: 打込み・締固め状況（振動機要員数が分るもの）、タンピング状況(施工中) | AM6: 打継ぎ状況(打設後) | AN6: 散水その他の養生の状況(施工中) | AO6: 供試体の現場養生の状況(養生中) | AP6: 豆板、空洞、コールドジョイント、有害なたわみ、ひび割れ等(確認時) | AQ6: 補修材確認状況、補修状況(補修後) | AR6: 鋼材の表示マーク（工場）(搬入時) | AS6: 製作状況(施工中) | AT6: 摩擦面の処理、錆の状況(搬入時) | AU6: 開先の状況(施工中) | AV6: スタッドボルト検査状況(検査中) | AW6: ボルトの形状・寸法(搬入時) | AX6: 現場の仮置き状況(施工中) | AY6: ロックウールの厚さの検査状況（ピン等）(検査中) | AZ6: コンクリートブロックの表示マーク(搬入時) | BA6: 配筋（壁、まぐさ、がりょう等）及び継手の状況(施工中) | BB6: ＡＬＣパネルの表示マーク(搬入時) | BC6: パネルの建込み状況(施工中) | BD6: 取付け金物の表面処理状況(施工中) | BE6: 取付け状況(施工中) | BF6: 材料の表示のマーク（可使期間の分かる表示）(搬入時) | BG6: 水勾配の状況、突起の除去・欠損部の補修状況(施工前) | BH6: プライマー塗りの施工状況(施工中) | BI6: アスファルトの溶融(施工中) | BJ6: 施工状況（施工順序が分かるもの）(施工中) | BK6: 断熱材及び絶縁用シートの材料(搬入時) | BL6: 施工状況（下部が床面についているもの等）(施工中) | BM6: シーリング用材料の表示マーク（可使期間のわかる表示）(搬入時) | BN6: 目地等の形状・寸法（幅及び深さ等）(施工前) | BO6: 試験の状況(試験中) | BP6: 石の種類、寸法、石厚、裏面処理(搬入時) | BQ6: 下地組の状況(完了時) | BR6: 裏込めモルタルの充填状況(施工中) | BS6: タイルの表示マーク(搬入時) | BT6: 下地モルタルの乾燥状態、散水の施工状況(施工中) | BU6: 打診検査の実施状況(検査中) | BV6: 木材(集成材等)の表示マーク(搬入時) | BW6: 継手・仕口の組立て状況(施工中) | BX6: 屋根材料・といの表示マーク(搬入時) | BY6: 屋根の施工状況（留付けピッチ、重ね幅等の分かるもの）(施工中) | BZ6: 各材料の表示マーク(搬入時) | CA6: 壁下地設置高さ、部材の間隔(施工中) | CB6: 各材料・工法ごとの部材の間隔及び補強状況(施工中) | CC6: 使用材料の表示マーク（可使期間の分かる表示）等(搬入時) | CD6: 下地処理、水洗い状況(施工中) | CE6: 建具の種類、形状、寸法等(搬入時) | CF6: 材料・見え隠れ部分の塗装(施工中) | CG6: 検査状況（型枠、配筋）(検査中) | CH6: 塗料の表示マーク（可使期間の分かる表示）(搬入時) | CI6: 素地ごしらえの施工状況(施工中) | CJ6: 各材料の表示マーク(搬入時) | CK6: 下地の状況（乾燥等）(施工前) | CL6: 材料規格寸法(搬入時) | CM6: 材料規格寸法(搬入時) | CN6: 材料規格寸法(搬入時) | CO6: 材料規格寸法(搬入時) | CP6: アンカーの施工状況(施工中) | CQ6: 施工状況(施工中) | CR6: 取付け金物施工状況(施工中) | CS6: 取付け状況(施工中) | CT6: 形状、裏込めコンクリート、透水層の施工状況(施工中) | CU6: 設置位置の確認状況(確認時) | CV6: 材料規格寸法(搬入時) | CW6: 材料の表示マーク(搬入時) | CX6: 掘削状況、深さ(施工中) | CY6: 試験状況(試験中) | CZ6: 施工状況(施工中) | DA6: 締固めの施工状況(施工中) | DB6: 各層の敷均し厚さ（回数が分かるもの）(施工中) | DC6: アスファルト乳剤の散布状況(施工中) | DD6: 溶接金網の施工状況(施工中) | DE6: 施工状況(施工中) | DF6: 施工状況(施工中) | DG6: 施工状況(施工中) | DH6: 厚さ(施工中) | DI6: 樹木（養生の状態）(搬入時) | DJ6: 客土の厚さ(施工中) | DK6: 屋上緑化システム各構成層の材料(搬入時) | DL6: 改修前の状況(着工前) | DM6: 施工数量調査の状況(調査中) | DN6: 工事関係表示標識等の掲示状況(着工前) | DO6: 分別状況（集積状況）(搬出前) | DP6: 搬入材料の保管状況(施工中) | DQ6: 施工の検査(検査中) | DR6: 敷地の状況(着工前) | DS6: 障害物の形状寸法等(発見後) | DT6: 養生(養生中) | DU6: 敷地境界標識、境界線の状況、立会状況(着工前) | DV6: 縄張り状況（検査、全景）(検査中) | DW6: ベンチマーク検査の状況(検査中) | DX6: 遣方検査の状況(検査中) | DY6: 指定仮設の状況、足場等の状況(完了時) | DZ6: 撤去及び下地の補修状況(施工中) | EA6: 施工状況(施工中) | EB6: 接着性試験状況(試験中) | EC6: 各種工法施工状況、可使期間の分かる表示(施工中) | ED6: 施工状況(施工中) | EE6: 施工状況(施工中) | EF6: 材料の表示のマーク（可使期間の分かる表示）(搬入時) | EG6: 水勾配の状況、突起の除去・欠損部の補修状況(施工前) | EH6: プライマー塗りの施工状況(施工中) | EI6: アスファルトの溶融(施工中) | EJ6: 施工状況（施工順序が分かるもの）(施工中) | EK6: 断熱材及び絶縁用シートの材料(搬入時) | EL6: 施工状況（下部が床面についているもの等）(施工中) | EM6: シーリング用材料の表示マーク（可使期間のわかる表示）(搬入時) | EN6: 目地等の形状・寸法（幅及び深さ等）(施工前) | EO6: 試験の状況(試験中) | EP6: 屋根材料・といの表示マーク(搬入時) | EQ6: 屋根の施工状況（留付けピッチ、重ね幅等の分かるもの）(施工中) | ER6: 各材料の表示マーク(搬入時) | ES6: 壁下地設置高さ、部材の間隔(施工中) | ET6: 注入材料（可使期間の分かる表示）(搬入時) | EU6: コア抜取りによるひび割れ部分の注入状況の検査状況(検査中) | EV6: 充填材の仕上り状態及び硬化状態の検査状況(検査中) | EW6: 注入材料の注入、固着状況検査(検査中) | EX6: 打診、接着力試験状況(試験中) | EY6: 既存除去状況(施工中) | EZ6: 塩化物量・スランプ・空気量の試験状況(試験中) | FA6: 試験立会い状況(試験中) | FB6: 型枠の組立状況(施工中) | FC6: 取付け（固定）状況(施工中) | FD6: 打込み前の清掃状況(打設前) | FE6: 配管ルート全体の保持状況(施工前) | FF6: 打込み・締固め状況（振動機要員数が分るもの）、タンピング状況(施工中) | FG6: 打継ぎ状況(打設後) | FH6: 散水その他の養生の状況(施工中) | FI6: 供試体の現場養生の状況(養生中) | FJ6: 豆板、空洞、コールドジョイント、有害なたわみ、ひび割れ等(確認時) | FK6: 補修材確認状況、補修状況(補修後) | FL6: 使用材料の表示マーク（可使期間の分かる表示）等(搬入時) | FM6: 下地処理、水洗い状況(施工中) | FN6: タイルの表示マーク(搬入時) | FO6: 下地モルタルの乾燥状態、散水の施工状況(施工中) | FP6: 打診検査の実施状況(検査中) | FQ6: 塗料の表示マーク（可使期間の分かる表示）(搬入時) | FR6: 素地ごしらえの施工状況(施工中) | FS6: 既存枠、あと施工アンカー施工状況(施工中) | FT6: 撤去、あと施工アンカー施工状況(施工中) | FU6: 建具の種類、形状、寸法等(搬入時) | FV6: 材料・見え隠れ部分の塗装(施工中) | FW6: 既存埋込みインサートの引抜き試験(試験中) | FX6: 撤去及び下地処理状況(施工中) | FY6: 撤去及び下地処理状況(施工中) | FZ6: タイルの表示マーク(搬入時) | GA6: 下地モルタルの乾燥状態、散水の施工状況(施工中) | GB6: 打診検査の実施状況(検査中) | GC6: 木材(集成材等)の表示マーク(搬入時) | GD6: 継手・仕口の組立て状況(施工中) | GE6: 使用材料の表示マーク（可使期間の分かる表示）等(搬入時) | GF6: 下地処理、水洗い状況(施工中) | GG6: 各材料の表示マーク(搬入時) | GH6: 下地の状況（乾燥等）(施工前) | GI6: 塗料の表示マーク（可使期間の分かる表示）(搬入時) | GJ6: 素地ごしらえの施工状況(施工中) | GK6: 除去及び下地処理状況(施工中) | GL6: 塗料の表示マーク（可使期間の分かる表示）(搬入時) | GM6: 素地ごしらえの施工状況(施工中) | GN6: 各種耐震改修工事材料(搬入時) | GO6: 施工確認試験の状況(試験中) | GP6: 圧入準備状況(試験中) | GQ6: 鋼板等の組立て検査状況(検査中) | GR6: 施工状況(施工中) | GS6: 施工状況(施工中) | GT6: 鉄筋のラベル、ロールマーク(搬入時) | GU6: 配筋（補強筋を含む、寸法・本数）の計測状況(計測時) | GV6: 配筋の養生状況(施工中) | GW6: 圧接端面の状況(施工前) | GX6: 施工状況(施工中) | GY6: 施工状況(施工中) | GZ6: 塩化物量・スランプ・空気量の試験状況(試験中) | HA6: 試験立会い状況(試験中) | HB6: 型枠の組立状況(施工中) | HC6: 取付け（固定）状況(施工中) | HD6: 打込み前の清掃状況(打設前) | HE6: 配管ルート全体の保持状況(施工前) | HF6: 打込み・締固め状況（振動機要員数が分るもの）、タンピング状況(施工中) | HG6: 打継ぎ状況(打設後) | HH6: 散水その他の養生の状況(施工中) | HI6: 供試体の現場養生の状況(養生中) | HJ6: 豆板、空洞、コールドジョイント、有害なたわみ、ひび割れ等(確認時) | HK6: 補修材確認状況、補修状況(補修後) | HL6: 鋼材の表示マーク（工場）(搬入時) | HM6: 製作状況(施工中) | HN6: 摩擦面の処理、錆の状況(搬入時) | HO6: 開先の状況(施工中) | HP6: スタッドボルト検査状況(検査中) | HQ6: ボルトの形状・寸法(搬入時) | HR6: 現場の仮置き状況(施工中) | HS6: ロックウールの厚さの検査状況（ピン等）(検査中) | HT6: 各種環境配慮工事材料(搬入時) | HU6: 除去(施工中) | HV6: 保管、集積状況(搬出前) | HW6: 分別状況(搬出前) | HX6: 施工状況(施工中) | HY6: 施工状況(施工中) | HZ6: 施工状況(施工中) | IA6: 施工状況(施工中) | IB6: 施工状況(施工中) | IC6: 施工状況(施工中) | ID6: 材料の表示のマーク（可使期間の分かる表示）(搬入時) | IE6: 水勾配の状況、突起の除去・欠損部の補修状況(施工前) | IF6: プライマー塗りの施工状況(施工中) | IG6: アスファルトの溶融(施工中) | IH6: 施工状況（施工順序が分かるもの）(施工中) | II6: 断熱材及び絶縁用シートの材料(搬入時) | IJ6: 施工状況（下部が床面についているもの等）(施工中) | IK6: シーリング用材料の表示マーク（可使期間のわかる表示）(搬入時) | IL6: 目地等の形状・寸法（幅及び深さ等）(施工前) | IM6: 試験の状況(試験中) | IN6: 建具の種類、形状、寸法等(搬入時) | IO6: 材料・見え隠れ部分の塗装(施工中) | IP6: 各材料の表示マーク(搬入時) | IQ6: 下地の状況（乾燥等）(施工前) | IR6: 締固めの施工状況(施工中) | IS6: 各層の敷均し厚さ（回数が分かるもの）(施工中) | IT6: アスファルト乳剤の散布状況(施工中) | IU6: 溶接金網の施工状況(施工中) | IV6: 施工状況(施工中) | IW6: 施工状況(施工中) | IX6: 施工状況(施工中) | IY6: 厚さ(施工中) | IZ6: 樹木（養生の状態）(搬入時) | JA6: 客土の厚さ(施工中) | JB6: 屋上緑化システム各構成層の材料(搬入時) | JC6: 敷地、周辺の状況等(着工前) | JD6: 改修前の状況(着工前) | JE6: 工事関係表示標識等の掲示状況(掲示時) | JF6: 実施状況（工事現場内、周辺の対策、第三者対策等）(施工中) | JG6: 実施状況（騒音、振動、臭気対策等）(施工中) | JH6: 障害物の位置、形状、寸法等(発見時) | JI6: 分別状況（集積状況）(搬出前) | JJ6: 機材置き場、足場等の状況(施工中) | JK6: 鉄筋及び埋込配管の探査の状況(施工時) | JL6: 撤去対象の機器、盤類、配線等の状況(施工前) | JM6: 改修前の状況(施工前) | JN6: 取外し前の状況(施工前) | JO6: 材質、外形、寸法、水切りつば等(施工前) | JP6: 取付状況（位置、間隔、鉄筋補強及び貫通部の処理）(施工中) | JQ6: 接地材料の種類、材質、寸法等(搬入時) | JR6: 接地極の埋設状況(施工中) | JS6: 塗料等の仕様、規格、表示マーク等(施工前) | JT6: 塗装の作業状況（塗装過程）(施工中) | JU6: 電線保護物類（付属品共）の種類、規格、マーク等(搬入時) | JV6: コンクリート埋設配管のふ設、盤等への立上げの状況(施工中) | JW6: 電線、ケーブル等の種類、規格、表示マーク等(搬入時) | JX6: 配線の接続及び絶縁処理の状況(施工中) | JY6: 電熱線等のふ設状況(施工中) | JZ6: ループコイルのふ設状況(施工中) | KA6: 主要機器、盤類等の種類、仕様、銘板、規格等(搬入時) | KB6: 主要機器、盤類等の搬入据付けの状況(搬入時) | KC6: 照明器具等の取付状況(施工中) | KD6: 配電盤等の固定及び配線接続の状況(施工中) | KE6: 直流電源装置、ＵＰＳ等の固定及び配線接続の状況(施工中) | KF6: 発電装置の設置状況(施工中) | KG6: 端子盤、機器収納ラック等の固定及び配線接続の状況(施工中) | KH6: 中央監視制御装置の固定及び配線接続の状況(施工中) | KI6: ナースコール装置の固定及び配線接続の状況(施工中) | KJ6: 根切りの寸法、床付け、山止め等の状況(施工中) | KK6: 外構工事機材の種類、規格、寸法等(搬入時) | KL6: 地中管路の掘削及びふ設の状況(施工中) | KM6: 測定器等の試験用機材（仕様、規格、銘板、合格認定書等）(試験前) | KN6: 接地抵抗測定、絶縁抵抗測定、照度測定等の状況(試験中) | KO6: 電気室、機械室等（機器配置及び配線の状況）(完成後) | KP6: 敷地、周辺の状況等(着工前) | KQ6: 改修前の状況(着工前) | KR6: 工事関係表示標識等の掲示状況(掲示時) | KS6: 実施状況（工事現場内、周辺の対策、第三者対策等）(施工中) | KT6: 実施状況（騒音、振動、臭気対策等）(施工中) | KU6: 障害物の位置、形状、寸法等(発見時) | KV6: 分別状況（集積状況）(搬出前) | KW6: 機材置き場、足場等の状況(施工中) | KX6: 鉄筋,埋込配管等の探査の状況(施工時) | KY6: 撤去機器類、配管、ダクト等の状況(撤去前) | KZ6: 形状、寸法、塗装状況（つば付き鋼管）等(搬入時) | LA6: 取付状況、取付位置、貫通部処理状況等(施工中) | LB6: 規格（表示マーク、種別、口径等）、保管状況等(搬入時) | LC6: 工具（規格等）(施工前) | LD6: 水圧試験、満水試験、通水試験、気密試験、絶縁試験、動作試験、空気圧試験等の状況(試験開始時) | LE6: フラッシングの状況(洗浄中) | LF6: 規格、評定マーク、形状（板厚、接合用部材、補強、シール状況等）、保管状況等(搬入時) | LG6: ダクト加工（寸法、補強、変形、フランジ、板厚等）(加工後) | LH6: 保温材及び塗料（規格、表示マーク、保管状況等）(搬入時) | LI6: 配管、ダクト、機器、消音内張り等（作業状況、品質管理状況等）(施工中) | LJ6: 配管、ダクト、機器及び鋼材（作業状況、養生、作業環境、品質管理状況等）(施工中) | LK6: コンクリートの品質（スランプ高さ等）、鉄筋サイズ等(搬入時) | LL6: 配筋状況、現場練り作業、打設状況、養生等(施工時) | LM6: 鋼材（形状、寸法、規格等）(施工前) | LN6: 施工状況、品質管理状況等(施工中) | LO6: 規格、銘板、保管状況等(搬入時) | LP6: 機器搬入状況(搬入時) | LQ6: 規格、銘板、保管状況等(搬入時) | LR6: 機器搬入状況(搬入時) | LS6: 機器（点火、耐圧、能力、騒音等）(試験前) | LT6: 土止め状況、掘削溝形状、埋設深等寸法、埋設土、埋設表示用テープ、地中埋設標等(施工時) | LU6: 砂利等のサイズ、施工用機材等(搬入時) | LV6: 砂利地業厚さ、締め固め作業状況、捨てコン寸法等(施工時) | LW6: コンクリートの品質（スランプ高さ等）、鉄筋サイズ等(搬入時) | LX6: 配筋状況、現場練り作業、打設状況、養生等(施工時) | LY6: 自動制御設備及び中央監視制御装置（形状、寸法確認、銘板、付属品、養生、保管状況等(搬入時) | LZ6: 配線状況（接合状況、露出部分保護、埋設配線等）(施工時) | MA6: 試験用機器（規格、銘板等）(試験前) | MB6: 規格（表示マーク、種別、口径等）、保管状況等(搬入時) | MC6: 施工状況（吊り部、支持部、建物導入部、火気に対する防護措置、埋設深さ、埋設表示用テープ、地中埋設標、防食措置等）(施工中) | MD6: 取付位置、固定方法、据付状況等(施工中) | ME6: 試験用機器（規格、銘板、合格認定証等）(試験前) | MF6: 機器類（形状、規格、銘板、保管状況等）(搬入時) | MG6: 事前調査（現場状況、地表電気探査状況等）(施工前) | MH6: 試験用機器（規格、銘板等）(試験前) | MI6: 形状、規格、能力形式、認定証、銘板等(搬入時) | MJ6: 土工事及び基礎工事（「屋外・土工事」による）(施工中) | MK6: 水張試験、満水試験、水圧試験、通水試験、空気圧試験等の状況(試験開始時) | ML6: 形状、寸法、規格、銘板、外観検査、保管状況等(搬入時) | MM6: 耐震措置状況（固定状況、昇降路内突出物に対する保護装置等）(施工中) | MN6: 形状、寸法、規格、銘板、外観検査、保管状況等(搬入時) | MO6: 試験用機器（規格、銘板等）(試験前) | MP6: 形状、寸法、規格、銘板、外観検査、保管状況等(搬入時) | MQ6: 耐震措置の状況(施工中) | MR6: 絶縁抵抗試験、性能試験試験等の状況(試験開始時) | MS6: 規格（表示マーク、種別、口径等）、保管状況等(搬入時) | MT6: 機器搬入状況(搬入時) | MU6: 施工状況（吊り部、支持部、配管の識別等）(施工中) | MV6: 取付位置及び固定方法(施工中) | MW6: 試験用機器（規格、銘板等）(試験前) | MX6: 試験用機器（規格、銘板等）(試験前) | MY6: 機器試験（着火試験等）の状況(試験中) | MZ6: 機械室（機器及び配管の状況、主配管設備の状況等）(完成後) | NA6: 解体前の状況（敷地、周辺施設、解体施設）、地中埋設物の状況(着工前) | NB6: 施工数量調査の状況(調査中) | NC6: 測定機器(設置時) | ND6: 工事関係表示標識等の掲示状況(着工前) | NE6: 分別状況（集積状況）(搬出前) | NF6: 搬入材料の保管状況(施工中) | NG6: 施工の検査(検査中) | NH6: 敷地の状況(着工前) | NI6: 障害物の形状寸法等(発見後) | NJ6: 養生、散水、仮囲い等(施工中) | NK6: 材料(搬入時) | NL6: 敷地境界標識、境界線の状況、立会状況(着工前) | NM6: 縄張り状況（検査、全景）(検査中) | NN6: ベンチマーク検査の状況(検査中) | NO6: 遣方検査の状況(検査中) | NP6: 指定仮設の状況、足場等の状況(完了時) | NQ6: 解体重機（低騒音対応等）マーク(施工中) | NR6: 撤去状況(施工中) | NS6: 撤去対象の機器、盤類、配線等の状況(施工前) | NT6: 撤去機器類、配管、ダクト等の状況(撤去前) | NU6: 解体状況(施工中) | NV6: 解体状況(施工中) | NW6: 解体状況(施工中) | NX6: 上部解体状況(施工中) | NY6: 基礎解体状況(施工中) | NZ6: 解体状況(施工中) | OA6: 解体状況(施工中) | OB6: 地ならし、埋戻し及び盛り土状況（段階的な埋戻しが分かるもの）(施工中) | OC6: 分別状況(搬出前) | OD6: 保管、集積状況(搬出前) | OE6: 分別状況(搬出前) | OF6: 除去(施工中) | OG6: 保管、集積状況(搬出前) | OH6: 分別状況(搬出前) | OI6: 保管、集積状況(搬出前) | OJ6: 分別状況(搬出前) | OK6: 建物内部の目視調査 | OL6: 中性化 | OM6: 地中梁の調査 | ON6: アンカー引き抜き調査 | OP6: 撮影項目を入力する | OQ6: 撮影項目を入力する | OR6: 撮影項目を入力する | OS6: 撮影項目を入力する | OT6: 撮影項目を入力する | OU6: 細目
A7: 工事関係表示標識等の掲示状況(施工中) | B7: 搬出状況（搬出業者名が分かるもの）(搬出時) | E7: 近隣建物の状況(着工前) | F7: 障害物の処理状況(処理後) | I7: ベンチマーク養生の状況(検査中) | O7: 全体の状況(施工中) | Q7: 山留め設置状況(施工中) | R7: 試験杭の立会い状況（試験掘削立会い状況）(施工中) | S7: 試験杭の立会い状況（試験掘削立会い状況）(施工中) | T7: 試験杭の立会い状況（試験掘削時の支持地盤の土質状況）(施工中) | Z7: 加工場等での集積保管状況(保管中) | AA7: 配筋検査状況(検査中) | AC7: 圧接状況(施工中) | AD7: 不良個所の修正状況(完了時) | AE7: 溶接部の試験(試験中) | AF7: 型枠の表示マーク（打放しの場合）(搬入前) | AH7: 開口部、貫通孔、埋込み金物(施工中) | AJ7: 打込み前の散水状況(施工中) | AL7: こて押さえ状況(施工中) | AO7: 強度（調合強度管理試験用：２８日）の試験状況(試験中) | AP7: コンクリートの出来形状況(検査中) | AR7: 高力ボルトの表示マーク(搬入時) | AS7: 製品検査状況(検査中) | AT7: 締付け機器の確認状況(確認時) | AU7: 開先状況の測定状況(測定時) | AW7: ボルトの保持及び埋込み状況(施工中) | AX7: 建入れの計測状況(計測時) | AY7: 張付け状況(施工中) | BA7: 縦遣方の状況(検査中) | BB7: 取付け金物の表面処理状況(施工中) | BC7: ＡＬＣパネル取付け金物及び開口部の補強状況(施工中) | BF7: 防水材料の入荷数量(搬入時) | BG7: 出隅・入隅の面取りの状況、成形緩衝材施工状況(施工前) | BI7: 各層の張付け状況、（出隅・入隅・ドレン回り等の増張り、捨張り、重ね幅、立ち上がり部、端部、コンクリート打継ぎ個所等）(施工中) | BK7: 保護コンクリートの溶接金網の敷込み(施工中) | BN7: 下地の清掃状況(施工前) | BQ7: 取付け金物の状況(施工中) | BT7: 水湿しの状況(施工中) | BU7: 接着力試験の実施状況（屋外及び屋内吹抜け部分）(検査中) | BV7: 木材の含水率測定状況(搬入時) | BW7: 防腐・防蟻剤の塗布状況(施工中) | BY7: といの継手及び下がり止めの状況(施工中) | BZ7: 各部材の材質・形状・寸法・表面処理(搬入時) | CA7: 補強の状況（天井開口、壁出入り口開口等）(施工中) | CB7: 見え隠れ部分の施工状況(施工中) | CC7: 材料の入荷数量(搬入時) | CD7: 異種下地接続部の処理状況(施工中) | CE7: ガラスの種類、寸法、厚さ等(搬入時) | CF7: アンカーの施工状況(施工中) | CG7: 取付け金物の施工状況(施工中) | CH7: 塗装材料の入荷数量(搬入時) | CI7: 錆止め塗料塗りの施工状況（工場塗装を含む）(施工中) | CJ7: 各材料の材質・形状・寸法(搬入時) | CK7: ビニル床シート・床タイルの施工状況(施工中) | CL7: 施工状況(施工中) | CM7: 施工状況（固定状況）(施工中) | CN7: 施工状況（補強、ハンガーレール固定状況）(施工中) | CO7: 施工状況(施工中) | CV7: 施工状況(施工中) | CX7: 根切り底の状況(施工中) | DA7: 締固め後の高さの計測状況(計測時) | DB7: 締固め後の高さ及び厚さの計測状況(計測時) | DC7: アスファルト混合物の敷均し状況（敷均し温度）(施工中) | DD7: コンクリートの打設状況(施工中) | DE7: 試験状況(試験中) | DF7: 試験状況(試験中) | DG7: 試験状況(試験中) | DI7: 客土（土質の分かるもの）(搬入時) | DJ7: 植樹の施工状況（植穴、支柱）(施工中) | DK7: 屋上緑化システム各構成層の施工状況(施工中) | DN7: 工事関係表示標識等の掲示状況(施工中) | DO7: 搬出状況（搬出業者名が分かるもの）(搬出時) | DR7: 近隣建物の状況(着工前) | DS7: 障害物の処理状況(処理後) | DW7: ベンチマーク養生の状況(検査中) | EF7: 防水材料の入荷数量(搬入時) | EG7: 出隅・入隅の面取りの状況、成形緩衝材施工状況(施工前) | EI7: 各層の張付け状況、（出隅・入隅・ドレン回り等の増張り、捨張り、重ね幅、立ち上がり部、端部、コンクリート打継ぎ個所等）(施工中) | EK7: 保護コンクリートの溶接金網の敷込み(施工中) | EN7: 下地の清掃状況(施工前) | EQ7: といの継手及び下がり止めの状況(施工中) | ER7: 各部材の材質・形状・寸法・表面処理(搬入時) | ES7: 補強の状況（天井開口、壁出入り口開口等）(施工中) | EZ7: 型枠の表示マーク（打放しの場合）(搬入前) | FB7: 開口部、貫通孔、埋込み金物(施工中) | FD7: 打込み前の散水状況(施工中) | FF7: こて押さえ状況(施工中) | FI7: 強度（調合強度管理試験用：２８日）の試験状況(試験中) | FJ7: コンクリートの出来形状況(検査中) | FL7: 材料の入荷数量(搬入時) | FM7: 異種下地接続部の処理状況(施工中) | FO7: 水湿しの状況(施工中) | FP7: 接着力試験の実施状況（屋外及び屋内吹抜け部分）(検査中) | FQ7: 塗装材料の入荷数量(搬入時) | FR7: 錆止め塗料塗りの施工状況（工場塗装を含む）(施工中) | FU7: ガラスの種類、寸法、厚さ等(搬入時) | FV7: アンカーの施工状況(施工中) | GA7: 水湿しの状況(施工中) | GB7: 接着力試験の実施状況（屋外及び屋内吹抜け部分）(検査中) | GC7: 木材の含水率測定状況(搬入時) | GD7: 防腐・防蟻剤の塗布状況(施工中) | GE7: 材料の入荷数量(搬入時) | GF7: 異種下地接続部の処理状況(施工中) | GG7: 各材料の材質・形状・寸法(搬入時) | GH7: ビニル床シート・床タイルの施工状況(施工中) | GI7: 塗装材料の入荷数量(搬入時) | GJ7: 錆止め塗料塗りの施工状況（工場塗装を含む）(施工中) | GL7: 塗装材料の入荷数量(搬入時) | GM7: 錆止め塗料塗りの施工状況（工場塗装を含む）(施工中) | GR7: 施工状況(検査中) | GS7: 施工状況(検査中) | GT7: 加工場等での集積保管状況(保管中) | GU7: 配筋検査状況(検査中) | GW7: 圧接状況(施工中) | GX7: 不良個所の修正状況(完了時) | GY7: 溶接部の試験(試験中) | GZ7: 型枠の表示マーク（打放しの場合）(搬入前) | HB7: 開口部、貫通孔、埋込み金物(施工中) | HD7: 打込み前の散水状況(施工中) | HF7: こて押さえ状況(施工中) | HI7: 強度（調合強度管理試験用：２８日）の試験状況(試験中) | HJ7: コンクリートの出来形状況(検査中) | HL7: 高力ボルトの表示マーク(搬入時) | HM7: 製品検査状況(検査中) | HN7: 締付け機器の確認状況(確認時) | HO7: 開先状況の測定状況(測定時) | HQ7: ボルトの保持及び埋込み状況(施工中) | HR7: 建入れの計測状況(計測時) | HS7: 張付け状況(施工中) | HU7: 保管、集積状況(搬出前) | HV7: 搬出状況（搬出業者名が分かるもの）(施工中) | HW7: 搬出状況（搬出業者名が分かるもの）(搬出時) | ID7: 防水材料の入荷数量(搬入時) | IE7: 出隅・入隅の面取りの状況、成形緩衝材施工状況(施工前) | IG7: 各層の張付け状況、（出隅・入隅・ドレン回り等の増張り、捨張り、重ね幅、立ち上がり部、端部、コンクリート打継ぎ個所等）(施工中) | II7: 保護コンクリートの溶接金網の敷込み(施工中) | IL7: 下地の清掃状況(施工前) | IN7: ガラスの種類、寸法、厚さ等(搬入時) | IO7: アンカーの施工状況(施工中) | IP7: 各材料の材質・形状・寸法(搬入時) | IQ7: ビニル床シート・床タイルの施工状況(施工中) | IR7: 締固め後の高さの計測状況(計測時) | IS7: 締固め後の高さ及び厚さの計測状況(計測時) | IT7: アスファルト混合物の敷均し状況（敷均し温度）(施工中) | IU7: コンクリートの打設状況(施工中) | IV7: 試験状況(試験中) | IW7: 試験状況(試験中) | IX7: 試験状況(試験中) | IZ7: 客土（土質の分かるもの）(搬入時) | JA7: 植樹の施工状況（植穴、支柱）(施工中) | JB7: 屋上緑化システム各構成層の施工状況(施工中) | JE7: 養生（既存施設部分及び工事目的物の施工済部分）(施工中) | JF7: 法令等に基づく措置状況(施工中) | JG7: 法令等に基づく措置状況(施工中) | JH7: 障害物の処理の状況(処理時) | JI7: 搬出状況（搬出業者名が分かるもの）(搬出時) | JJ7: 指定仮設の状況(施工中) | JK7: はつり及び穴開け作業の状況(施工時) | JL7: 配線等の切断及び撤去の状況(施工中) | JM7: 改修の状況(施工中) | JN7: 取外し機器の整備状況(施工中) | JR7: 接地線の建物構造体への接続状況(施工中) | JV7: 隠ぺい配管（二重天井内等）のふ設状況(施工中) | JW7: 接続材及び端末処理材の種類、規格、表示マーク等(搬入時) | JX7: 耐熱配線及び耐火配線の接続状況(施工中) | JY7: 電熱線等の接続及び絶縁処理の状況(施工中) | KB7: 主要機器、盤類等のアンカーボルト等の取付状況(施工中) | KC7: 配線器具等の取付状況(施工中) | KF7: 発電装置の配管（排気、給油等）の施工状況及び配線接続の状況(施工中) | KG7: 電話交換機等の固定及び配線接続の状況(施工中) | KJ7: 型枠の形状、寸法、配筋の状況等(施工中) | KL7: ハンドホール、マンホール等の掘削の状況(施工中) | KN7: 光ファイバーケーブルの伝送損失測定の状況(試験中) | KO7: 事務室及び上級室（室内設備の状況）(完成後) | KP7: --要領-- | KQ7: --要領-- | KR7: 養生（既存施設部分及び工事目的物の施工済部分）(施工中) | KS7: 法令等に基づく措置状況(施工中) | KT7: 法令等に基づく措置状況(施工中) | KU7: 障害物の処理後の状況(処理後) | KV7: 搬出状況（搬出業者名が分かるもの）(搬出時) | KW7: 指定仮設の状況(施工中) | KX7: はつり及び穴開け作業の状況(施工時) | KY7: 機器類の解体、分別、搬出等の状況(施工中) | KZ7: --要領-- | LA7: --要領-- | LB7: --要領-- | LC7: 各種接合工法（施工状況、品質管理状況等）(施工時) | LD7: 水圧試験、満水試験、通水試験、気密試験、絶縁試験、動作試験、空気圧試験等の状況(試験中) | LE7: --要領-- | LF7: --要領-- | LG7: 接続工事（接続作業、品質管理状況等）(施工中) | LH7: --要領-- | LI7: --要領-- | LJ7: --要領-- | LK7: --要領-- | LL7: --要領-- | LM7: --要領-- | LN7: --要領-- | LO7: --要領-- | LP7: 機器据付（作業状況、水平確認、防振・耐震措置状況等）(施工時) | LQ7: 取付状況（耐火カバー他）、配管接続状況、養生等(施工時) | LR7: 機器据付（作業状況、水平確認、防振・耐震措置状況等）(施工時) | LS7: タンク類の試験（内部防錆被膜試験、満水試験、水圧試験等）の状況(試験開始時) | LT7: --要領-- | LU7: --要領-- | LV7: --要領-- | LW7: --要領-- | LX7: --要領-- | LY7: --要領-- | LZ7: 機器類（取付位置、水平垂直勾配、耐震措置等）(施工時) | MA7: 動作試験、絶縁抵抗試験等の状況(試験開始時) | MB7: 機器類（規格、銘板、合格認定証等）(搬入時) | MC7: --要領-- | MD7: --要領-- | ME7: 気密試験、点火試験等の状況(試験開始時) | MF7: --要領-- | MG7: 掘削（施工状況、水止め方法、泥水処理の状況等）(施工中) | MH7: 揚水試験（予備揚水試験、段階揚水試験、連続揚水試験、水位回復試験等）の状況(試験開始時) | MI7: --要領-- | MJ7: 設置作業状況（設置、水平確認、水締め、埋戻し等）(施工中) | MK7: 水張試験、満水試験、水圧試験、通水試験、空気圧試験等の状況(試験中) | ML7: --要領-- | MM7: 取付位置（地震感知器、乗場ボタン、操作盤、安全装置等）(施工中) | MN7: 取付状況（受梁、吊り元、踏段等）(施工中) | MO7: 受電盤、主回路、制御器、配線、配管等の試験状況(試験開始時) | MP7: --要領-- | MQ7: --要領-- | MR7: 絶縁抵抗試験、性能試験試験等の状況(試験中) | MS7: --要領-- | MT7: 機器据付（作業状況、水平確認、防振・耐震措置状況等）(施工時) | MU7: 各種接合工法（施工状況、品質管理状況等）(施工中) | MV7: --要領-- | MW7: 系統試験、気密試験、配管内洗浄度試験、作動試験、性能試験等の状況(試験開始時) | MX7: --要領-- | MY7: 機器試験（着火試験等）の状況(試験終了時) | MZ7: 便所及び洗面所（衛生器具の設置状況等）(完成後) | NC7: 測定等の状況(測定中) | ND7: 工事関係表示標識等の掲示状況(施工中) | NE7: 搬出状況（搬出業者名が分かるもの）(搬出時) | NH7: 近隣建物の状況(着工前) | NI7: 障害物の処理状況(処理後) | NK7: 設置状況(施工中) | NN7: ベンチマーク養生の状況(検査中) | NR7: 分別状況(施工中) | NS7: 配線等の切断及び撤去の状況(施工中) | NT7: 機器類の解体、分別、搬出等の状況(施工中) | NU7: 分別状況(施工中) | NV7: 分別状況(施工中) | NW7: 分別状況(施工中) | NX7: 地下解体状況(施工中) | NY7: 杭解体状況(施工中) | NZ7: 分別状況(施工中) | OA7: 分別状況(施工中) | OB7: 地ならし、埋戻し及び盛り土状況(完了後) | OC7: 搬出状況（搬出業者名が分かるもの）(搬出時) | OD7: 搬出状況（搬出業者名が分かるもの）(搬出時) | OE7: 搬出状況（搬出業者名が分かるもの）(搬出時) | OF7: 保管、集積状況(搬出前) | OG7: 搬出状況（搬出業者名が分かるもの）(搬出時) | OH7: 搬出状況（搬出業者名が分かるもの）(搬出時) | OI7: 搬出状況（搬出業者名が分かるもの）(施工中) | OJ7: 搬出状況（搬出業者名が分かるもの）(搬出時) | OK7: 床下の目視調査 | OL7: 強度試験 | OM7: ひび割れ目視調査 | ON7: コア抜き
A8: 養生（既存施設部分、工事目的物の施工済部分）(施工中) | B8: 廃棄状況（廃棄場）(廃棄時) | C8: [材料] | G8: [敷地境界] | H8: [なわ張りの状況] | J8: [遣り方] | K8: [仮設の状況] | Q8: 山留め部材の寸法(完了時) | R8: 杭の心出しの状況(確認時) | S8: 杭の心出しの状況(確認時) | T8: 杭の心出しの状況(確認時) | Z8: 機械式継手、溶接継手(搬入時) | AC8: 外観試験状況(試験中) | AE8: 不良個所の修正状況(完了時) | AH8: コーンの穴埋め処置(検査中) | AJ8: 鉄筋の保護状況(施工中) | AR8: 溶接材の表示マーク（工場、現場）(搬入時) | AT8: 一次締め及びマーキングの状況(一次締め後) | AU8: 溶接材料の保管状況(保管中) | AW8: 柱底均しモルタルの状況(施工中) | AX8: 建入れの検査状況(検査中) | BA8: ブロック積状況(施工中) | BF8: 防水材料の残量及び使用済み容器(施工後) | BG8: 下地面の乾燥状況(施工前) | BN8: プライマー・バックアップ材又はボンドブレーカーの施工状況(施工中) | BT8: タイルの張付け状況(施工中) | BV8: 防腐・防蟻処理材の表示マーク(搬入時) | BW8: 施工状況（床組、壁組、建方）(施工中) | BY8: 防火区画を貫通する箇所の穴埋めの施工状況(施工中) | CA8: 溶接部分の錆止めの施工状況(施工中) | CC8: 材料の残量及び使用済み容器(施工後) | CD8: 下塗りの表面状況・乾燥状況(確認時) | CF8: 枠回りのモルタル詰めの状況(施工中) | CG8: 建込み状況(施工中) | CH8: 塗装材料の残数量及び使用済み容器(施工後) | CI8: 見え隠れ部分の施工状況(施工中) | CK8: 塗床の施工状況(施工中) | CX8: 山留めの状況(施工中) | DA8: 支持力比試験の状況(試験中) | DB8: 締固め度の検査状況(検査中) | DC8: アスファルト混合物の締固め状況(施工中) | DD8: 目地の施工状況(施工中) | DJ8: 芝張り及び吹付けは種の施工状況(施工中) | DN8: 養生（既存施設部分、工事目的物の施工済部分）(施工中) | DO8: 廃棄状況（廃棄場）(廃棄時) | EF8: 防水材料の残量及び使用済み容器(施工後) | EG8: 下地面の乾燥状況(施工前) | EN8: プライマー・バックアップ材又はボンドブレーカーの施工状況(施工中) | EQ8: 防火区画を貫通する箇所の穴埋めの施工状況(施工中) | ES8: 溶接部分の錆止めの施工状況(施工中) | FB8: コーンの穴埋め処置(検査中) | FD8: 鉄筋の保護状況(施工中) | FL8: 材料の残量及び使用済み容器(施工後) | FM8: 下塗りの表面状況・乾燥状況(確認時) | FO8: タイルの張付け状況(施工中) | FQ8: 塗装材料の残数量及び使用済み容器(施工後) | FR8: 見え隠れ部分の施工状況(施工中) | FV8: 枠回りのモルタル詰めの状況(施工中) | GA8: タイルの張付け状況(施工中) | GC8: 防腐・防蟻処理材の表示マーク(搬入時) | GD8: 施工状況（床組、壁組、建方）(施工中) | GE8: 材料の残量及び使用済み容器(施工後) | GF8: 下塗りの表面状況・乾燥状況(確認時) | GH8: 塗床の施工状況(施工中) | GI8: 塗装材料の残数量及び使用済み容器(施工後) | GJ8: 見え隠れ部分の施工状況(施工中) | GL8: 塗装材料の残数量及び使用済み容器(施工後) | GM8: 見え隠れ部分の施工状況(施工中) | GR8: 仕上げ状況(試験中) | GT8: 機械式継手、溶接継手(搬入時) | GW8: 外観試験状況(試験中) | GY8: 不良個所の修正状況(完了時) | HB8: コーンの穴埋め処置(検査中) | HD8: 鉄筋の保護状況(施工中) | HL8: 溶接材の表示マーク（工場、現場）(搬入時) | HN8: 一次締め及びマーキングの状況(一次締め後) | HO8: 溶接材料の保管状況(保管中) | HQ8: 柱底均しモルタルの状況(施工中) | HR8: 建入れの検査状況(検査中) | HU8: 搬出状況（搬出業者名が分かるもの）(搬出時) | HV8: 廃棄状況（廃棄先）(廃棄時) | HW8: 廃棄状況（廃棄先）(廃棄時) | ID8: 防水材料の残量及び使用済み容器(施工後) | IE8: 下地面の乾燥状況(施工前) | IL8: プライマー・バックアップ材又はボンドブレーカーの施工状況(施工中) | IO8: 枠回りのモルタル詰めの状況(施工中) | IQ8: 塗床の施工状況(施工中) | IR8: 支持力比試験の状況(試験中) | IS8: 締固め度の検査状況(検査中) | IT8: アスファルト混合物の締固め状況(施工中) | IU8: 目地の施工状況(施工中) | JA8: 芝張り及び吹付けは種の施工状況(施工中) | JH8: 障害物の処理後の状況(処理後) | JI8: 廃棄状況（廃棄場）(廃棄時) | JL8: 機器及び盤類の解体の状況(施工中) | JM8: 改修後の状況(施工後) | JN8: 取外し機器の保管状況(施工中) | JV8: 軽量間仕切壁内配管のふ設状況(施工中) | JX8: 機器等への配線の接続状況(施工中) | KB8: ＲＣ壁取付の埋込形盤の型枠、鉄筋補強等の状況(施工中) | KC8: 分電盤、制御盤等の固定及び配線接続の状況(施工中) | KF8: 貯油槽（燃料小出槽）の設置状況の状況(施工中) | KG8: 情報表示装置、映像・音響装置等の固定及び配線接続の状況(施工中) | KL8: ハンドホール、マンホール等の型枠の形状、寸法、配筋の状況等(施工中) | KN8: ＵＴＰケーブルの伝送品質測定の状況(試験中) | KP8: 施工状況写真(その他)：適宜。枚数がある事が大事(拡大・全景) | KQ8: 施工状況写真(その他)：適宜。枚数がある事が大事(拡大・全景) | KR8: --要領-- | KS8: --要領-- | KT8: --要領-- | KU8: --要領-- | KV8: 廃棄状況（廃棄場）(廃棄時) | KW8: --要領-- | KX8: --要領-- | KY8: 機材の取外し及び再使用の状況(施工中) | KZ8: 外壁貫通：全数管理。貫通箇所は番号振り分け | LA8: 外壁貫通：各貫通工法につき１か所は配管等貫通から処理完了までの手順 | LB8: 資材検収(配管)：管種、ＪＩＳ等記号、製造日付、サイズ、数量 | LC8: 溶接（施工状況、品質管理状況等）(施工時) | LD8: 水圧試験、満水試験、通水試験、気密試験、絶縁試験、動作試験、空気圧試験等の状況(試験終了時) | LE8: 施工状況写真(その他)：適宜。枚数がある事が大事(拡大・全景) | LF8: 資材検収(ダクト)：材質、板庄、ザイズ、補強ピッチ、数量 | LG8: 支持及び固定（方法、間隔確認状況等）(取付後) | LH8: 資材検収(保温)：保温種別、密度、厚み、サイズ | LI8: 保温施工状況：ビョウの間隔、テープ、ポリフィルムなど施工要領書記載のものを工事中に(３回程度撮影) | LJ8: 施工状況写真(その他)：適宜。枚数がある事が大事(拡大・全景) | LK8: 施工状況写真(その他)：適宜。枚数がある事が大事(拡大・全景) | LL8: 床置き機器アンカー：各機器１か所、ボルト径・長さ、掘削、清掃、薬剤充填(ケミカル)、埋め込み後頭出し寸法 | LM8: 施工状況写真(その他)：適宜。枚数がある事が大事(拡大・全景) | LN8: 施工状況写真(その他)：適宜。枚数がある事が大事(拡大・全景) | LO8: 資材検収(吹き出し器具類)：メーカー名、器具種別、サイズ、数量 | LP8: 機器据付（周囲空間、本体、銘板、養生等）(据付後) | LQ8: タンク類の清掃及び消毒(施工時) | LR8: 機器据付（周囲空間、本体、銘板、養生等）(据付後) | LS8: タンク類の試験（内部防錆被膜試験、満水試験、水圧試験等）の状況(試験中) | LT8: 施工状況写真(その他)：適宜。枚数がある事が大事(拡大・全景) | LU8: 施工状況写真(その他)：適宜。枚数がある事が大事(拡大・全景) | LV8: 埋設配管：管床作成→配管→埋め戻し転圧(３０ｃｍごと)→埋設表示シート→埋め戻しの一連写真を２スパンに１か所。 | LW8: 施工状況写真(その他)：適宜。枚数がある事が大事(拡大・全景) | LX8: 施工状況写真(その他)：適宜。枚数がある事が大事(拡大・全景) | LY8: 資材検収(ケーブル類)：種別、数量、配線記号、ボックス | LZ8: --要領-- | MA8: 動作試験、絶縁抵抗試験等の状況(試験中) | MB8: --要領-- | MC8: 施工状況写真(その他)：適宜。枚数がある事が大事(拡大・全景) | MD8: 施工状況写真(その他)：適宜。枚数がある事が大事(拡大・全景) | ME8: 気密試験、点火試験等の状況(試験中) | MF8: 施工状況写真(その他)：適宜。枚数がある事が大事(拡大・全景) | MG8: 電気検層（実施状況）(掘削終了後) | MH8: 揚水試験（予備揚水試験、段階揚水試験、連続揚水試験、水位回復試験等）の状況(試験中) | MI8: 施工状況写真(その他)：適宜。枚数がある事が大事(拡大・全景) | MJ8: --要領-- | MK8: 水張試験、満水試験、水圧試験、通水試験、空気圧試験等の状況(試験終了時) | ML8: 施工状況写真(その他)：適宜。枚数がある事が大事(拡大・全景) | MM8: 防火区画処理（三方枠等）(施工中) | MN8: --要領-- | MO8: 受電盤、主回路、制御器、配線、配管等の試験状況(試験中) | MP8: 施工状況写真(その他)：適宜。枚数がある事が大事(拡大・全景) | MQ8: 施工状況写真(その他)：適宜。枚数がある事が大事(拡大・全景) | MR8: 絶縁抵抗試験、性能試験試験等の状況(試験終了時) | MS8: 施工状況写真(その他)：適宜。枚数がある事が大事(拡大・全景) | MT8: 機器据付（周囲空間、本体、銘板、養生等）(据付後) | MU8: 溶接（施工状況、品質管理状況等）(施工中) | MV8: 施工状況写真(その他)：適宜。枚数がある事が大事(拡大・全景) | MW8: 系統試験、気密試験、配管内洗浄度試験、作動試験、性能試験等の状況(試験中) | MX8: 施工状況写真(その他)：適宜。枚数がある事が大事(拡大・全景) | MY8: 配管試験（放水試験、圧力試験、水質試験等）の状況(試験開始時) | MZ8: 上級室（室内設備の状況等）(完成後) | ND8: 養生（既存施設部分、工事目的物の施工済部分）(施工中) | NE8: 廃棄状況（廃棄場）(廃棄時) | NK8: 部材等の寸法(完了時) | NS8: 機器及び盤類の解体の状況(施工中) | NT8: 機材の取外し及び再使用の状況(施工中) | NX8: 分別状況(施工中) | NY8: 存置物の確認状況(施工中) | NZ8: 存置物の確認状況(施工中) | OA8: 存置物の確認状況(施工中) | OC8: 廃棄状況（廃棄先）(廃棄時) | OD8: 廃棄状況（廃棄先）(廃棄時) | OE8: 廃棄状況（廃棄先）(廃棄時) | OF8: 搬出状況（搬出業者名が分かるもの）(搬出時) | OG8: 廃棄状況（廃棄先）(廃棄時) | OH8: 廃棄状況（廃棄先）(廃棄時) | OI8: 廃棄状況（廃棄先）(廃棄時) | OJ8: 廃棄状況（廃棄先）(廃棄時) | OK8: 基礎の状況確認 | OM8: 鉄筋探査 | ON8: コンクリート中性化測定
C9: 材料を適切に保管している状況 | E9: [敷地の状況] | F9: [障害物] | G9: 敷地の略図、撮影場所及び方向、立会者がいる場合は、その氏名を記入する。 | H9: なわ張り全体が分かるように撮影する。 | I9: [ベンチマークの状況] | J9: 計測器具及び計測状況が確認できるように撮影する。 | K9: 指定仮設の場合は、位置、規模、構造が分かるように撮影する。 | Q9: 山留め撤去状況(撤去後) | R9: 施工機械、アースオーガーヘッド(設置時) | S9: 施工機械、アースオーガーヘッド(設置時) | T9: 施工機械、掘削機（バケット、ビット、ハンマーグラブ等）(設置時) | AC9: 抜取試験状況(試験中) | AH9: 締付け金物の頭処理（ボルト頭除去、錆止め塗り）(処理時) | AR9: 耐火被覆材の表示マーク(搬入時) | AT9: 本締めの状況、マーキングの状況(本締め後) | AU9: 組立て、仮付け溶接の位置(施工中) | AX9: 仮ボルトの状況（ボルト、材の密着等）(施工中) | BA9: モルタル及びコンクリートの充填状況(施工中) | BT9: 伸縮調整目地の施工状況(施工中) | BV9: 防虫処理材の表示マーク(搬入時) | BW9: 諸金物・アンカーボルトの設置状況(施工中) | BY9: 天井・壁内の防露の施工状況(施工中) | CD9: ひび割れ箇所の補修状況(施工中) | CF9: 網入りのガラス板の小口の防錆処理の状況(施工中) | CG9: 主要部材の取付け状況(施工中) | CH9: 塗装材料の使用量確認状況(施工後) | CI9: 各工法ごとの施工状況（塗り回数が分かるよう、同一箇所のもの）(施工中) | CK9: カーペット敷きの施工状況(施工中) | CX9: 排水管、桝、ふた、グレーチング等の施工状況(施工中) | DC9: 切取り検査の状況、厚さ(検査中) | DD9: 厚さ検査の状況、厚さ(検査中) | EQ9: 天井・壁内の防露の施工状況(施工中) | FB9: 締付け金物の頭処理（ボルト頭除去、錆止め塗り）(処理時) | FM9: ひび割れ箇所の補修状況(施工中) | FO9: 伸縮調整目地の施工状況(施工中) | FQ9: 塗装材料の使用量確認状況(施工後) | FR9: 各工法ごとの施工状況（塗り回数が分かるよう、同一箇所のもの）(施工中) | FV9: 網入りのガラス板の小口の防錆処理の状況(施工中) | GA9: 伸縮調整目地の施工状況(施工中) | GC9: 防虫処理材の表示マーク(搬入時) | GD9: 諸金物・アンカーボルトの設置状況(施工中) | GF9: ひび割れ箇所の補修状況(施工中) | GH9: カーペット敷きの施工状況(施工中) | GI9: 塗装材料の使用量確認状況(施工後) | GJ9: 各工法ごとの施工状況（塗り回数が分かるよう、同一箇所のもの）(施工中) | GL9: 塗装材料の使用量確認状況(施工後) | GM9: 各工法ごとの施工状況（塗り回数が分かるよう、同一箇所のもの）(施工中) | GW9: 抜取試験状況(試験中) | HB9: 締付け金物の頭処理（ボルト頭除去、錆止め塗り）(処理時) | HL9: 耐火被覆材の表示マーク(搬入時) | HN9: 本締めの状況、マーキングの状況(本締め後) | HO9: 組立て、仮付け溶接の位置(施工中) | HR9: 仮ボルトの状況（ボルト、材の密着等）(施工中) | HU9: 廃棄状況（廃棄先）(廃棄時) | IO9: 網入りのガラス板の小口の防錆処理の状況(施工中) | IQ9: カーペット敷きの施工状況(施工中) | IT9: 切取り検査の状況、厚さ(検査中) | IU9: 厚さ検査の状況、厚さ(検査中) | JL9: 機器及び盤類の搬出の状況(搬出時) | JV9: ボックス等の取付状況(施工中) | JX9: ボックス内配線の収容状況(施工中) | KB9: 軽量間仕切壁取付の埋込形盤の取付状況(施工中) | KC9: 受雷部（突針、棟上導体等）の取付状況(施工中) | KF9: 太陽光発電装置、風力発電装置等の設置及び配線接続の状況(施工中) | KG9: モニター架、監視カメラ等の固定及び配線接続の状況(施工中) | KL9: 電柱等の掘削及び建柱の状況(施工中) | KN9: 受変電設備等の耐圧試験、継電器試験、動作試験等の状況(試験中) | KR9: 施工状況写真(その他)：適宜。枚数がある事が大事(拡大・全景) | KS9: 施工状況写真(その他)：適宜。枚数がある事が大事(拡大・全景) | KT9: 施工状況写真(その他)：適宜。枚数がある事が大事(拡大・全景) | KU9: 施工状況写真(その他)：適宜。枚数がある事が大事(拡大・全景) | KV9: --要領-- | KW9: 施工状況写真(その他)：床に直置きで撮影しない。ブルーシートや枕木設置のうえ仮置き。 | KX9: 施工状況写真(その他)：適宜。枚数がある事が大事(拡大・全景) | KY9: 配管及びダクトの切断、撤去、分別、搬出等の状況(施工中) | KZ9: 外壁貫通(地中)：全数管理。貫通箇所は番号振り分け | LA9: 外壁貫通(地中)：各貫通工法につき１か所は配管等貫通から処理完了までの手順 | LB9: 資材検収(配管)：養生状況 | LC9: 勾配確保（確認状況）(施工時) | LD9: --要領-- | LF9: 資材検収(ダクト)：コーキング受入確認 | LG9: 防火区画貫通処理状況(施工中) | LP9: --要領-- | LQ9: 消火設備における機器、配管等の法定基準等の確認(施工時) | LR9: --要領-- | LS9: タンク類の試験（内部防錆被膜試験、満水試験、水圧試験等）の状況(試験終了時) | LV9: 埋設配管：配管敷設深さ、建物や通り芯からの寄り寸法 | LY9: 資材検収(機器類)：設計記号、メーカー名、メーカー型番、台数 | LZ9: 計装施工状況：計装業者と要協議 | MA9: 動作試験、絶縁抵抗試験等の状況(試験終了時) | MB9: 施工状況写真(その他)：適宜。枚数がある事が大事(拡大・全景) | ME9: 気密試験、点火試験等の状況(試験終了時) | MG9: 砂利充てん（使用砂利、遮水措置等）(施工中) | MH9: 揚水試験（予備揚水試験、段階揚水試験、連続揚水試験、水位回復試験等）の状況(試験終了時) | MJ9: 施工状況写真(その他)：適宜。枚数がある事が大事(拡大・全景) | MK9: 各機器単独動作試験の状況(試験開始時) | MM9: その他（機械室内部各部寸法、空調、フック等）(施工後) | MN9: 施工状況写真(その他)：適宜。枚数がある事が大事(拡大・全景) | MO9: 受電盤、主回路、制御器、配線、配管等の試験状況(試験終了時) | MR9: --要領-- | MT9: --要領-- | MU9: --要領-- | MW9: 系統試験、気密試験、配管内洗浄度試験、作動試験、性能試験等の状況(試験終了時) | MY9: 配管試験（放水試験、圧力試験、水質試験等）の状況(試験中) | MZ9: 事務室等（ＦＣＵ、吹出口の設置状況等）(完成後) | NK9: 撤去状況(撤去後) | NS9: 機器及び盤類の搬出の状況(搬出時) | NT9: 配管及びダクトの切断、撤去、分別、搬出等の状況(施工中) | NX9: 埋戻し状況(施工中) | NY9: 分別状況(施工中) | NZ9: 埋戻し状況(施工中) | OA9: 埋戻し状況(施工中) | OF9: 廃棄状況（廃棄先）(廃棄時) | OK9: 床下の状況確認 | OM9: 鉄筋調査 | ON9: シュミットハンマー試験
B10: [発生材] | E10: 工事中も連続して、撮影の必要がある場合は、撮影位置の設定に注意する。 | F10: コンクリートの障害物等は、後日設計変更の資料となるよう数量計算できるように撮影する。 | I10: 設計ＧＬとの関係、敷地の略図、撮影場所及び方向、検査立会者の氏名を記入する。 | J10: 敷地の略図、計測点の位置及び撮影方向、検査立会者の氏名を記入する。 | K10: 仮囲いの高さ、敷地周辺との関係、全体の仮設状況も併せて撮影する。 | R10: アースオーガーの水平位置、鉛直度の確認状況(確認時) | S10: アースオーガーの水平位置、鉛直度の確認状況(確認時) | T10: 掘削機の水平位置、鉛直度の確認状況(確認時) | AC10: 不良個所の修正状況(完了時) | AT10: 締付け検査(検査中) | AU10: 仮付け溶接の状況(施工中) | BY10: ルーフドレンの取付け状況(施工中) | CD10: 水勾配の確認状況(確認時) | CF10: ガラスのはめ込み状況(施工中) | CG10: 製品の検査(検査中) | CK10: 石こうボード、その他ボード及び合板の施工状況（継目処理、留付けピッチ、下張り状況が分かるもの）(施工中) | CX10: 埋戻しの状況(施工中) | EQ10: ルーフドレンの取付け状況(施工中) | FM10: 水勾配の確認状況(確認時) | FV10: ガラスのはめ込み状況(施工中) | GF10: 水勾配の確認状況(確認時) | GH10: 石こうボード、その他ボード及び合板の施工状況（継目処理、留付けピッチ、下張り状況が分かるもの）(施工中) | GW10: 不良個所の修正状況(完了時) | HN10: 締付け検査(検査中) | HO10: 仮付け溶接の状況(施工中) | IO10: ガラスのはめ込み状況(施工中) | IQ10: 石こうボード、その他ボード及び合板の施工状況（継目処理、留付けピッチ、下張り状況が分かるもの）(施工中) | JV10: 金属ダクト及び金属トラフのふ設状況(施工中) | JX10: 高圧ケーブル等の端末処理の作業状況(施工中) | KC10: 引下げ導線及び建物構造体への接続状況(施工中) | KG10: 増幅器架、スピーカー等の固定及び配線接続の状況(施工中) | KL10: 電柱支線等の取付状況(施工中) | KN10: 直流電源装置、ＵＰＳ等の動作試験の状況(試験中) | KV10: 施工状況写真(その他)：適宜。枚数がある事が大事(拡大・全景) | KY10: --要領-- | KZ10: 外壁貫通(水槽)：全数管理。貫通箇所は番号振り分け | LA10: 外壁貫通(水槽)：各貫通工法につき１か所は配管等貫通から処理完了までの手順 | LB10: 資材検収(配管(加工管))：溶接仕上がり | LC10: 支持及び固定（方法、間隔確認状況、伸縮等）(施工時) | LD10: 水圧試験：開始・中間・終了の時刻・圧力・合否を記載。全景と時計・黒板の拡大の２枚 | LF10: 資材検収(ダクト)：養生状況 | LG10: ダンパー、制気口類（取付位置、取付状況等）(施工中) | LP10: 機器吊り込み状況：各機種のフロアごと３０％目安で撮影。振れ止め状況、防振状況 | LQ10: --要領-- | LR10: 施工状況写真(その他)：搬入状況、楊重状況写真 | LS10: --要領-- | LV10: 埋設配管：桝類も同様に手順写真を塩ピ桝、コンクリート桝、浸透桝それぞれの３０％を目安に撮影する。 | MA10: --要領-- | ME10: --要領-- | MG10: 仕上げ（井水洗浄、スワビング、安定状態等）(施工中) | MH10: 水質試験の状況、水の採取状況等(試験開始時) | MK10: 各機器単独動作試験の状況(試験中) | MM10: --要領-- | MO10: 負荷試験、調速機の作動試験(試験開始時) | MR10: 施工状況写真(その他)：適宜。枚数がある事が大事(拡大・全景) | MT10: 施工状況写真(その他)：適宜。枚数がある事が大事(拡大・全景) | MU10: 施工状況写真(その他)：適宜。枚数がある事が大事(拡大・全景) | MW10: --要領-- | MY10: 配管試験（放水試験、圧力試験、水質試験等）の状況(試験終了時) | MZ10: 屋上（機器及び配管設置の状況等）(完成後) | NY10: 基礎解体後の埋戻し状況(施工中) | OK10: 壁の調査（写真は土壁） | OM10: 抜き取ったコンクリートコア | ON10: ハツリ調査
B11: 引渡しを要するもの、再生資源の利用を図るものの整理集積状況 | E11: 高低差がある場合は、それが分かるように撮影する。 | F11: スケール等を当てて寸法、形状が分かるように撮影する。 | H11: なわ張りの検査状況 | R11: 支持地盤の確認（アースオーガー駆動用電動機の電流値、根入れ深さ等）(確認時) | S11: 支持地盤の確認（アースオーガー駆動用電動機の電流値、根入れ深さ等）(確認時) | T11: 支持層の確認（バケット内の土砂と柱状図の土質との対比、土質調査資料との照合）(確認時) | AC11: 試験片抜取り後の補強状況(施工中) | AU11: 有害物の除去、母材の状況(施工中) | CD11: モルタル塗り、プラスター塗りの施工状況(施工中) | CK11: 壁紙張りの施工状況(施工中) | FM11: モルタル塗り、プラスター塗りの施工状況(施工中) | GF11: モルタル塗り、プラスター塗りの施工状況(施工中) | GH11: 壁紙張りの施工状況(施工中) | GW11: 試験片抜取り後の補強状況(施工中) | HO11: 有害物の除去、母材の状況(施工中) | IQ11: 壁紙張りの施工状況(施工中) | JV11: 金属線ぴのふ設状況(施工中) | JX11: ＵＴＰケーブルのふ設及び成端の状況(施工中) | KG11: TVアンテナ、ヘッドエンド装置等の固定及び配線接続の状況(施工中) | KL11: 外灯等の取付状況(施工中) | KN11: 発電設備の負荷試験、油配管等の圧力試験の状況(試験中) | KY11: 施工状況写真(その他)：適宜。枚数がある事が大事(拡大・全景) | KZ11: 区画貫通：防火区画、遮音区画、放射線区画 | LA11: スリーブ：全数管理。番号振り分けのうえ写真と図面をリンクさせる。補強・止水材取付まで完了してから撮影。 | LB11: 資材検収(配管(加工管))：防錆仕上がり | LC11: 防火区画貫通部の処理状況(施工時) | LD11: 気密試験：開始・中間・終了の時刻・圧力・合否を記載。全景と時計・黒板の拡大の２枚 | LF11: 資材検収(吹き出し器具類)：メーカー名、器具種別、サイズ、数量 | LG11: --要領-- | LP11: 施工状況写真(その他)：搬入状況、楊重状況写真 | LQ11: 資材検収(機器類)：設計記号、メーカー名、メーカー型番、台数 | LS11: 通水試験：通水状況。通水量を記載。 | MA11: 制御盤絶縁抵抗試験：測定した値を測定表に記載。計装業者の書式を基本とする。 | ME11: 施工状況写真(その他)：適宜。枚数がある事が大事(拡大・全景) | MG11: --要領-- | MH11: 水質試験の状況、水の採取状況等(試験中) | MK11: 各機器単独動作試験の状況(試験終了時) | MM11: 施工状況写真(その他)：適宜。枚数がある事が大事(拡大・全景) | MO11: 負荷試験、調速機の作動試験(試験中) | MW11: 施工状況写真(その他)：適宜。枚数がある事が大事(拡大・全景) | MY11: 総合試験（風量試験、騒音試験、水量試験、温度試験、湿度試験、振動試験等）の状況(試験開始時) | NY11: 杭撤去後の埋戻し状況(施工中) | OK11: 壁の筋交調査（精密診断） | OM11: 擁壁調査 | ON11: 鉄筋径の測定
E12: 工事中に影響を与えそうな隣家の状況を撮影する。 | H12: なわ張りの略図、計測点の位置及び撮影方向、検査立会者の氏名を記入する。 | R12: 試験堀又は試験杭の掘削土質の確認（柱状図の土質との対比、土質調査資料との照合）(確認時) | S12: 試験杭の掘削土質の確認（柱状図の土質との対比、土質調査資料との照合）(確認時) | T12: 試験杭の支持地盤及び深さの検査状況(検査中) | AU12: 現場溶接の状況(施工中) | CD12: 仕上塗材仕上げの施工状況(施工中) | FM12: 仕上塗材仕上げの施工状況(施工中) | GF12: 仕上塗材仕上げの施工状況(施工中) | HO12: 現場溶接の状況(施工中) | JV12: ケーブルラックのふ設状況(施工中) | JX12: 光ファイバーケーブルのふ設及び接続の状況(施工中) | KG12: TVアンテナ取付予定位置での電界強度測定の状況(施工中) | KL12: 屋外油配管（発電機用）等のふ設状況(施工中) | KN12: 通信・情報設備の機能試験等の状況(試験中) | KZ12: 区画貫通：全数管理。貫通処理材料はメーカーと商品名が必要。認定工法の資料もファイルする。 | LA12: スリーブ：サイズ、高さ、寄り寸法、かぶり厚(３０ｍｍ以上) | LC12: 隠ぺい（壁埋設、天井内、暗渠内等）配管状況(施工時) | LD12: 満水試験：開始・中間・終了の時刻・合否の記載。全景と時計・水面の拡大の２枚。水面にはピンポン玉など目印設置 | LG12: 支持確認(ダクト)：サイズ、支持間隔、鉄骨つかみ金物抜止め | LQ12: 資材検収(衛生器具類)：洋風大便器など種類名、メーカー名、メーカー型番、台数 | LS12: 風速測定 | MG12: 施工状況写真(その他)：適宜。枚数がある事が大事(拡大・全景) | MH12: 水質試験の状況、水の採取状況等(試験終了時) | MK12: 通水試験及び総合運転試験の状況(試験開始時) | MO12: 負荷試験、調速機の作動試験(試験終了時) | MY12: 総合試験（風量試験、騒音試験、水量試験、温度試験、湿度試験、振動試験等）の状況(試験中) | OK12: 天井裏の調査 | ON12: 鉄筋被り測定
E13: 工事中に倒壊の恐れがある崖等の状況を撮影する。 | R13: 貫入量測定状況(測定時) | S13: 貫入量測定状況(測定時) | T13: 試験杭の掘削土質の確認（柱状図の土質との対比、土質調査資料との照合）(確認時) | AU13: 超音波探傷試験(試験中) | CD13: 吹抜け材吹抜けの施工状況(施工中) | FM13: 吹抜け材吹抜けの施工状況(施工中) | GF13: 吹抜け材吹抜けの施工状況(施工中) | HO13: 超音波探傷試験(試験中) | JV13: 建物引込配管の止水処理状況(施工中) | JX13: 平形保護層配線のふ設状況(施工中) | KG13: 駐車場管制装置の固定及び配線接続の状況(施工中) | KL13: 貯油槽（地下タンク）の設置状況(施工中) | KN13: 中央監視制御設備の機能試験等の状況(試験中) | LA13: 区画貫通：全数管理。貫通処理材料は各工法ごとに撮影。 | LC13: 機器回りの配管状況(施工時) | LD13: 通水試験：通水状況、通水量を記載。 | LG13: ダクト施工状況：パッキン貼付状況、クリップ取付状況(ダクトザイズとクリップ数量) | MH13: --要領-- | MK13: 通水試験及び総合運転試験の状況(試験中) | MO13: 頂部隙間、緩衝器との距離、ピット深さ等の検査状況(検査中) | MY13: 総合試験（風量試験、騒音試験、水量試験、温度試験、湿度試験、振動試験等）の状況(試験終了時) | OK13: 天井裏の小屋組み調査 | ON13: 不同沈下測定
E14: 敷地内に工作物がある場合は、後日の資料として撮影する。 | R14: 杭周固定液の調合・計量（セメント、水、比重）(施工中) | S14: 杭周固定液の調合・計量（セメント、水、比重）(施工中) | T14: 鉄筋かご、リング、スペーサの形状・寸法(測定時) | AU14: 浸透探傷試験(試験中) | CD14: セルフレベリング材塗りの施工状況(施工中) | FM14: セルフレベリング材塗りの施工状況(施工中) | GF14: セルフレベリング材塗りの施工状況(施工中) | HO14: 浸透探傷試験(試験中) | JV14: 防火区画貫通部の処理状況(施工中) | JX14: ライティングダクトのふ設状況(施工中) | KG14: 防犯・入退室管理装置の固定及び配線接続の状況(施工中) | KN14: ナースコール装置の機能試験等の状況(試験中) | LA14: 区画貫通：各貫通工法につき１か所は配管等貫通から処理完了までの手順。 | LC14: 壁及び床貫通部の処理状況(施工時) | LD14: 勾配検査：検査状況と勾配計のアップ | LG14: ダクト施工状況：ビス止め状況(ダクトサイズとピス数量)、コーキング状況、ボックス取付状況(工事中に３回程度撮影) | MH14: 施工状況写真(その他)：適宜。枚数がある事が大事(拡大・全景) | MK14: 通水試験及び総合運転試験の状況(試験終了時) | MO14: --要領-- | MY14: --要領-- | OK14: 屋根の状況調査 | ON14: エックス線調査
E15: 前面道路との高さ関係、歩道の幅員が分かるように撮影する。 | R15: 杭周固定液の注入状況(施工中) | S15: 杭周固定液の注入状況(施工中) | T15: 鉄筋の組立て状況(施工中) | AU15: 外観試験状況(試験中) | HO15: 外観試験状況(試験中) | JX15: 金属ダクト内配線のふ設状況(施工中) | KG15: 受信機、感知器等の固定及び配線接続の状況(施工中) | LC15: --要領-- | LD15: フィルタ・エレメント引き抜き検査：実際に引き抜き交換が可能か確認して３の倍数で撮影 | LG15: 施工状況写真(その他)：ダクト配管端部養生状況 | MK15: --要領-- | MO15: 施工状況写真(その他)：適宜。枚数がある事が大事(拡大・全景) | MY15: 施工状況写真(その他)：適宜。枚数がある事が大事(拡大・全景) | OK15: 屋根材の状況調査
R16: 杭周固定液の試験体の作成状況(試験中) | S16: 杭周固定液の試験体の作成状況(試験中) | T16: 掘削及び建入れの施工状況（施工機器、ケーシング等）(施工中) | JX16: バスダクトのふ設状況(施工中) | LC16: 振れ止め：材質、サイズ | MK16: 施工状況写真(その他)：適宜。枚数がある事が大事(拡大・全景) | OK16: 外壁の目視調査
R17: 根固め液の調合・計量（セメント、水、比重）(施工中) | S17: 根固め液の調合・計量（セメント、水、比重）(施工中) | T17: スライム処理の施工状況(施工中) | JX17: 隠ぺい配線（二重天井内）のふ設状況(施工中) | LC17: 支持確認(配管)：サイズ、支持間隔、鉄骨つかみ金物抜止め | OK17: 危険個所の調査
R18: 根固め液の注入状況(施工中) | S18: 根固め液の注入状況(施工中) | T18: 掘削深度の測定状況(測定時) | JX18: 配線ピット内配線のふ設状況(施工中) | LC18: 支持確認(冷媒配管)：サイズ、支持間隔、鉄骨つかみ金物抜止め
R19: 根固め液の試験体の作成状況(試験中) | S19: 根固め液の試験体の作成状況(試験中) | T19: 鉄筋かご建込み時の水平位置、鉛直度の確認状況(確認時) | JX19: ケーブルラック上の配線のふ設状況(施工中) | LC19: 外壁貫通：各貫通工法につき１か所は配管等貫通から処理完了までの手順
R20: 杭建込み時の水平位置、鉛直度の確認状況(確認時) | S20: 杭建込み時の水平位置、鉛直度の確認状況(確認時) | T20: コンクリート試験、品質管理、打設状況（余盛り等）(施工中) | JX20: 二重床内配線のふ設状況(施工中) | LC20: 外壁貫通(地中)：各貫通工法につき１か所は配管等貫通から処理完了までの手順
R21: 継手の施工状況(施工中) | S21: 継手の施工状況(施工中) | T21: 杭頭の処理状況(施工中) | JX21: 防火区画貫通部の処理状況(施工中) | LC21: 外壁貫通(水槽)：各貫通工法につき１か所は配管等貫通から処理完了までの手順
R22: 杭頭の処理状況(施工中) | S22: 杭頭の処理状況(施工中) | T22: 産業廃棄物処理状況(処理時) | LC22: 配管施工状況：各配管の切断から接続まで施工要領書の手順を工事中に１回撮影。
R23: 杭頭補強筋(施工中) | S23: 杭頭補強筋(施工中) | LC23: 冷媒配管施工状況：クリーンカッパー施工説明の内容を現場で行っている写真
R24: 産業廃棄物処理状況(処理時) | S24: 産業廃棄物処理状況(処理時) | LC24: 冷媒配管施工状況：継手差込代確認、ロウ付け状況写真(工事中に３回程度撮影)
A27: 工事種別
A28: 新営建築工事 | B28: 一般共通事項 | C28: 仮設工事 | D28: 土工事 | E28: 地業工事 | F28: 鉄筋工事 | G28: コンクリート工事 | H28: 鉄骨工事 | I28: コンクリートブロック・ＡＬＣパネル・押出成形セメント板工事 | J28: 防水工事 | K28: 石工事 | L28: タイル工事 | M28: 木工事 | N28: 屋根及びとい工事 | O28: 金属工事 | P28: 左官工事 | Q28: 建具工事 | R28: カーテンウォール工事 | S28: 塗装工事 | T28: 内装工事 | U28: ユニット及びその他工事 | V28: 排水工事 | W28: 舗装工事 | X28: 植栽及び屋上緑化工事 | AV28: 新営建築工事
A29: 改修建築工事 | B29: 一般共通事項_改修工事 | C29: 仮設工事 | D29: 防水改修工事 | E29: 外壁改修工事 | F29: 建具改修工事 | G29: 内装改修工事 | H29: 塗装改修工事 | I29: 耐震改修工事 | J29: 環境配慮改修工事 | AV29: 営繕工事写真撮影要領（令和3年改定）001401960
A30: 電気設備工事 | B30: 一般事項 | C30: 撤去工事 | D30: 機器等の改造 | E30: 機器等の取外し | F30: スリーブ、インサート工事 | G30: 接地工事 | H30: 塗装工事 | I30: 配管工事 | J30: 配線工事 | K30: 搬入・据付け工事 | L30: 基礎工事 | M30: 外構工事 | N30: 総合調整 | O30: その他 | AV30: 撮影対象項目リスト
A31: 機械設備工事 | B31: 一般事項 | C31: 撤去工事等 | D31: スリーブ・インサート工事 | E31: 配管工事 | F31: ダクト工事 | G31: 保温・塗装工事 | H31: 機器基礎工事 | I31: 搬入・据付工事 | J31: 屋外・土工事 | K31: 自動制御設備工事 | L31: ガス設備工事 | M31: さく井設備工事 | N31: 浄化槽設備工事 | O31: 昇降機設備工事 | P31: 機械式駐車設備工事 | Q31: 医療ガス設備工事 | R31: 総合調整 | S31: その他 | AV31: 工事関係表示標識等の掲示状況(着工前) > 分別状況（集積状況）(搬出前) > 搬入材料の保管状況(施工中)
A32: 撤去・解体工事 | B32: 一般共通事項_解体工事 | C32: 仮設工事 | D32: 解体施工 | E32: 建設廃棄物 | F32: 特別管理産業廃棄物 | G32: アスベスト含有建材 | H32: 特殊な建設副産物 | AV32: 養生（既存施設部分、工事目的物の施工済部分）(施工中) > 廃棄状況（廃棄場）(廃棄時) > [材料]
A33: =OK3 -> 耐震診断調査 | B33: =OK4 -> 木造 | C33: =OM4 -> 非木造 | AV33: > > 材料を適切に保管している状況
A34: =OP3 -> 大項目 | B34: =CELL("contents",OP4) -> 中項目A | C34: =CELL("contents",OS4) -> 中項目B
A35: 工事種別
A37: 項目修正の方法 ※「 」はメニュー手順を示す
A38: １．すでに設定済みの細目に追加する場合は、空欄に手入力する。
A39: ２．細目数２５では足りずに細目数を増やす場合には２４行と２５行目のあいだに空の行を必要数だけ挿入する
A41: 項目追加の方法 ※「 」はメニュー手順を示す
A42: １．各項目は「数式＞名前の管理」（※）で設定する。
A43: ２．工事種別のメニューはセル番地A28～A35の範囲を「データ＞データの入力規則＞リスト」（※）で設定する。
A44: 工事種別に項目追加したい場合は行挿入して加える。
A45: ３．工事種別ごとに同一項目名が存在するため範囲の名前は大項目＋中項目＋小項目を連続して設定する。
A46: １）中項目Aの範囲の名前は大項目中項目A、中項目Aの範囲は小項目A・B・Cを設定。
A47: ２）小項目Aの範囲の名前は大項目中項目A小項目A、小項目Aの範囲は小項目A列の6行目から25行目を設定する。
A48: ４．大項目・中項目・小項目の文字を修正したら「数式＞名前の管理」(※)で当該項目の範囲の名前も修正すること。範囲の名前を修正しない場合は３．の理由により階層メニューは動かないので注意のこと。
A49: １）大項目の名前の定義は設定済み
A50: ２）中項目Aを選択
A51: ア 名前の定義をクリック
A52: イ 名前欄に大項目中項目Aと入力
A53: ウ 範囲はOP5..OR5
A54: ３）小項目Aを選択
A55: ア 大項目中項目A小項目A
A56: イ 範囲はOP6..OP25
A57: ４）小項目Bを選択
A58: ア 大項目中項目A小項目B
A59: イ 範囲はOQ6..OQ25
A60: ５）小項目Cを選択
A61: ア 大項目中項目A小項目C
A62: イ 範囲はOR6..OR25
A63: イ 範囲はOP6..OP25
A64: ６）中項目Bを選択
A65: ア 名前の定義をクリック
A66: イ 名前欄に大項目中項目Bと入力
A67: ウ 範囲はOS5..OT5
A68: ７）小項目Aを選択
A69: ア 大項目中項目B小項目A
A70: イ 範囲はOS6..OS25
A71: ８）小項目Bを選択
A72: ア 大項目中項目B小項目B
A73: イ 範囲はOT6..OT25
A76: 「営繕工事写真撮影要領(令和３年版)」の項目を選択することで手入力を必要最低限にしてある。
A77: 操作時の参照フォルダは画像ファイルのみを収録する。その他の種類のファイルがあるとフリーズする場合あり。
A78: 画像枚数に応じて、工事台帳のページを複写しておく。
A79: メニュー：表示＞マクロ＞マクロの表示＞画像連続挿入を選択して実行。
A80: 貼付け作業終了後にシート名を修正する。
A121: History and List of Special Thanks:
A122: 2.49 | C122: 機械設備工事のドロップダウン項目に要領を追加
C123: @alcoholic0313 https://twitter.com/alcoholic0313/status/1412346611590594562?s=20
C124: Macro Source: エクセルの選択しているセル範囲の写真を削除せよ。http://happy-tenshoku.com/post-6134/
